Publisher Label,Publisher URI,"Directorate code","Directorate","Service code","Service","Revenue or capital code","Revenue capital","Cost centre","Cost centre description","Bvsub Category","Bvsub description","Bvsum code","Bvsum description","Account code","Account description","Transaction No","Period","Transaction Date","Amount","Classification code","Classification description","Supplier ID","Supplier description","Company registration number","Company registration number Uri","VAT registration number"
"London Borough of Redbridge","http://opendatacommunities.org/doc/london-borough-council/redbridge","9BNONBVO","Outside the BVACOP Objective Structure","9CNONBVO","Outside the BVACOP Objective Structure","REV","Revenue","R0026","Council Tax Collection Fund","05-THIRD","Third Party Payments","05E","Government departments","6752","Precepts","60161013","201208",23/02/2011 00:00:00,2815148.45,"48583","Local Government","REDACTED DATA","GREATER LONDON AUTHORITY","",,""
"London Borough of Redbridge","http://opendatacommunities.org/doc/london-borough-council/redbridge","4BTRAFMGT&RS","Traffic Management & Road Safety","4CPUBLICTRAN","Public Transport","REV","Revenue","R5810","Concessionary Travel","06-TRANSFER","Transfer Payments","06C","Housing Benefits","7100","Concessionary Fares","60161400","201208",08/11/2011 00:00:00,1858330,"48583","Local Government","REDACTED DATA","TRANSPORT TRADING LIMITED","3914810","http://opencorporates.com/companies/gb/3914810",""
"London Borough of Redbridge","http://opendatacommunities.org/doc/london-borough-council/redbridge","9BNONBVO","Outside the BVACOP Objective Structure","9CNONBVO","Outside the BVACOP Objective Structure","BAL","Balance Sheet","B0133","LBR Teachers Pension","99-NONBV","Capital, Balance Sheet and Control","50Q","Other Balances & Reserves","9910","Personal Account - Debtor","70034609","201208",30/11/2011 00:00:00,1735117.71,"56860","Pensions","REDACTED DATA","TEACHERS PENSION AGENCY","",,""
"London Borough of Redbridge","http://opendatacommunities.org/doc/london-borough-council/redbridge","9BNONBVO","Outside the BVACOP Objective Structure","9CNONBVO","Outside the BVACOP Objective Structure","BAL","Balance Sheet","B0187","TP Opted out Schools","99-NONBV","Capital, Balance Sheet and Control","50Q","Other Balances & Reserves","9910","Personal Account - Debtor","70034609","201208",30/11/2011 00:00:00,57769.15,"56860","Pensions","REDACTED DATA","TEACHERS PENSION AGENCY","",,""
"London Borough of Redbridge","http://opendatacommunities.org/doc/london-borough-council/redbridge","9BNONBVO","Outside the BVACOP Objective Structure","9CNONBVO","Outside the BVACOP Objective Structure","BAL","Balance Sheet","B0216","Little Heath Teachers Super","99-NONBV","Capital, Balance Sheet and Control","50Q","Other Balances & Reserves","9910","Personal Account - Debtor","70034609","201208",30/11/2011 00:00:00,25075.8,"56860","Pensions","REDACTED DATA","TEACHERS PENSION AGENCY","",,""
"London Borough of Redbridge","http://opendatacommunities.org/doc/london-borough-council/redbridge","3BINDSCHFUND","Individual School Funds","3CDELSECOND","Delegated Individual Secondary School Budgets","REV","Revenue","R3614","Mayfield School","99-NONBV","Capital, Balance Sheet and Control","99B","Accounting & Control","7451","LMS Bank Accounts Pilot","70033860","201208",11/11/2011 00:00:00,671329,"67981","Schools - Local Authority","REDACTED DATA","MAYFIELD SCHOOL","",,""
"London Borough of Redbridge","http://opendatacommunities.org/doc/london-borough-council/redbridge","9BNONBVO","Outside the BVACOP Objective Structure","9CNONBVO","Outside the BVACOP Objective Structure","REV","Revenue","R5049","ALMO Fee Account","05-THIRD","Third Party Payments","05A","Independent units within the council","6511","Housing Property Management Charge","70033864","201208",01/11/2011 00:00:00,508300,"44166","Housing Associations, Societies, Trusts and Co-operatives","REDACTED DATA","REDBRIDGE HOMES LIMITED","5973054","http://opencorporates.com/companies/gb/5973054",""
"London Borough of Redbridge","http://opendatacommunities.org/doc/london-borough-council/redbridge","9BNONBVO","Outside the BVACOP Objective Structure","9CNONBVO","Outside the BVACOP Objective Structure","REV","Revenue","R0068","R and R Revenue Client Leasing","10-CAPFIN","Capital Financing","10A","Interest payments","7403","Finance Leases","40510719","201208",07/11/2011 00:00:00,495519.88,"47650","Leasing Services","REDACTED DATA","SG EQUIPMENT FINANCE LTD","",,"629280722"
"London Borough of Redbridge","http://opendatacommunities.org/doc/london-borough-council/redbridge","9BNONBVO","Outside the BVACOP Objective Structure","9CNONBVO","Outside the BVACOP Objective Structure","REV","Revenue","R5131","Repairs and Maintenance - MFS","02-PREMISES","Premises","02A","Repairs, alteration and maintenance of buildings","3027","Miscellaneous Maintenance","70033971","201208",03/11/2011 00:00:00,490822.41,"61961","Property Maintenance & Repairs","REDACTED DATA","MORRISONS FACILITIES SERVICES LTD","120550","http://opencorporates.com/companies/gb/120550","297280913"
"London Borough of Redbridge","http://opendatacommunities.org/doc/london-borough-council/redbridge","9BNONBVO","Outside the BVACOP Objective Structure","9CNONBVO","Outside the BVACOP Objective Structure","CAP","Capital","C2104","Decent Homes","99-NONBV","Capital, Balance Sheet and Control","50E","Capital - Contract Payments","9150","Main Contract","70033632","201208",01/11/2011 00:00:00,411582.92,"65470","Roofing Services","REDACTED DATA","BREYER GROUP","782931","http://opencorporates.com/companies/gb/782931","248504555"
"London Borough of Redbridge","http://opendatacommunities.org/doc/london-borough-council/redbridge","9BNONBVO","Outside the BVACOP Objective Structure","9CNONBVO","Outside the BVACOP Objective Structure","BAL","Balance Sheet","B0118","Housing Subsidy","99-NONBV","Capital, Balance Sheet and Control","50Q","Other Balances & Reserves","9912","Personal Account - Creditor","70033874","201208",08/11/2011 00:00:00,489124,"16580","Central Government","REDACTED DATA","COMMUNITIES & LOCAL GOVERNMENT","",,"888848043"
"London Borough of Redbridge","http://opendatacommunities.org/doc/london-borough-council/redbridge","2BENVIRONMEN","Environmental Services","2CWASTECOLLN","Waste Collection","REV","Revenue","R6151","MRS - Household Waste","05-THIRD","Third Party Payments","05H","Private contractors","6915","Contractor Payments","60161061","201208",31/10/2011 00:00:00,188290.69,"83380","Waste Disposal Services","REDACTED DATA","MRS ENVIRONMENTAL SERVICES LTD","2175295","http://opencorporates.com/companies/gb/2175295","524394641"
"London Borough of Redbridge","http://opendatacommunities.org/doc/london-borough-council/redbridge","2BENVIRONMEN","Environmental Services","2CWASTECOLLN","Waste Collection","REV","Revenue","R6211","Kerbside Collection","05-THIRD","Third Party Payments","05H","Private contractors","6915","Contractor Payments","60161061","201208",31/10/2011 00:00:00,124701.55,"83380","Waste Disposal Services","REDACTED DATA","MRS ENVIRONMENTAL SERVICES LTD","2175295","http://opencorporates.com/companies/gb/2175295","524394641"
"London Borough of Redbridge","http://opendatacommunities.org/doc/london-borough-council/redbridge","2BENVIRONMEN","Environmental Services","2CWASTECOLLN","Waste Collection","REV","Revenue","R6152","MRS - Commercial Waste","05-THIRD","Third Party Payments","05H","Private contractors","6915","Contractor Payments","60161061","201208",31/10/2011 00:00:00,31448.79,"83380","Waste Disposal Services","REDACTED DATA","MRS ENVIRONMENTAL SERVICES LTD","2175295","http://opencorporates.com/companies/gb/2175295","524394641"
"London Borough of Redbridge","http://opendatacommunities.org/doc/london-borough-council/redbridge","2BENVIRONMEN","Environmental Services","2CWASTECOLLN","Waste Collection","REV","Revenue","R6206","Recycling - Flats","05-THIRD","Third Party Payments","05H","Private contractors","6915","Contractor Payments","60161061","201208",31/10/2011 00:00:00,13456.66,"83380","Waste Disposal Services","REDACTED DATA","MRS ENVIRONMENTAL SERVICES LTD","2175295","http://opencorporates.com/companies/gb/2175295","524394641"
"London Borough of Redbridge","http://opendatacommunities.org/doc/london-borough-council/redbridge","2BENVIRONMEN","Environmental Services","2CWASTECOLLN","Waste Collection","REV","Revenue","R6215","Garden Waste Collection Service","05-THIRD","Third Party Payments","05H","Private contractors","6915","Contractor Payments","60161061","201208",31/10/2011 00:00:00,7271.36,"83380","Waste Disposal Services","REDACTED DATA","MRS ENVIRONMENTAL SERVICES LTD","2175295","http://opencorporates.com/companies/gb/2175295","524394641"
"London Borough of Redbridge","http://opendatacommunities.org/doc/london-borough-council/redbridge","2BENVIRONMEN","Environmental Services","2CWASTECOLLN","Waste Collection","REV","Revenue","R6151","MRS - Household Waste","02-PREMISES","Premises","02H","Cleaning and domestic supplies","4626","Refuse and Recyc. Contractor Costs","60161061","201208",31/10/2011 00:00:00,7164.02,"83380","Waste Disposal Services","REDACTED DATA","MRS ENVIRONMENTAL SERVICES LTD","2175295","http://opencorporates.com/companies/gb/2175295","524394641"
"London Borough of Redbridge","http://opendatacommunities.org/doc/london-borough-council/redbridge","2BENVIRONMEN","Environmental Services","2CWASTECOLLN","Waste Collection","REV","Revenue","R6150","Garden Waste","05-THIRD","Third Party Payments","05H","Private contractors","6915","Contractor Payments","60161061","201208",31/10/2011 00:00:00,2123.19,"83380","Waste Disposal Services","REDACTED DATA","MRS ENVIRONMENTAL SERVICES LTD","2175295","http://opencorporates.com/companies/gb/2175295","524394641"
"London Borough of Redbridge","http://opendatacommunities.org/doc/london-borough-council/redbridge","2BENVIRONMEN","Environmental Services","2CWASTECOLLN","Waste Collection","REV","Revenue","R6206","Recycling - Flats","02-PREMISES","Premises","02H","Cleaning and domestic supplies","4626","Refuse and Recyc. Contractor Costs","60161061","201208",31/10/2011 00:00:00,809.38,"83380","Waste Disposal Services","REDACTED DATA","MRS ENVIRONMENTAL SERVICES LTD","2175295","http://opencorporates.com/companies/gb/2175295","524394641"
"London Borough of Redbridge","http://opendatacommunities.org/doc/london-borough-council/redbridge","9BNONBVO","Outside the BVACOP Objective Structure","9CNONBVO","Outside the BVACOP Objective Structure","CAP","Capital","C4087","Farnham Green - Add Primary Sch Places","99-NONBV","Capital, Balance Sheet and Control","50E","Capital - Contract Payments","9150","Main Contract","60161657","201208",02/11/2011 00:00:00,310553.56,"21555","Construction Contractors - General","REDACTED DATA","MORGAN SINDALL (CONSTRUCTION) PLC","4273754","http://opencorporates.com/companies/gb/4273754","765365306"
"London Borough of Redbridge","http://opendatacommunities.org/doc/london-borough-council/redbridge","5BGFHOUSING","General Fund Housing","5CHOUSADVICE","Housing Advice","REV","Revenue","R5530","HAC Temporary Accomodation","05-THIRD","Third Party Payments","05H","Private contractors","6916","Leasing Payments To Landlords","70034285","201208",01/11/2011 00:00:00,278016.18,"47846","Letting Agents","REDACTED DATA","THEORI INVESTMENTS LIMITED","4048450","http://opencorporates.com/companies/gb/4048450","773898950"
"London Borough of Redbridge","http://opendatacommunities.org/doc/london-borough-council/redbridge","5BGFHOUSING","General Fund Housing","5CHOUSADVICE","Housing Advice","REV","Revenue","R5530","HAC Temporary Accomodation","05-THIRD","Third Party Payments","05H","Private contractors","6916","Leasing Payments To Landlords","70034285","201208",01/11/2011 00:00:00,37429.8,"47846","Letting Agents","REDACTED DATA","THEORI INVESTMENTS LIMITED","4048450","http://opencorporates.com/companies/gb/4048450","773898950"
"London Borough of Redbridge","http://opendatacommunities.org/doc/london-borough-council/redbridge","5BGFHOUSING","General Fund Housing","5CHOUSADVICE","Housing Advice","REV","Revenue","R5530","HAC Temporary Accomodation","05-THIRD","Third Party Payments","05H","Private contractors","6916","Leasing Payments To Landlords","70034065","201208",31/10/2011 00:00:00,275418.28,"47846","Letting Agents","REDACTED DATA","OMEGA LETTINGS LTD","3662604","http://opencorporates.com/companies/gb/3662604","735892103"
"London Borough of Redbridge","http://opendatacommunities.org/doc/london-borough-council/redbridge","5BGFHOUSING","General Fund Housing","5CHOUSADVICE","Housing Advice","REV","Revenue","R5530","HAC Temporary Accomodation","05-THIRD","Third Party Payments","05H","Private contractors","6916","Leasing Payments To Landlords","70034065","201208",31/10/2011 00:00:00,39252.38,"47846","Letting Agents","REDACTED DATA","OMEGA LETTINGS LTD","3662604","http://opencorporates.com/companies/gb/3662604","735892103"
"London Borough of Redbridge","http://opendatacommunities.org/doc/london-borough-council/redbridge","6BADULTSOCIA","Adult Social Care","6COLDINCMENT","Older People (65 or over) incl. Older Mentally Ill","REV","Revenue","R4435","Sanctuary Care Residential Contracts","05-THIRD","Third Party Payments","05F","Voluntary associations","6802","Residential Homes","70033812","201208",01/11/2011 00:00:00,71298.46,"53350","Nursing Homes","REDACTED DATA","SANCTUARY CARE (ENTERPRISE HOUSE)","4231521","http://opencorporates.com/companies/gb/4231521","732012487"
"London Borough of Redbridge","http://opendatacommunities.org/doc/london-borough-council/redbridge","6BADULTSOCIA","Adult Social Care","6COLDINCMENT","Older People (65 or over) incl. Older Mentally Ill","REV","Revenue","R4435","Sanctuary Care Residential Contracts","05-THIRD","Third Party Payments","05F","Voluntary associations","6802","Residential Homes","70033812","201208",01/11/2011 00:00:00,69506.02,"53350","Nursing Homes","REDACTED DATA","SANCTUARY CARE (ENTERPRISE HOUSE)","4231521","http://opencorporates.com/companies/gb/4231521","732012487"
"London Borough of Redbridge","http://opendatacommunities.org/doc/london-borough-council/redbridge","6BADULTSOCIA","Adult Social Care","6COLDINCMENT","Older People (65 or over) incl. Older Mentally Ill","REV","Revenue","R4435","Sanctuary Care Residential Contracts","05-THIRD","Third Party Payments","05F","Voluntary associations","6802","Residential Homes","70033812","201208",01/11/2011 00:00:00,62548.97,"53350","Nursing Homes","REDACTED DATA","SANCTUARY CARE (ENTERPRISE HOUSE)","4231521","http://opencorporates.com/companies/gb/4231521","732012487"
"London Borough of Redbridge","http://opendatacommunities.org/doc/london-borough-council/redbridge","6BADULTSOCIA","Adult Social Care","6COLDINCMENT","Older People (65 or over) incl. Older Mentally Ill","REV","Revenue","R4435","Sanctuary Care Residential Contracts","05-THIRD","Third Party Payments","05F","Voluntary associations","6802","Residential Homes","70033812","201208",01/11/2011 00:00:00,57594.25,"53350","Nursing Homes","REDACTED DATA","SANCTUARY CARE (ENTERPRISE HOUSE)","4231521","http://opencorporates.com/companies/gb/4231521","732012487"
"London Borough of Redbridge","http://opendatacommunities.org/doc/london-borough-council/redbridge","6BADULTSOCIA","Adult Social Care","6COLDINCMENT","Older People (65 or over) incl. Older Mentally Ill","REV","Revenue","R4435","Sanctuary Care Residential Contracts","05-THIRD","Third Party Payments","05F","Voluntary associations","6802","Residential Homes","70033812","201208",01/11/2011 00:00:00,56404.24,"53350","Nursing Homes","REDACTED DATA","SANCTUARY CARE (ENTERPRISE HOUSE)","4231521","http://opencorporates.com/companies/gb/4231521","732012487"
"London Borough of Redbridge","http://opendatacommunities.org/doc/london-borough-council/redbridge","5BGFHOUSING","General Fund Housing","5CHOUSADVICE","Housing Advice","REV","Revenue","R5530","HAC Temporary Accomodation","05-THIRD","Third Party Payments","05H","Private contractors","6916","Leasing Payments To Landlords","70034067","201208",31/10/2011 00:00:00,253155.45,"47846","Letting Agents","REDACTED DATA","FINEFAIR CONSULTANCY (LEASING)","",,""
"London Borough of Redbridge","http://opendatacommunities.org/doc/london-borough-council/redbridge","5BGFHOUSING","General Fund Housing","5CHOUSADVICE","Housing Advice","REV","Revenue","R5530","HAC Temporary Accomodation","05-THIRD","Third Party Payments","05H","Private contractors","6916","Leasing Payments To Landlords","70034067","201208",31/10/2011 00:00:00,33432.41,"47846","Letting Agents","REDACTED DATA","FINEFAIR CONSULTANCY (LEASING)","",,""
"London Borough of Redbridge","http://opendatacommunities.org/doc/london-borough-council/redbridge","3BINDSCHFUND","Individual School Funds","3CDELSPECIAL","Delegated Individual Special School Budgets","REV","Revenue","R3323","Little Heath Foundation School","99-NONBV","Capital, Balance Sheet and Control","99B","Accounting & Control","7451","LMS Bank Accounts Pilot","70033861","201208",11/11/2011 00:00:00,251862,"67981","Schools - Local Authority","REDACTED DATA","LITTLE HEATH SCHOOL A/C","",,""
"London Borough of Redbridge","http://opendatacommunities.org/doc/london-borough-council/redbridge","3BLEACENTFND","LEA Centrally Held School Funds","3CASSURACCES","Assuring Access to Schools","REV","Revenue","R3859","PFI Sch LEA Liability","04-SUPPLIES","Supplies And Services","04I","PFI and Public Private Partnership Schemes","6000","PFI - Unitary Payment","60160940","201208",01/11/2011 00:00:00,194495.58,"21557","Construction Management","REDACTED DATA","NU SCHOOLS FOR REDBRIDGE LTD","",,"858914279"
"London Borough of Redbridge","http://opendatacommunities.org/doc/london-borough-council/redbridge","3BNONSCHFUND","Non-School Funding","3CNONSCH","Non Schools","REV","Revenue","R2090","SEN Recoupment DSG","05-THIRD","Third Party Payments","05C","Other local authorities","6650","Other Local Authorities","70033460","201208",07/10/2011 00:00:00,229151.27,"48583","Local Government","REDACTED DATA","LONDON BOROUGH OF BARKING & DAGENHAM","",,""
"London Borough of Redbridge","http://opendatacommunities.org/doc/london-borough-council/redbridge","9BNONBVO","Outside the BVACOP Objective Structure","9CNONBVO","Outside the BVACOP Objective Structure","CAP","Capital","C4086","Fullwood - Add Primary Sch Places","99-NONBV","Capital, Balance Sheet and Control","50E","Capital - Contract Payments","9150","Main Contract","60162494","201208",25/11/2011 00:00:00,188098.38,"11371","Building Refurbishment and Restoration Contractors","REDACTED DATA","NEILCOTT CONSTRUCTION LTD","1151561","http://opencorporates.com/companies/gb/1151561","532907349"
"London Borough of Redbridge","http://opendatacommunities.org/doc/london-borough-council/redbridge","3BLEACENTFND","LEA Centrally Held School Funds","3CNONSCH","Non Schools","REV","Revenue","R3256","ISS Free School Meals Contract","04-SUPPLIES","Supplies And Services","04B","Catering","5603","Hospitality (Catering)","60160637","201208",21/10/2011 00:00:00,145824.9,"16270","Catering Schools","REDACTED DATA","ISS CATERHOUSE- DIV OF ISS MEDICLEAN LTD(INVOICES)","1659837","http://opencorporates.com/companies/gb/1659837","417115775"
"London Borough of Redbridge","http://opendatacommunities.org/doc/london-borough-council/redbridge","5BGFHOUSING","General Fund Housing","5CHOUSADVICE","Housing Advice","REV","Revenue","R5530","HAC Temporary Accomodation","05-THIRD","Third Party Payments","05H","Private contractors","6916","Leasing Payments To Landlords","70033541","201208",30/09/2011 00:00:00,189332.93,"47846","Letting Agents","REDACTED DATA","DABORA CONWAY LTD","2623262","http://opencorporates.com/companies/gb/2623262",""
"London Borough of Redbridge","http://opendatacommunities.org/doc/london-borough-council/redbridge","5BGFHOUSING","General Fund Housing","5CHOUSADVICE","Housing Advice","REV","Revenue","R5530","HAC Temporary Accomodation","05-THIRD","Third Party Payments","05H","Private contractors","6916","Leasing Payments To Landlords","70033541","201208",30/09/2011 00:00:00,25070.64,"47846","Letting Agents","REDACTED DATA","DABORA CONWAY LTD","2623262","http://opencorporates.com/companies/gb/2623262",""
"London Borough of Redbridge","http://opendatacommunities.org/doc/london-borough-council/redbridge","5BGFHOUSING","General Fund Housing","5CHOUSADVICE","Housing Advice","REV","Revenue","R5530","HAC Temporary Accomodation","05-THIRD","Third Party Payments","05H","Private contractors","6916","Leasing Payments To Landlords","70034445","201208",31/10/2011 00:00:00,188203.75,"47846","Letting Agents","REDACTED DATA","DABORA CONWAY LTD","2623262","http://opencorporates.com/companies/gb/2623262",""
"London Borough of Redbridge","http://opendatacommunities.org/doc/london-borough-council/redbridge","5BGFHOUSING","General Fund Housing","5CHOUSADVICE","Housing Advice","REV","Revenue","R5530","HAC Temporary Accomodation","05-THIRD","Third Party Payments","05H","Private contractors","6916","Leasing Payments To Landlords","70034445","201208",31/10/2011 00:00:00,24931.29,"47846","Letting Agents","REDACTED DATA","DABORA CONWAY LTD","2623262","http://opencorporates.com/companies/gb/2623262",""
"London Borough of Redbridge","http://opendatacommunities.org/doc/london-borough-council/redbridge","5BGFHOUSING","General Fund Housing","5CHOUSADVICE","Housing Advice","REV","Revenue","R5530","HAC Temporary Accomodation","05-THIRD","Third Party Payments","05H","Private contractors","6912","Bed & Breakfast Charges","70033958","201208",11/11/2011 00:00:00,201860,"47846","Letting Agents","REDACTED DATA","LETTING INTERNATIONAL LTD","3425414","http://opencorporates.com/companies/gb/3425414","710849440"
"London Borough of Redbridge","http://opendatacommunities.org/doc/london-borough-council/redbridge","9BNONBVO","Outside the BVACOP Objective Structure","9CNONBVO","Outside the BVACOP Objective Structure","CAP","Capital","C4036","Hainault Forest High School","99-NONBV","Capital, Balance Sheet and Control","50E","Capital - Contract Payments","9150","Main Contract","60162459","201208",25/11/2011 00:00:00,153636.21,"11040","Builders","REDACTED DATA","WATES CONSTRUCTION LTD","1977948","http://opencorporates.com/companies/gb/1977948",""
"London Borough of Redbridge","http://opendatacommunities.org/doc/london-borough-council/redbridge","3BLEACENTFND","LEA Centrally Held School Funds","3CNONSCH","Non Schools","REV","Revenue","R3256","ISS Free School Meals Contract","04-SUPPLIES","Supplies And Services","04B","Catering","5603","Hospitality (Catering)","60162227","201208",18/11/2011 00:00:00,111206.55,"16270","Catering Schools","REDACTED DATA","ISS CATERHOUSE- DIV OF ISS MEDICLEAN LTD(INVOICES)","1659837","http://opencorporates.com/companies/gb/1659837","417115775"
"London Borough of Redbridge","http://opendatacommunities.org/doc/london-borough-council/redbridge","9BNONBVO","Outside the BVACOP Objective Structure","9CNONBVO","Outside the BVACOP Objective Structure","REV","Revenue","R5131","Repairs and Maintenance - MFS","02-PREMISES","Premises","02A","Repairs, alteration and maintenance of buildings","3027","Miscellaneous Maintenance","70033579","201208",12/10/2011 00:00:00,128772.56,"61961","Property Maintenance & Repairs","REDACTED DATA","MORRISONS FACILITIES SERVICES LTD","120550","http://opencorporates.com/companies/gb/120550","297280913"
"London Borough of Redbridge","http://opendatacommunities.org/doc/london-borough-council/redbridge","9BNONBVO","Outside the BVACOP Objective Structure","9CNONBVO","Outside the BVACOP Objective Structure","REV","Revenue","R5131","Repairs and Maintenance - MFS","99-NONBV","Capital, Balance Sheet and Control","99B","Accounting & Control","7453","Insurance Claims - General","70033579","201208",12/10/2011 00:00:00,13216.17,"61961","Property Maintenance & Repairs","REDACTED DATA","MORRISONS FACILITIES SERVICES LTD","120550","http://opencorporates.com/companies/gb/120550","297280913"
"London Borough of Redbridge","http://opendatacommunities.org/doc/london-borough-council/redbridge","6BADULTSOCIA","Adult Social Care","6CADPHYSDIS","Adults Under 65 with Phys Disab or Sensory Impair","REV","Revenue","R4138","Integrated Community Equipment Services (ICES)","04-SUPPLIES","Supplies And Services","04K","Miscellaneous expenses","6239","Occupational Therapy Equip","60161378","201208",31/10/2011 00:00:00,131244.35,"51520","Mobility Equipment","REDACTED DATA","MILLBROOK HEALTHCARE LTD","833987","http://opencorporates.com/companies/gb/833987","675991080"
"London Borough of Redbridge","http://opendatacommunities.org/doc/london-borough-council/redbridge","9BNONBVO","Outside the BVACOP Objective Structure","9CNONBVO","Outside the BVACOP Objective Structure","CAP","Capital","C4088","Loxford - Add Primary Sch Places","99-NONBV","Capital, Balance Sheet and Control","50E","Capital - Contract Payments","9150","Main Contract","60161176","201208",12/10/2011 00:00:00,129001.3,"21555","Construction Contractors - General","REDACTED DATA","NORTHSTONE NI LTD  T/AS FARRANS (CONSTRUCTION) LTD","1654","http://opencorporates.com/companies/gb/1654","252257472"
"London Borough of Redbridge","http://opendatacommunities.org/doc/london-borough-council/redbridge","4BTRAFMGT&RS","Traffic Management & Road Safety","4CPUBLICTRAN","Public Transport","REV","Revenue","R5810","Concessionary Travel","06-TRANSFER","Transfer Payments","06C","Housing Benefits","7100","Concessionary Fares","60161166","201208",02/11/2011 00:00:00,154573,"48583","Local Government","REDACTED DATA","CITY OF LONDON(LONDON COUNCILS)","",,"766069205"
"London Borough of Redbridge","http://opendatacommunities.org/doc/london-borough-council/redbridge","9BNONBVO","Outside the BVACOP Objective Structure","9CNONBVO","Outside the BVACOP Objective Structure","CAP","Capital","C4086","Fullwood - Add Primary Sch Places","99-NONBV","Capital, Balance Sheet and Control","50E","Capital - Contract Payments","9150","Main Contract","60162493","201208",28/11/2011 00:00:00,121601.01,"11371","Building Refurbishment and Restoration Contractors","REDACTED DATA","NEILCOTT CONSTRUCTION LTD","1151561","http://opencorporates.com/companies/gb/1151561","532907349"
"London Borough of Redbridge","http://opendatacommunities.org/doc/london-borough-council/redbridge","9BNONBVO","Outside the BVACOP Objective Structure","9CNONBVO","Outside the BVACOP Objective Structure","CAP","Capital","C2104","Decent Homes","99-NONBV","Capital, Balance Sheet and Control","50E","Capital - Contract Payments","9150","Main Contract","70034490","201208",15/11/2011 00:00:00,120885.27,"61896","Property & Estate Management","REDACTED DATA","MITIE PROPERTY SERVICES(UK) LTD SOUTHERN","2935593","http://opencorporates.com/companies/gb/2935593","633466535"
"London Borough of Redbridge","http://opendatacommunities.org/doc/london-borough-council/redbridge","3BLEACENTFND","LEA Centrally Held School Funds","3CSCHSTRATMG","Schools Strategic Management","REV","Revenue","R3001","Bldgs and Dev Branch","01-EMPLOYEES","Employees","01A","Direct employee expenses","4","Agency Staff - Pay","3207596","201208",15/11/2011 00:00:00,2466.42,"31230","Employment & Recruitment Agencies","REDACTED DATA","ADECCO UK LIMITED","",,"232347975"
"London Borough of Redbridge","http://opendatacommunities.org/doc/london-borough-council/redbridge","1BOTHEROPI&E","Other Operating Income & Expenditure","1CTRADSURDEF","Trading Account Surpluses & Deficits","REV","Revenue","R9152","Financial Services","01-EMPLOYEES","Employees","01A","Direct employee expenses","4","Agency Staff - Pay","3207596","201208",15/11/2011 00:00:00,2260.8,"31230","Employment & Recruitment Agencies","REDACTED DATA","ADECCO UK LIMITED","",,"232347975"
"London Borough of Redbridge","http://opendatacommunities.org/doc/london-borough-council/redbridge","3BLEACENTFND","LEA Centrally Held School Funds","3CSCHSTRATMG","Schools Strategic Management","REV","Revenue","R3001","Bldgs and Dev Branch","01-EMPLOYEES","Employees","01A","Direct employee expenses","4","Agency Staff - Pay","3207596","201208",15/11/2011 00:00:00,2249.78,"31230","Employment & Recruitment Agencies","REDACTED DATA","ADECCO UK LIMITED","",,"232347975"
"London Borough of Redbridge","http://opendatacommunities.org/doc/london-borough-council/redbridge","3BLEACENTFND","LEA Centrally Held School Funds","3CSCHSTRATMG","Schools Strategic Management","REV","Revenue","R3001","Bldgs and Dev Branch","01-EMPLOYEES","Employees","01A","Direct employee expenses","4","Agency Staff - Pay","3207596","201208",15/11/2011 00:00:00,2233.11,"31230","Employment & Recruitment Agencies","REDACTED DATA","ADECCO UK LIMITED","",,"232347975"
"London Borough of Redbridge","http://opendatacommunities.org/doc/london-borough-council/redbridge","3BLEACENTFND","LEA Centrally Held School Funds","3CSCHSTRATMG","Schools Strategic Management","REV","Revenue","R3001","Bldgs and Dev Branch","01-EMPLOYEES","Employees","01A","Direct employee expenses","4","Agency Staff - Pay","3207596","201208",15/11/2011 00:00:00,2166.45,"31230","Employment & Recruitment Agencies","REDACTED DATA","ADECCO UK LIMITED","",,"232347975"
"London Borough of Redbridge","http://opendatacommunities.org/doc/london-borough-council/redbridge","3BLEACENTFND","LEA Centrally Held School Funds","3CSCHSTRATMG","Schools Strategic Management","REV","Revenue","R3001","Bldgs and Dev Branch","01-EMPLOYEES","Employees","01A","Direct employee expenses","4","Agency Staff - Pay","3207596","201208",15/11/2011 00:00:00,2149.79,"31230","Employment & Recruitment Agencies","REDACTED DATA","ADECCO UK LIMITED","",,"232347975"
"London Borough of Redbridge","http://opendatacommunities.org/doc/london-borough-council/redbridge","3BLEACENTFND","LEA Centrally Held School Funds","3CSCHSTRATMG","Schools Strategic Management","REV","Revenue","R3001","Bldgs and Dev Branch","01-EMPLOYEES","Employees","01A","Direct employee expenses","4","Agency Staff - Pay","3207596","201208",15/11/2011 00:00:00,1516.52,"31230","Employment & Recruitment Agencies","REDACTED DATA","ADECCO UK LIMITED","",,"232347975"
"London Borough of Redbridge","http://opendatacommunities.org/doc/london-borough-council/redbridge","3BNONSCHFUND","Non-School Funding","3CNONSCH","Non Schools","REV","Revenue","R3960","FiND","01-EMPLOYEES","Employees","01A","Direct employee expenses","4","Agency Staff - Pay","3207596","201208",15/11/2011 00:00:00,823.19,"31230","Employment & Recruitment Agencies","REDACTED DATA","ADECCO UK LIMITED","",,"232347975"
"London Borough of Redbridge","http://opendatacommunities.org/doc/london-borough-council/redbridge","1BOTHEROPI&E","Other Operating Income & Expenditure","1CTRADSURDEF","Trading Account Surpluses & Deficits","REV","Revenue","R9252","IT Services","01-EMPLOYEES","Employees","01A","Direct employee expenses","4","Agency Staff - Pay","3207596","201208",15/11/2011 00:00:00,788.19,"31230","Employment & Recruitment Agencies","REDACTED DATA","ADECCO UK LIMITED","",,"232347975"
"London Borough of Redbridge","http://opendatacommunities.org/doc/london-borough-council/redbridge","5BGFHOUSING","General Fund Housing","5CHOUSADVICE","Housing Advice","REV","Revenue","R5530","HAC Temporary Accomodation","01-EMPLOYEES","Employees","01A","Direct employee expenses","4","Agency Staff - Pay","3207596","201208",15/11/2011 00:00:00,785.11,"31230","Employment & Recruitment Agencies","REDACTED DATA","ADECCO UK LIMITED","",,"232347975"
"London Borough of Redbridge","http://opendatacommunities.org/doc/london-borough-council/redbridge","3BNONSCHFUND","Non-School Funding","3CNONSCH","Non Schools","REV","Revenue","R3960","FiND","01-EMPLOYEES","Employees","01A","Direct employee expenses","4","Agency Staff - Pay","3207596","201208",15/11/2011 00:00:00,769.79,"31230","Employment & Recruitment Agencies","REDACTED DATA","ADECCO UK LIMITED","",,"232347975"
"London Borough of Redbridge","http://opendatacommunities.org/doc/london-borough-council/redbridge","1BOTHEROPI&E","Other Operating Income & Expenditure","1CTRADSURDEF","Trading Account Surpluses & Deficits","REV","Revenue","R9252","IT Services","01-EMPLOYEES","Employees","01A","Direct employee expenses","4","Agency Staff - Pay","3207596","201208",15/11/2011 00:00:00,766.5,"31230","Employment & Recruitment Agencies","REDACTED DATA","ADECCO UK LIMITED","",,"232347975"
"London Borough of Redbridge","http://opendatacommunities.org/doc/london-borough-council/redbridge","1BOTHEROPI&E","Other Operating Income & Expenditure","1CTRADSURDEF","Trading Account Surpluses & Deficits","REV","Revenue","R9252","IT Services","01-EMPLOYEES","Employees","01A","Direct employee expenses","4","Agency Staff - Pay","3207596","201208",15/11/2011 00:00:00,762.16,"31230","Employment & Recruitment Agencies","REDACTED DATA","ADECCO UK LIMITED","",,"232347975"
"London Borough of Redbridge","http://opendatacommunities.org/doc/london-borough-council/redbridge","1BOTHEROPI&E","Other Operating Income & Expenditure","1CTRADSURDEF","Trading Account Surpluses & Deficits","REV","Revenue","R9460","Human Resources misc","01-EMPLOYEES","Employees","01A","Direct employee expenses","4","Agency Staff - Pay","3207596","201208",15/11/2011 00:00:00,760.06,"31230","Employment & Recruitment Agencies","REDACTED DATA","ADECCO UK LIMITED","",,"232347975"
"London Borough of Redbridge","http://opendatacommunities.org/doc/london-borough-council/redbridge","1BOTHEROPI&E","Other Operating Income & Expenditure","1CTRADSURDEF","Trading Account Surpluses & Deficits","REV","Revenue","R9252","IT Services","01-EMPLOYEES","Employees","01A","Direct employee expenses","4","Agency Staff - Pay","3207596","201208",15/11/2011 00:00:00,757.82,"31230","Employment & Recruitment Agencies","REDACTED DATA","ADECCO UK LIMITED","",,"232347975"
"London Borough of Redbridge","http://opendatacommunities.org/doc/london-borough-council/redbridge","3BNONSCHFUND","Non-School Funding","3CNONSCH","Non Schools","REV","Revenue","R3960","FiND","01-EMPLOYEES","Employees","01A","Direct employee expenses","4","Agency Staff - Pay","3207596","201208",15/11/2011 00:00:00,752.05,"31230","Employment & Recruitment Agencies","REDACTED DATA","ADECCO UK LIMITED","",,"232347975"
"London Borough of Redbridge","http://opendatacommunities.org/doc/london-borough-council/redbridge","5BGFHOUSING","General Fund Housing","5CHOUSADVICE","Housing Advice","REV","Revenue","R5530","HAC Temporary Accomodation","01-EMPLOYEES","Employees","01A","Direct employee expenses","4","Agency Staff - Pay","3207596","201208",15/11/2011 00:00:00,743.77,"31230","Employment & Recruitment Agencies","REDACTED DATA","ADECCO UK LIMITED","",,"232347975"
"London Borough of Redbridge","http://opendatacommunities.org/doc/london-borough-council/redbridge","5BGFHOUSING","General Fund Housing","5CHOUMGTSUPP","Housing Management & Support Services","REV","Revenue","R5529","HAC Assessment","01-EMPLOYEES","Employees","01A","Direct employee expenses","4","Agency Staff - Pay","3207596","201208",15/11/2011 00:00:00,737.92,"31230","Employment & Recruitment Agencies","REDACTED DATA","ADECCO UK LIMITED","",,"232347975"
"London Borough of Redbridge","http://opendatacommunities.org/doc/london-borough-council/redbridge","5BGFHOUSING","General Fund Housing","5CHOUSADVICE","Housing Advice","REV","Revenue","R5530","HAC Temporary Accomodation","01-EMPLOYEES","Employees","01A","Direct employee expenses","4","Agency Staff - Pay","3207596","201208",15/11/2011 00:00:00,729.81,"31230","Employment & Recruitment Agencies","REDACTED DATA","ADECCO UK LIMITED","",,"232347975"
"London Borough of Redbridge","http://opendatacommunities.org/doc/london-borough-council/redbridge","1BOTHEROPI&E","Other Operating Income & Expenditure","1CTRADSURDEF","Trading Account Surpluses & Deficits","REV","Revenue","R9460","Human Resources misc","01-EMPLOYEES","Employees","01A","Direct employee expenses","4","Agency Staff - Pay","3207596","201208",15/11/2011 00:00:00,729.6,"31230","Employment & Recruitment Agencies","REDACTED DATA","ADECCO UK LIMITED","",,"232347975"
"London Borough of Redbridge","http://opendatacommunities.org/doc/london-borough-council/redbridge","5BGFHOUSING","General Fund Housing","5CHOUMGTSUPP","Housing Management & Support Services","REV","Revenue","R5529","HAC Assessment","01-EMPLOYEES","Employees","01A","Direct employee expenses","4","Agency Staff - Pay","3207596","201208",15/11/2011 00:00:00,695.09,"31230","Employment & Recruitment Agencies","REDACTED DATA","ADECCO UK LIMITED","",,"232347975"
"London Borough of Redbridge","http://opendatacommunities.org/doc/london-borough-council/redbridge","3BNONSCHFUND","Non-School Funding","3CNONSCH","Non Schools","REV","Revenue","R3960","FiND","01-EMPLOYEES","Employees","01A","Direct employee expenses","4","Agency Staff - Pay","3207596","201208",15/11/2011 00:00:00,674.86,"31230","Employment & Recruitment Agencies","REDACTED DATA","ADECCO UK LIMITED","",,"232347975"
"London Borough of Redbridge","http://opendatacommunities.org/doc/london-borough-council/redbridge","5BGFHOUSING","General Fund Housing","5CHOUSADVICE","Housing Advice","REV","Revenue","R5530","HAC Temporary Accomodation","01-EMPLOYEES","Employees","01A","Direct employee expenses","4","Agency Staff - Pay","3207596","201208",15/11/2011 00:00:00,663.95,"31230","Employment & Recruitment Agencies","REDACTED DATA","ADECCO UK LIMITED","",,"232347975"
"London Borough of Redbridge","http://opendatacommunities.org/doc/london-borough-council/redbridge","1BOTHEROPI&E","Other Operating Income & Expenditure","1CTRADSURDEF","Trading Account Surpluses & Deficits","REV","Revenue","R9460","Human Resources misc","01-EMPLOYEES","Employees","01A","Direct employee expenses","4","Agency Staff - Pay","3207596","201208",15/11/2011 00:00:00,662.56,"31230","Employment & Recruitment Agencies","REDACTED DATA","ADECCO UK LIMITED","",,"232347975"
"London Borough of Redbridge","http://opendatacommunities.org/doc/london-borough-council/redbridge","5BGFHOUSING","General Fund Housing","5CHOUMGTSUPP","Housing Management & Support Services","REV","Revenue","R5529","HAC Assessment","01-EMPLOYEES","Employees","01A","Direct employee expenses","4","Agency Staff - Pay","3207596","201208",15/11/2011 00:00:00,647.5,"31230","Employment & Recruitment Agencies","REDACTED DATA","ADECCO UK LIMITED","",,"232347975"
"London Borough of Redbridge","http://opendatacommunities.org/doc/london-borough-council/redbridge","5BGFHOUSING","General Fund Housing","5CHOUSADVICE","Housing Advice","REV","Revenue","R5530","HAC Temporary Accomodation","01-EMPLOYEES","Employees","01A","Direct employee expenses","4","Agency Staff - Pay","3207596","201208",15/11/2011 00:00:00,636.85,"31230","Employment & Recruitment Agencies","REDACTED DATA","ADECCO UK LIMITED","",,"232347975"
"London Borough of Redbridge","http://opendatacommunities.org/doc/london-borough-council/redbridge","5BGFHOUSING","General Fund Housing","5CHOUSADVICE","Housing Advice","REV","Revenue","R5530","HAC Temporary Accomodation","01-EMPLOYEES","Employees","01A","Direct employee expenses","4","Agency Staff - Pay","3207596","201208",15/11/2011 00:00:00,624.56,"31230","Employment & Recruitment Agencies","REDACTED DATA","ADECCO UK LIMITED","",,"232347975"
"London Borough of Redbridge","http://opendatacommunities.org/doc/london-borough-council/redbridge","1BOTHEROPI&E","Other Operating Income & Expenditure","1CTRADSURDEF","Trading Account Surpluses & Deficits","REV","Revenue","R9460","Human Resources misc","01-EMPLOYEES","Employees","01A","Direct employee expenses","4","Agency Staff - Pay","3207596","201208",15/11/2011 00:00:00,616.48,"31230","Employment & Recruitment Agencies","REDACTED DATA","ADECCO UK LIMITED","",,"232347975"
"London Borough of Redbridge","http://opendatacommunities.org/doc/london-borough-council/redbridge","5BGFHOUSING","General Fund Housing","5CHOUSADVICE","Housing Advice","REV","Revenue","R5530","HAC Temporary Accomodation","01-EMPLOYEES","Employees","01A","Direct employee expenses","4","Agency Staff - Pay","3207596","201208",15/11/2011 00:00:00,615.06,"31230","Employment & Recruitment Agencies","REDACTED DATA","ADECCO UK LIMITED","",,"232347975"
"London Borough of Redbridge","http://opendatacommunities.org/doc/london-borough-council/redbridge","5BGFHOUSING","General Fund Housing","5CHOUSADVICE","Housing Advice","REV","Revenue","R5530","HAC Temporary Accomodation","01-EMPLOYEES","Employees","01A","Direct employee expenses","4","Agency Staff - Pay","3207596","201208",15/11/2011 00:00:00,612.27,"31230","Employment & Recruitment Agencies","REDACTED DATA","ADECCO UK LIMITED","",,"232347975"
"London Borough of Redbridge","http://opendatacommunities.org/doc/london-borough-council/redbridge","1BOTHEROPI&E","Other Operating Income & Expenditure","1CTRADSURDEF","Trading Account Surpluses & Deficits","REV","Revenue","R9460","Human Resources misc","01-EMPLOYEES","Employees","01A","Direct employee expenses","4","Agency Staff - Pay","3207596","201208",15/11/2011 00:00:00,603.64,"31230","Employment & Recruitment Agencies","REDACTED DATA","ADECCO UK LIMITED","",,"232347975"
"London Borough of Redbridge","http://opendatacommunities.org/doc/london-borough-council/redbridge","1BOTHEROPI&E","Other Operating Income & Expenditure","1CTRADSURDEF","Trading Account Surpluses & Deficits","REV","Revenue","R9460","Human Resources misc","01-EMPLOYEES","Employees","01A","Direct employee expenses","4","Agency Staff - Pay","3207596","201208",15/11/2011 00:00:00,599.39,"31230","Employment & Recruitment Agencies","REDACTED DATA","ADECCO UK LIMITED","",,"232347975"
"London Borough of Redbridge","http://opendatacommunities.org/doc/london-borough-council/redbridge","1BOTHEROPI&E","Other Operating Income & Expenditure","1CTRADSURDEF","Trading Account Surpluses & Deficits","REV","Revenue","R9460","Human Resources misc","01-EMPLOYEES","Employees","01A","Direct employee expenses","4","Agency Staff - Pay","3207596","201208",15/11/2011 00:00:00,597.96,"31230","Employment & Recruitment Agencies","REDACTED DATA","ADECCO UK LIMITED","",,"232347975"
"London Borough of Redbridge","http://opendatacommunities.org/doc/london-borough-council/redbridge","5BGFHOUSING","General Fund Housing","5CHOUMGTSUPP","Housing Management & Support Services","REV","Revenue","R5529","HAC Assessment","01-EMPLOYEES","Employees","01A","Direct employee expenses","4","Agency Staff - Pay","3207596","201208",15/11/2011 00:00:00,595.15,"31230","Employment & Recruitment Agencies","REDACTED DATA","ADECCO UK LIMITED","",,"232347975"
"London Borough of Redbridge","http://opendatacommunities.org/doc/london-borough-council/redbridge","1BOTHEROPI&E","Other Operating Income & Expenditure","1CTRADSURDEF","Trading Account Surpluses & Deficits","REV","Revenue","R9460","Human Resources misc","01-EMPLOYEES","Employees","01A","Direct employee expenses","4","Agency Staff - Pay","3207596","201208",15/11/2011 00:00:00,590.37,"31230","Employment & Recruitment Agencies","REDACTED DATA","ADECCO UK LIMITED","",,"232347975"
"London Borough of Redbridge","http://opendatacommunities.org/doc/london-borough-council/redbridge","3BLEACENTFND","LEA Centrally Held School Funds","3CNONSCH","Non Schools","REV","Revenue","R2006","SEN Assessment Team DSG","01-EMPLOYEES","Employees","01A","Direct employee expenses","4","Agency Staff - Pay","3207596","201208",15/11/2011 00:00:00,584.08,"31230","Employment & Recruitment Agencies","REDACTED DATA","ADECCO UK LIMITED","",,"232347975"
"London Borough of Redbridge","http://opendatacommunities.org/doc/london-borough-council/redbridge","5BGFHOUSING","General Fund Housing","5CHOUMGTSUPP","Housing Management & Support Services","REV","Revenue","R5500","Housing Advice Centre","01-EMPLOYEES","Employees","01A","Direct employee expenses","4","Agency Staff - Pay","3207596","201208",15/11/2011 00:00:00,580.07,"31230","Employment & Recruitment Agencies","REDACTED DATA","ADECCO UK LIMITED","",,"232347975"
"London Borough of Redbridge","http://opendatacommunities.org/doc/london-borough-council/redbridge","5BGFHOUSING","General Fund Housing","5CHOUMGTSUPP","Housing Management & Support Services","REV","Revenue","R5500","Housing Advice Centre","01-EMPLOYEES","Employees","01A","Direct employee expenses","4","Agency Staff - Pay","3207596","201208",15/11/2011 00:00:00,580.07,"31230","Employment & Recruitment Agencies","REDACTED DATA","ADECCO UK LIMITED","",,"232347975"
"London Borough of Redbridge","http://opendatacommunities.org/doc/london-borough-council/redbridge","5BGFHOUSING","General Fund Housing","5CHOUMGTSUPP","Housing Management & Support Services","REV","Revenue","R5500","Housing Advice Centre","01-EMPLOYEES","Employees","01A","Direct employee expenses","4","Agency Staff - Pay","3207596","201208",15/11/2011 00:00:00,576.04,"31230","Employment & Recruitment Agencies","REDACTED DATA","ADECCO UK LIMITED","",,"232347975"
"London Borough of Redbridge","http://opendatacommunities.org/doc/london-borough-council/redbridge","6BSOCIALSERV","Social Services","6CCHILLOOKED","Children Looked After","REV","Revenue","R2140","CQ and F - Safeguarding and Care Planning Soc Care","01-EMPLOYEES","Employees","01A","Direct employee expenses","4","Agency Staff - Pay","3207596","201208",15/11/2011 00:00:00,560.3,"31230","Employment & Recruitment Agencies","REDACTED DATA","ADECCO UK LIMITED","",,"232347975"
"London Borough of Redbridge","http://opendatacommunities.org/doc/london-borough-council/redbridge","5BGFHOUSING","General Fund Housing","5CHOUMGTSUPP","Housing Management & Support Services","REV","Revenue","R5529","HAC Assessment","01-EMPLOYEES","Employees","01A","Direct employee expenses","4","Agency Staff - Pay","3207596","201208",15/11/2011 00:00:00,558.21,"31230","Employment & Recruitment Agencies","REDACTED DATA","ADECCO UK LIMITED","",,"232347975"
"London Borough of Redbridge","http://opendatacommunities.org/doc/london-borough-council/redbridge","5BGFHOUSING","General Fund Housing","5CHOUMGTSUPP","Housing Management & Support Services","REV","Revenue","R5529","HAC Assessment","01-EMPLOYEES","Employees","01A","Direct employee expenses","4","Agency Staff - Pay","3207596","201208",15/11/2011 00:00:00,558.21,"31230","Employment & Recruitment Agencies","REDACTED DATA","ADECCO UK LIMITED","",,"232347975"
"London Borough of Redbridge","http://opendatacommunities.org/doc/london-borough-council/redbridge","5BGFHOUSING","General Fund Housing","5CHOUSADVICE","Housing Advice","REV","Revenue","R5530","HAC Temporary Accomodation","01-EMPLOYEES","Employees","01A","Direct employee expenses","4","Agency Staff - Pay","3207596","201208",15/11/2011 00:00:00,554.65,"31230","Employment & Recruitment Agencies","REDACTED DATA","ADECCO UK LIMITED","",,"232347975"
"London Borough of Redbridge","http://opendatacommunities.org/doc/london-borough-council/redbridge","3BLEACENTFND","LEA Centrally Held School Funds","3CFACILIMPRO","Facilitating School Improvement","REV","Revenue","R3240","Advisers/Inspectors","01-EMPLOYEES","Employees","01A","Direct employee expenses","4","Agency Staff - Pay","3207596","201208",15/11/2011 00:00:00,552.88,"31230","Employment & Recruitment Agencies","REDACTED DATA","ADECCO UK LIMITED","",,"232347975"
"London Borough of Redbridge","http://opendatacommunities.org/doc/london-borough-council/redbridge","3BNONSCHFUND","Non-School Funding","3CNONSCH","Non Schools","REV","Revenue","R2041","CLOSED - South Childrens Centre","01-EMPLOYEES","Employees","01A","Direct employee expenses","4","Agency Staff - Pay","3207596","201208",15/11/2011 00:00:00,552.88,"31230","Employment & Recruitment Agencies","REDACTED DATA","ADECCO UK LIMITED","",,"232347975"
"London Borough of Redbridge","http://opendatacommunities.org/doc/london-borough-council/redbridge","5BGFHOUSING","General Fund Housing","5CHOUMGTSUPP","Housing Management & Support Services","REV","Revenue","R5500","Housing Advice Centre","01-EMPLOYEES","Employees","01A","Direct employee expenses","4","Agency Staff - Pay","3207596","201208",15/11/2011 00:00:00,551.93,"31230","Employment & Recruitment Agencies","REDACTED DATA","ADECCO UK LIMITED","",,"232347975"
"London Borough of Redbridge","http://opendatacommunities.org/doc/london-borough-council/redbridge","3BLEACENTFND","LEA Centrally Held School Funds","3CFACILIMPRO","Facilitating School Improvement","REV","Revenue","R3240","Advisers/Inspectors","01-EMPLOYEES","Employees","01A","Direct employee expenses","4","Agency Staff - Pay","3207596","201208",15/11/2011 00:00:00,549.16,"31230","Employment & Recruitment Agencies","REDACTED DATA","ADECCO UK LIMITED","",,"232347975"
"London Borough of Redbridge","http://opendatacommunities.org/doc/london-borough-council/redbridge","3BNONSCHFUND","Non-School Funding","3CNONSCH","Non Schools","REV","Revenue","R2041","CLOSED - South Childrens Centre","01-EMPLOYEES","Employees","01A","Direct employee expenses","4","Agency Staff - Pay","3207596","201208",15/11/2011 00:00:00,549.16,"31230","Employment & Recruitment Agencies","REDACTED DATA","ADECCO UK LIMITED","",,"232347975"
"London Borough of Redbridge","http://opendatacommunities.org/doc/london-borough-council/redbridge","1BOTHEROPI&E","Other Operating Income & Expenditure","1CTRADSURDEF","Trading Account Surpluses & Deficits","REV","Revenue","R9252","IT Services","01-EMPLOYEES","Employees","01A","Direct employee expenses","4","Agency Staff - Pay","3207596","201208",15/11/2011 00:00:00,548.88,"31230","Employment & Recruitment Agencies","REDACTED DATA","ADECCO UK LIMITED","",,"232347975"
"London Borough of Redbridge","http://opendatacommunities.org/doc/london-borough-council/redbridge","3BLEACENTFND","LEA Centrally Held School Funds","3CFACILIMPRO","Facilitating School Improvement","REV","Revenue","R3240","Advisers/Inspectors","01-EMPLOYEES","Employees","01A","Direct employee expenses","4","Agency Staff - Pay","3207596","201208",15/11/2011 00:00:00,538.04,"31230","Employment & Recruitment Agencies","REDACTED DATA","ADECCO UK LIMITED","",,"232347975"
"London Borough of Redbridge","http://opendatacommunities.org/doc/london-borough-council/redbridge","3BNONSCHFUND","Non-School Funding","3CNONSCH","Non Schools","REV","Revenue","R2041","CLOSED - South Childrens Centre","01-EMPLOYEES","Employees","01A","Direct employee expenses","4","Agency Staff - Pay","3207596","201208",15/11/2011 00:00:00,538.04,"31230","Employment & Recruitment Agencies","REDACTED DATA","ADECCO UK LIMITED","",,"232347975"
"London Borough of Redbridge","http://opendatacommunities.org/doc/london-borough-council/redbridge","6BSOCIALSERV","Social Services","6CCHILLOOKED","Children Looked After","REV","Revenue","R2140","CQ and F - Safeguarding and Care Planning Soc Care","01-EMPLOYEES","Employees","01A","Direct employee expenses","4","Agency Staff - Pay","3207596","201208",15/11/2011 00:00:00,538.04,"31230","Employment & Recruitment Agencies","REDACTED DATA","ADECCO UK LIMITED","",,"232347975"
"London Borough of Redbridge","http://opendatacommunities.org/doc/london-borough-council/redbridge","5BGFHOUSING","General Fund Housing","5CHOUMGTSUPP","Housing Management & Support Services","REV","Revenue","R5529","HAC Assessment","01-EMPLOYEES","Employees","01A","Direct employee expenses","4","Agency Staff - Pay","3207596","201208",15/11/2011 00:00:00,536.97,"31230","Employment & Recruitment Agencies","REDACTED DATA","ADECCO UK LIMITED","",,"232347975"
"London Borough of Redbridge","http://opendatacommunities.org/doc/london-borough-council/redbridge","5BGFHOUSING","General Fund Housing","5CHOUMGTSUPP","Housing Management & Support Services","REV","Revenue","R5500","Housing Advice Centre","01-EMPLOYEES","Employees","01A","Direct employee expenses","4","Agency Staff - Pay","3207596","201208",15/11/2011 00:00:00,535.85,"31230","Employment & Recruitment Agencies","REDACTED DATA","ADECCO UK LIMITED","",,"232347975"
"London Borough of Redbridge","http://opendatacommunities.org/doc/london-borough-council/redbridge","6BSOCIALSERV","Social Services","6CCHILLOOKED","Children Looked After","REV","Revenue","R2140","CQ and F - Safeguarding and Care Planning Soc Care","01-EMPLOYEES","Employees","01A","Direct employee expenses","4","Agency Staff - Pay","3207596","201208",15/11/2011 00:00:00,534.32,"31230","Employment & Recruitment Agencies","REDACTED DATA","ADECCO UK LIMITED","",,"232347975"
"London Borough of Redbridge","http://opendatacommunities.org/doc/london-borough-council/redbridge","5BGFHOUSING","General Fund Housing","5CHOUMGTSUPP","Housing Management & Support Services","REV","Revenue","R5529","HAC Assessment","01-EMPLOYEES","Employees","01A","Direct employee expenses","4","Agency Staff - Pay","3207596","201208",15/11/2011 00:00:00,533.43,"31230","Employment & Recruitment Agencies","REDACTED DATA","ADECCO UK LIMITED","",,"232347975"
"London Borough of Redbridge","http://opendatacommunities.org/doc/london-borough-council/redbridge","5BGFHOUSING","General Fund Housing","5CHOUSADVICE","Housing Advice","REV","Revenue","R5530","HAC Temporary Accomodation","01-EMPLOYEES","Employees","01A","Direct employee expenses","4","Agency Staff - Pay","3207596","201208",15/11/2011 00:00:00,532.44,"31230","Employment & Recruitment Agencies","REDACTED DATA","ADECCO UK LIMITED","",,"232347975"
"London Borough of Redbridge","http://opendatacommunities.org/doc/london-borough-council/redbridge","3BNONSCHFUND","Non-School Funding","3CNONSCH","Non Schools","REV","Revenue","R2041","CLOSED - South Childrens Centre","01-EMPLOYEES","Employees","01A","Direct employee expenses","4","Agency Staff - Pay","3207596","201208",15/11/2011 00:00:00,530.61,"31230","Employment & Recruitment Agencies","REDACTED DATA","ADECCO UK LIMITED","",,"232347975"
"London Borough of Redbridge","http://opendatacommunities.org/doc/london-borough-council/redbridge","3BLEACENTFND","LEA Centrally Held School Funds","3CNONSCH","Non Schools","REV","Revenue","R2006","SEN Assessment Team DSG","01-EMPLOYEES","Employees","01A","Direct employee expenses","4","Agency Staff - Pay","3207596","201208",15/11/2011 00:00:00,527.82,"31230","Employment & Recruitment Agencies","REDACTED DATA","ADECCO UK LIMITED","",,"232347975"
"London Borough of Redbridge","http://opendatacommunities.org/doc/london-borough-council/redbridge","5BGFHOUSING","General Fund Housing","5CHOUMGTSUPP","Housing Management & Support Services","REV","Revenue","R5500","Housing Advice Centre","01-EMPLOYEES","Employees","01A","Direct employee expenses","4","Agency Staff - Pay","3207596","201208",15/11/2011 00:00:00,527.82,"31230","Employment & Recruitment Agencies","REDACTED DATA","ADECCO UK LIMITED","",,"232347975"
"London Borough of Redbridge","http://opendatacommunities.org/doc/london-borough-council/redbridge","5BGFHOUSING","General Fund Housing","5CHOUSADVICE","Housing Advice","REV","Revenue","R5530","HAC Temporary Accomodation","01-EMPLOYEES","Employees","01A","Direct employee expenses","4","Agency Staff - Pay","3207596","201208",15/11/2011 00:00:00,521.36,"31230","Employment & Recruitment Agencies","REDACTED DATA","ADECCO UK LIMITED","",,"232347975"
"London Borough of Redbridge","http://opendatacommunities.org/doc/london-borough-council/redbridge","6BSOCIALSERV","Social Services","6CCHILLOOKED","Children Looked After","REV","Revenue","R2140","CQ and F - Safeguarding and Care Planning Soc Care","01-EMPLOYEES","Employees","01A","Direct employee expenses","4","Agency Staff - Pay","3207596","201208",15/11/2011 00:00:00,519.47,"31230","Employment & Recruitment Agencies","REDACTED DATA","ADECCO UK LIMITED","",,"232347975"
"London Borough of Redbridge","http://opendatacommunities.org/doc/london-borough-council/redbridge","1BOTHEROPI&E","Other Operating Income & Expenditure","1CTRADSURDEF","Trading Account Surpluses & Deficits","REV","Revenue","R9252","IT Services","01-EMPLOYEES","Employees","01A","Direct employee expenses","4","Agency Staff - Pay","3207596","201208",15/11/2011 00:00:00,519.15,"31230","Employment & Recruitment Agencies","REDACTED DATA","ADECCO UK LIMITED","",,"232347975"
"London Borough of Redbridge","http://opendatacommunities.org/doc/london-borough-council/redbridge","5BGFHOUSING","General Fund Housing","5CHOUSADVICE","Housing Advice","REV","Revenue","R5530","HAC Temporary Accomodation","01-EMPLOYEES","Employees","01A","Direct employee expenses","4","Agency Staff - Pay","3207596","201208",15/11/2011 00:00:00,517.66,"31230","Employment & Recruitment Agencies","REDACTED DATA","ADECCO UK LIMITED","",,"232347975"
"London Borough of Redbridge","http://opendatacommunities.org/doc/london-borough-council/redbridge","3BLEACENTFND","LEA Centrally Held School Funds","3CNONSCH","Non Schools","REV","Revenue","R2006","SEN Assessment Team DSG","01-EMPLOYEES","Employees","01A","Direct employee expenses","4","Agency Staff - Pay","3207596","201208",15/11/2011 00:00:00,515.76,"31230","Employment & Recruitment Agencies","REDACTED DATA","ADECCO UK LIMITED","",,"232347975"
"London Borough of Redbridge","http://opendatacommunities.org/doc/london-borough-council/redbridge","4BTRANSPORT","Transport Planning, Policy & Strategy","4CMANGT&SUPP","Management & Support Services","REV","Revenue","R7000","Highways Executive","01-EMPLOYEES","Employees","01A","Direct employee expenses","4","Agency Staff - Pay","3207596","201208",15/11/2011 00:00:00,511.98,"31230","Employment & Recruitment Agencies","REDACTED DATA","ADECCO UK LIMITED","",,"232347975"
"London Borough of Redbridge","http://opendatacommunities.org/doc/london-borough-council/redbridge","5BGFHOUSING","General Fund Housing","5CHOUSADVICE","Housing Advice","REV","Revenue","R5530","HAC Temporary Accomodation","01-EMPLOYEES","Employees","01A","Direct employee expenses","4","Agency Staff - Pay","3207596","201208",15/11/2011 00:00:00,509.1,"31230","Employment & Recruitment Agencies","REDACTED DATA","ADECCO UK LIMITED","",,"232347975"
"London Borough of Redbridge","http://opendatacommunities.org/doc/london-borough-council/redbridge","3BNONSCHFUND","Non-School Funding","3CNONSCH","Non Schools","REV","Revenue","R2041","CLOSED - South Childrens Centre","01-EMPLOYEES","Employees","01A","Direct employee expenses","4","Agency Staff - Pay","3207596","201208",15/11/2011 00:00:00,508.34,"31230","Employment & Recruitment Agencies","REDACTED DATA","ADECCO UK LIMITED","",,"232347975"
"London Borough of Redbridge","http://opendatacommunities.org/doc/london-borough-council/redbridge","5BGFHOUSING","General Fund Housing","5CHOUSADVICE","Housing Advice","REV","Revenue","R5530","HAC Temporary Accomodation","01-EMPLOYEES","Employees","01A","Direct employee expenses","4","Agency Staff - Pay","3207596","201208",15/11/2011 00:00:00,502.09,"31230","Employment & Recruitment Agencies","REDACTED DATA","ADECCO UK LIMITED","",,"232347975"
"London Borough of Redbridge","http://opendatacommunities.org/doc/london-borough-council/redbridge","2BPLAN&DEVEL","Planning & Development Services","2CCOMMDEVT","Community Development","REV","Revenue","R6510","Dev Management Tech","01-EMPLOYEES","Employees","01A","Direct employee expenses","4","Agency Staff - Pay","3207596","201208",15/11/2011 00:00:00,496.94,"31230","Employment & Recruitment Agencies","REDACTED DATA","ADECCO UK LIMITED","",,"232347975"
"London Borough of Redbridge","http://opendatacommunities.org/doc/london-borough-council/redbridge","1BOTHEROPI&E","Other Operating Income & Expenditure","1CTRADSURDEF","Trading Account Surpluses & Deficits","REV","Revenue","R9460","Human Resources misc","01-EMPLOYEES","Employees","01A","Direct employee expenses","4","Agency Staff - Pay","3207596","201208",15/11/2011 00:00:00,496.12,"31230","Employment & Recruitment Agencies","REDACTED DATA","ADECCO UK LIMITED","",,"232347975"
"London Borough of Redbridge","http://opendatacommunities.org/doc/london-borough-council/redbridge","2BPLAN&DEVEL","Planning & Development Services","2CCOMMDEVT","Community Development","REV","Revenue","R6510","Dev Management Tech","01-EMPLOYEES","Employees","01A","Direct employee expenses","4","Agency Staff - Pay","3207596","201208",15/11/2011 00:00:00,493.48,"31230","Employment & Recruitment Agencies","REDACTED DATA","ADECCO UK LIMITED","",,"232347975"
"London Borough of Redbridge","http://opendatacommunities.org/doc/london-borough-council/redbridge","4BTRANSPORT","Transport Planning, Policy & Strategy","4CMANGT&SUPP","Management & Support Services","REV","Revenue","R7000","Highways Executive","01-EMPLOYEES","Employees","01A","Direct employee expenses","4","Agency Staff - Pay","3207596","201208",15/11/2011 00:00:00,491.06,"31230","Employment & Recruitment Agencies","REDACTED DATA","ADECCO UK LIMITED","",,"232347975"
"London Borough of Redbridge","http://opendatacommunities.org/doc/london-borough-council/redbridge","4BTRANSPORT","Transport Planning, Policy & Strategy","4CMANGT&SUPP","Management & Support Services","REV","Revenue","R7000","Highways Executive","01-EMPLOYEES","Employees","01A","Direct employee expenses","4","Agency Staff - Pay","3207596","201208",15/11/2011 00:00:00,486.84,"31230","Employment & Recruitment Agencies","REDACTED DATA","ADECCO UK LIMITED","",,"232347975"
"London Borough of Redbridge","http://opendatacommunities.org/doc/london-borough-council/redbridge","4BTRANSPORT","Transport Planning, Policy & Strategy","4CMANGT&SUPP","Management & Support Services","REV","Revenue","R7000","Highways Executive","01-EMPLOYEES","Employees","01A","Direct employee expenses","4","Agency Staff - Pay","3207596","201208",15/11/2011 00:00:00,481.35,"31230","Employment & Recruitment Agencies","REDACTED DATA","ADECCO UK LIMITED","",,"232347975"
"London Borough of Redbridge","http://opendatacommunities.org/doc/london-borough-council/redbridge","3BLEACENTFND","LEA Centrally Held School Funds","3CFACILIMPRO","Facilitating School Improvement","REV","Revenue","R3240","Advisers/Inspectors","01-EMPLOYEES","Employees","01A","Direct employee expenses","4","Agency Staff - Pay","3207596","201208",15/11/2011 00:00:00,478.64,"31230","Employment & Recruitment Agencies","REDACTED DATA","ADECCO UK LIMITED","",,"232347975"
"London Borough of Redbridge","http://opendatacommunities.org/doc/london-borough-council/redbridge","1BOTHEROPI&E","Other Operating Income & Expenditure","1CTRADSURDEF","Trading Account Surpluses & Deficits","REV","Revenue","R9252","IT Services","01-EMPLOYEES","Employees","01A","Direct employee expenses","4","Agency Staff - Pay","3207596","201208",15/11/2011 00:00:00,474.54,"31230","Employment & Recruitment Agencies","REDACTED DATA","ADECCO UK LIMITED","",,"232347975"
"London Borough of Redbridge","http://opendatacommunities.org/doc/london-borough-council/redbridge","6BSOCIALSERV","Social Services","6CCHILLOOKED","Children Looked After","REV","Revenue","R2157","CP and EI - Business and Finance Social Care","01-EMPLOYEES","Employees","01A","Direct employee expenses","4","Agency Staff - Pay","3207596","201208",15/11/2011 00:00:00,473.39,"31230","Employment & Recruitment Agencies","REDACTED DATA","ADECCO UK LIMITED","",,"232347975"
"London Borough of Redbridge","http://opendatacommunities.org/doc/london-borough-council/redbridge","6BSOCIALSERV","Social Services","6CCHILLOOKED","Children Looked After","REV","Revenue","R2157","CP and EI - Business and Finance Social Care","01-EMPLOYEES","Employees","01A","Direct employee expenses","4","Agency Staff - Pay","3207596","201208",15/11/2011 00:00:00,471.62,"31230","Employment & Recruitment Agencies","REDACTED DATA","ADECCO UK LIMITED","",,"232347975"
"London Borough of Redbridge","http://opendatacommunities.org/doc/london-borough-council/redbridge","2BPLAN&DEVEL","Planning & Development Services","2CCOMMDEVT","Community Development","REV","Revenue","R6510","Dev Management Tech","01-EMPLOYEES","Employees","01A","Direct employee expenses","4","Agency Staff - Pay","3207596","201208",15/11/2011 00:00:00,469.25,"31230","Employment & Recruitment Agencies","REDACTED DATA","ADECCO UK LIMITED","",,"232347975"
"London Borough of Redbridge","http://opendatacommunities.org/doc/london-borough-council/redbridge","1BOTHEROPI&E","Other Operating Income & Expenditure","1CTRADSURDEF","Trading Account Surpluses & Deficits","REV","Revenue","R9471","Change Management Scheme","01-EMPLOYEES","Employees","01A","Direct employee expenses","4","Agency Staff - Pay","3207596","201208",15/11/2011 00:00:00,467.95,"31230","Employment & Recruitment Agencies","REDACTED DATA","ADECCO UK LIMITED","",,"232347975"
"London Borough of Redbridge","http://opendatacommunities.org/doc/london-borough-council/redbridge","1BOTHEROPI&E","Other Operating Income & Expenditure","1CTRADSURDEF","Trading Account Surpluses & Deficits","REV","Revenue","R9471","Change Management Scheme","01-EMPLOYEES","Employees","01A","Direct employee expenses","4","Agency Staff - Pay","3207596","201208",15/11/2011 00:00:00,467.95,"31230","Employment & Recruitment Agencies","REDACTED DATA","ADECCO UK LIMITED","",,"232347975"
"London Borough of Redbridge","http://opendatacommunities.org/doc/london-borough-council/redbridge","3BLEACENTFND","LEA Centrally Held School Funds","3CNONSCH","Non Schools","REV","Revenue","R2006","SEN Assessment Team DSG","01-EMPLOYEES","Employees","01A","Direct employee expenses","4","Agency Staff - Pay","3207596","201208",15/11/2011 00:00:00,463.51,"31230","Employment & Recruitment Agencies","REDACTED DATA","ADECCO UK LIMITED","",,"232347975"
"London Borough of Redbridge","http://opendatacommunities.org/doc/london-borough-council/redbridge","4BTRANSPORT","Transport Planning, Policy & Strategy","4CMANGT&SUPP","Management & Support Services","REV","Revenue","R7000","Highways Executive","01-EMPLOYEES","Employees","01A","Direct employee expenses","4","Agency Staff - Pay","3207596","201208",15/11/2011 00:00:00,461.34,"31230","Employment & Recruitment Agencies","REDACTED DATA","ADECCO UK LIMITED","",,"232347975"
"London Borough of Redbridge","http://opendatacommunities.org/doc/london-borough-council/redbridge","6BSOCIALSERV","Social Services","6CCHILLOOKED","Children Looked After","REV","Revenue","R2188","CQ and F - Archives","01-EMPLOYEES","Employees","01A","Direct employee expenses","4","Agency Staff - Pay","3207596","201208",15/11/2011 00:00:00,459.72,"31230","Employment & Recruitment Agencies","REDACTED DATA","ADECCO UK LIMITED","",,"232347975"
"London Borough of Redbridge","http://opendatacommunities.org/doc/london-borough-council/redbridge","6BSOCIALSERV","Social Services","6CCHILLOOKED","Children Looked After","REV","Revenue","R2157","CP and EI - Business and Finance Social Care","01-EMPLOYEES","Employees","01A","Direct employee expenses","4","Agency Staff - Pay","3207596","201208",15/11/2011 00:00:00,457.88,"31230","Employment & Recruitment Agencies","REDACTED DATA","ADECCO UK LIMITED","",,"232347975"
"London Borough of Redbridge","http://opendatacommunities.org/doc/london-borough-council/redbridge","4BTRANSPORT","Transport Planning, Policy & Strategy","4CMANGT&SUPP","Management & Support Services","REV","Revenue","R7000","Highways Executive","01-EMPLOYEES","Employees","01A","Direct employee expenses","4","Agency Staff - Pay","3207596","201208",15/11/2011 00:00:00,453.11,"31230","Employment & Recruitment Agencies","REDACTED DATA","ADECCO UK LIMITED","",,"232347975"
"London Borough of Redbridge","http://opendatacommunities.org/doc/london-borough-council/redbridge","3BNONSCHFUND","Non-School Funding","3CNONSCH","Non Schools","REV","Revenue","R2041","CLOSED - South Childrens Centre","01-EMPLOYEES","Employees","01A","Direct employee expenses","4","Agency Staff - Pay","3207596","201208",15/11/2011 00:00:00,452.52,"31230","Employment & Recruitment Agencies","REDACTED DATA","ADECCO UK LIMITED","",,"232347975"
"London Borough of Redbridge","http://opendatacommunities.org/doc/london-borough-council/redbridge","4BTRANSPORT","Transport Planning, Policy & Strategy","4CMANGT&SUPP","Management & Support Services","REV","Revenue","R7000","Highways Executive","01-EMPLOYEES","Employees","01A","Direct employee expenses","4","Agency Staff - Pay","3207596","201208",15/11/2011 00:00:00,442.14,"31230","Employment & Recruitment Agencies","REDACTED DATA","ADECCO UK LIMITED","",,"232347975"
"London Borough of Redbridge","http://opendatacommunities.org/doc/london-borough-council/redbridge","1BOTHEROPI&E","Other Operating Income & Expenditure","1CTRADSURDEF","Trading Account Surpluses & Deficits","REV","Revenue","R9460","Human Resources misc","01-EMPLOYEES","Employees","01A","Direct employee expenses","4","Agency Staff - Pay","3207596","201208",15/11/2011 00:00:00,439.69,"31230","Employment & Recruitment Agencies","REDACTED DATA","ADECCO UK LIMITED","",,"232347975"
"London Borough of Redbridge","http://opendatacommunities.org/doc/london-borough-council/redbridge","6BADULTSOCIA","Adult Social Care","6CCHILLOOKED","Children Looked After","REV","Revenue","R2118","CLAFH - 2-4 Bathurst Road","01-EMPLOYEES","Employees","01A","Direct employee expenses","4","Agency Staff - Pay","3207596","201208",15/11/2011 00:00:00,437.27,"31230","Employment & Recruitment Agencies","REDACTED DATA","ADECCO UK LIMITED","",,"232347975"
"London Borough of Redbridge","http://opendatacommunities.org/doc/london-borough-council/redbridge","1BOTHEROPI&E","Other Operating Income & Expenditure","1CTRADSURDEF","Trading Account Surpluses & Deficits","REV","Revenue","R9460","Human Resources misc","01-EMPLOYEES","Employees","01A","Direct employee expenses","4","Agency Staff - Pay","3207596","201208",15/11/2011 00:00:00,436.53,"31230","Employment & Recruitment Agencies","REDACTED DATA","ADECCO UK LIMITED","",,"232347975"
"London Borough of Redbridge","http://opendatacommunities.org/doc/london-borough-council/redbridge","4BTRANSPORT","Transport Planning, Policy & Strategy","4CMANGT&SUPP","Management & Support Services","REV","Revenue","R7000","Highways Executive","01-EMPLOYEES","Employees","01A","Direct employee expenses","4","Agency Staff - Pay","3207596","201208",15/11/2011 00:00:00,431.17,"31230","Employment & Recruitment Agencies","REDACTED DATA","ADECCO UK LIMITED","",,"232347975"
"London Borough of Redbridge","http://opendatacommunities.org/doc/london-borough-council/redbridge","4BTRANSPORT","Transport Planning, Policy & Strategy","4CMANGT&SUPP","Management & Support Services","REV","Revenue","R7000","Highways Executive","01-EMPLOYEES","Employees","01A","Direct employee expenses","4","Agency Staff - Pay","3207596","201208",15/11/2011 00:00:00,431.17,"31230","Employment & Recruitment Agencies","REDACTED DATA","ADECCO UK LIMITED","",,"232347975"
"London Borough of Redbridge","http://opendatacommunities.org/doc/london-borough-council/redbridge","5BGFHOUSING","General Fund Housing","5CHOUMGTSUPP","Housing Management & Support Services","REV","Revenue","R5529","HAC Assessment","01-EMPLOYEES","Employees","01A","Direct employee expenses","4","Agency Staff - Pay","3207596","201208",15/11/2011 00:00:00,430.78,"31230","Employment & Recruitment Agencies","REDACTED DATA","ADECCO UK LIMITED","",,"232347975"
"London Borough of Redbridge","http://opendatacommunities.org/doc/london-borough-council/redbridge","1BOTHEROPI&E","Other Operating Income & Expenditure","1CTRADSURDEF","Trading Account Surpluses & Deficits","REV","Revenue","R9460","Human Resources misc","01-EMPLOYEES","Employees","01A","Direct employee expenses","4","Agency Staff - Pay","3207596","201208",15/11/2011 00:00:00,430.25,"31230","Employment & Recruitment Agencies","REDACTED DATA","ADECCO UK LIMITED","",,"232347975"
"London Borough of Redbridge","http://opendatacommunities.org/doc/london-borough-council/redbridge","4BTRANSPORT","Transport Planning, Policy & Strategy","4CMANGT&SUPP","Management & Support Services","REV","Revenue","R7000","Highways Executive","01-EMPLOYEES","Employees","01A","Direct employee expenses","4","Agency Staff - Pay","3207596","201208",15/11/2011 00:00:00,429.32,"31230","Employment & Recruitment Agencies","REDACTED DATA","ADECCO UK LIMITED","",,"232347975"
"London Borough of Redbridge","http://opendatacommunities.org/doc/london-borough-council/redbridge","3BNONSCHFUND","Non-School Funding","3CNONSCH","Non Schools","REV","Revenue","R2041","CLOSED - South Childrens Centre","01-EMPLOYEES","Employees","01A","Direct employee expenses","4","Agency Staff - Pay","3207596","201208",15/11/2011 00:00:00,426.67,"31230","Employment & Recruitment Agencies","REDACTED DATA","ADECCO UK LIMITED","",,"232347975"
"London Borough of Redbridge","http://opendatacommunities.org/doc/london-borough-council/redbridge","4BTRANSPORT","Transport Planning, Policy & Strategy","4CMANGT&SUPP","Management & Support Services","REV","Revenue","R7000","Highways Executive","01-EMPLOYEES","Employees","01A","Direct employee expenses","4","Agency Staff - Pay","3207596","201208",15/11/2011 00:00:00,425.68,"31230","Employment & Recruitment Agencies","REDACTED DATA","ADECCO UK LIMITED","",,"232347975"
"London Borough of Redbridge","http://opendatacommunities.org/doc/london-borough-council/redbridge","1BOTHEROPI&E","Other Operating Income & Expenditure","1CTRADSURDEF","Trading Account Surpluses & Deficits","REV","Revenue","R9460","Human Resources misc","01-EMPLOYEES","Employees","01A","Direct employee expenses","4","Agency Staff - Pay","3207596","201208",15/11/2011 00:00:00,424.1,"31230","Employment & Recruitment Agencies","REDACTED DATA","ADECCO UK LIMITED","",,"232347975"
"London Borough of Redbridge","http://opendatacommunities.org/doc/london-borough-council/redbridge","1BOTHEROPI&E","Other Operating Income & Expenditure","1CTRADSURDEF","Trading Account Surpluses & Deficits","REV","Revenue","R9460","Human Resources misc","01-EMPLOYEES","Employees","01A","Direct employee expenses","4","Agency Staff - Pay","3207596","201208",15/11/2011 00:00:00,422.3,"31230","Employment & Recruitment Agencies","REDACTED DATA","ADECCO UK LIMITED","",,"232347975"
"London Borough of Redbridge","http://opendatacommunities.org/doc/london-borough-council/redbridge","1BOTHEROPI&E","Other Operating Income & Expenditure","1CTRADSURDEF","Trading Account Surpluses & Deficits","REV","Revenue","R9460","Human Resources misc","01-EMPLOYEES","Employees","01A","Direct employee expenses","4","Agency Staff - Pay","3207596","201208",15/11/2011 00:00:00,422.3,"31230","Employment & Recruitment Agencies","REDACTED DATA","ADECCO UK LIMITED","",,"232347975"
"London Borough of Redbridge","http://opendatacommunities.org/doc/london-borough-council/redbridge","4BTRANSPORT","Transport Planning, Policy & Strategy","4CMANGT&SUPP","Management & Support Services","REV","Revenue","R7000","Highways Executive","01-EMPLOYEES","Employees","01A","Direct employee expenses","4","Agency Staff - Pay","3207596","201208",15/11/2011 00:00:00,422.19,"31230","Employment & Recruitment Agencies","REDACTED DATA","ADECCO UK LIMITED","",,"232347975"
"London Borough of Redbridge","http://opendatacommunities.org/doc/london-borough-council/redbridge","4BTRANSPORT","Transport Planning, Policy & Strategy","4CMANGT&SUPP","Management & Support Services","REV","Revenue","R7000","Highways Executive","01-EMPLOYEES","Employees","01A","Direct employee expenses","4","Agency Staff - Pay","3207596","201208",15/11/2011 00:00:00,422.19,"31230","Employment & Recruitment Agencies","REDACTED DATA","ADECCO UK LIMITED","",,"232347975"
"London Borough of Redbridge","http://opendatacommunities.org/doc/london-borough-council/redbridge","4BTRANSPORT","Transport Planning, Policy & Strategy","4CMANGT&SUPP","Management & Support Services","REV","Revenue","R7000","Highways Executive","01-EMPLOYEES","Employees","01A","Direct employee expenses","4","Agency Staff - Pay","3207596","201208",15/11/2011 00:00:00,422.19,"31230","Employment & Recruitment Agencies","REDACTED DATA","ADECCO UK LIMITED","",,"232347975"
"London Borough of Redbridge","http://opendatacommunities.org/doc/london-borough-council/redbridge","4BTRANSPORT","Transport Planning, Policy & Strategy","4CMANGT&SUPP","Management & Support Services","REV","Revenue","R7000","Highways Executive","01-EMPLOYEES","Employees","01A","Direct employee expenses","4","Agency Staff - Pay","3207596","201208",15/11/2011 00:00:00,420.19,"31230","Employment & Recruitment Agencies","REDACTED DATA","ADECCO UK LIMITED","",,"232347975"
"London Borough of Redbridge","http://opendatacommunities.org/doc/london-borough-council/redbridge","4BTRANSPORT","Transport Planning, Policy & Strategy","4CMANGT&SUPP","Management & Support Services","REV","Revenue","R7000","Highways Executive","01-EMPLOYEES","Employees","01A","Direct employee expenses","4","Agency Staff - Pay","3207596","201208",15/11/2011 00:00:00,420.19,"31230","Employment & Recruitment Agencies","REDACTED DATA","ADECCO UK LIMITED","",,"232347975"
"London Borough of Redbridge","http://opendatacommunities.org/doc/london-borough-council/redbridge","4BTRANSPORT","Transport Planning, Policy & Strategy","4CMANGT&SUPP","Management & Support Services","REV","Revenue","R7000","Highways Executive","01-EMPLOYEES","Employees","01A","Direct employee expenses","4","Agency Staff - Pay","3207596","201208",15/11/2011 00:00:00,420.19,"31230","Employment & Recruitment Agencies","REDACTED DATA","ADECCO UK LIMITED","",,"232347975"
"London Borough of Redbridge","http://opendatacommunities.org/doc/london-borough-council/redbridge","4BTRANSPORT","Transport Planning, Policy & Strategy","4CMANGT&SUPP","Management & Support Services","REV","Revenue","R7000","Highways Executive","01-EMPLOYEES","Employees","01A","Direct employee expenses","4","Agency Staff - Pay","3207596","201208",15/11/2011 00:00:00,420.19,"31230","Employment & Recruitment Agencies","REDACTED DATA","ADECCO UK LIMITED","",,"232347975"
"London Borough of Redbridge","http://opendatacommunities.org/doc/london-borough-council/redbridge","4BTRANSPORT","Transport Planning, Policy & Strategy","4CMANGT&SUPP","Management & Support Services","REV","Revenue","R7000","Highways Executive","01-EMPLOYEES","Employees","01A","Direct employee expenses","4","Agency Staff - Pay","3207596","201208",15/11/2011 00:00:00,420.19,"31230","Employment & Recruitment Agencies","REDACTED DATA","ADECCO UK LIMITED","",,"232347975"
"London Borough of Redbridge","http://opendatacommunities.org/doc/london-borough-council/redbridge","1BCENTRALPUB","Central Services to the Public","1CTRADSURDEF","Trading Account Surpluses & Deficits","REV","Revenue","R5754","Income","01-EMPLOYEES","Employees","01A","Direct employee expenses","4","Agency Staff - Pay","3207596","201208",15/11/2011 00:00:00,419.24,"31230","Employment & Recruitment Agencies","REDACTED DATA","ADECCO UK LIMITED","",,"232347975"
"London Borough of Redbridge","http://opendatacommunities.org/doc/london-borough-council/redbridge","1BCENTRALPUB","Central Services to the Public","1CTRADSURDEF","Trading Account Surpluses & Deficits","REV","Revenue","R5754","Income","01-EMPLOYEES","Employees","01A","Direct employee expenses","4","Agency Staff - Pay","3207596","201208",15/11/2011 00:00:00,419.24,"31230","Employment & Recruitment Agencies","REDACTED DATA","ADECCO UK LIMITED","",,"232347975"
"London Borough of Redbridge","http://opendatacommunities.org/doc/london-borough-council/redbridge","3BLEACENTFND","LEA Centrally Held School Funds","3CSCHSTRATMG","Schools Strategic Management","REV","Revenue","R3271","Teachers Centre Deleg","01-EMPLOYEES","Employees","01A","Direct employee expenses","4","Agency Staff - Pay","3207596","201208",15/11/2011 00:00:00,418.6,"31230","Employment & Recruitment Agencies","REDACTED DATA","ADECCO UK LIMITED","",,"232347975"
"London Borough of Redbridge","http://opendatacommunities.org/doc/london-borough-council/redbridge","3BLEACENTFND","LEA Centrally Held School Funds","3CSCHSTRATMG","Schools Strategic Management","REV","Revenue","R3271","Teachers Centre Deleg","01-EMPLOYEES","Employees","01A","Direct employee expenses","4","Agency Staff - Pay","3207596","201208",15/11/2011 00:00:00,418.6,"31230","Employment & Recruitment Agencies","REDACTED DATA","ADECCO UK LIMITED","",,"232347975"
"London Borough of Redbridge","http://opendatacommunities.org/doc/london-borough-council/redbridge","3BLEACENTFND","LEA Centrally Held School Funds","3CSCHSTRATMG","Schools Strategic Management","REV","Revenue","R3271","Teachers Centre Deleg","01-EMPLOYEES","Employees","01A","Direct employee expenses","4","Agency Staff - Pay","3207596","201208",15/11/2011 00:00:00,418.6,"31230","Employment & Recruitment Agencies","REDACTED DATA","ADECCO UK LIMITED","",,"232347975"
"London Borough of Redbridge","http://opendatacommunities.org/doc/london-borough-council/redbridge","3BLEACENTFND","LEA Centrally Held School Funds","3CSCHSTRATMG","Schools Strategic Management","REV","Revenue","R3271","Teachers Centre Deleg","01-EMPLOYEES","Employees","01A","Direct employee expenses","4","Agency Staff - Pay","3207596","201208",15/11/2011 00:00:00,418.6,"31230","Employment & Recruitment Agencies","REDACTED DATA","ADECCO UK LIMITED","",,"232347975"
"London Borough of Redbridge","http://opendatacommunities.org/doc/london-borough-council/redbridge","4BTRANSPORT","Transport Planning, Policy & Strategy","4CMANGT&SUPP","Management & Support Services","REV","Revenue","R7000","Highways Executive","01-EMPLOYEES","Employees","01A","Direct employee expenses","4","Agency Staff - Pay","3207596","201208",15/11/2011 00:00:00,418.05,"31230","Employment & Recruitment Agencies","REDACTED DATA","ADECCO UK LIMITED","",,"232347975"
"London Borough of Redbridge","http://opendatacommunities.org/doc/london-borough-council/redbridge","4BTRANSPORT","Transport Planning, Policy & Strategy","4CMANGT&SUPP","Management & Support Services","REV","Revenue","R7000","Highways Executive","01-EMPLOYEES","Employees","01A","Direct employee expenses","4","Agency Staff - Pay","3207596","201208",15/11/2011 00:00:00,417.65,"31230","Employment & Recruitment Agencies","REDACTED DATA","ADECCO UK LIMITED","",,"232347975"
"London Borough of Redbridge","http://opendatacommunities.org/doc/london-borough-council/redbridge","3BLEACENTFND","LEA Centrally Held School Funds","3CSCHSTRATMG","Schools Strategic Management","REV","Revenue","R3271","Teachers Centre Deleg","01-EMPLOYEES","Employees","01A","Direct employee expenses","4","Agency Staff - Pay","3207596","201208",15/11/2011 00:00:00,415.84,"31230","Employment & Recruitment Agencies","REDACTED DATA","ADECCO UK LIMITED","",,"232347975"
"London Borough of Redbridge","http://opendatacommunities.org/doc/london-borough-council/redbridge","1BOTHEROPI&E","Other Operating Income & Expenditure","1CELECTIONS","Elections","REV","Revenue","R9362","Electoral Registration","01-EMPLOYEES","Employees","01A","Direct employee expenses","4","Agency Staff - Pay","3207596","201208",15/11/2011 00:00:00,412.76,"31230","Employment & Recruitment Agencies","REDACTED DATA","ADECCO UK LIMITED","",,"232347975"
"London Borough of Redbridge","http://opendatacommunities.org/doc/london-borough-council/redbridge","1BCENTRALPUB","Central Services to the Public","1CTRADSURDEF","Trading Account Surpluses & Deficits","REV","Revenue","R5770","Income Assessment","01-EMPLOYEES","Employees","01A","Direct employee expenses","4","Agency Staff - Pay","3207596","201208",15/11/2011 00:00:00,410.62,"31230","Employment & Recruitment Agencies","REDACTED DATA","ADECCO UK LIMITED","",,"232347975"
"London Borough of Redbridge","http://opendatacommunities.org/doc/london-borough-council/redbridge","1BCENTRALPUB","Central Services to the Public","1CTRADSURDEF","Trading Account Surpluses & Deficits","REV","Revenue","R5770","Income Assessment","01-EMPLOYEES","Employees","01A","Direct employee expenses","4","Agency Staff - Pay","3207596","201208",15/11/2011 00:00:00,410.62,"31230","Employment & Recruitment Agencies","REDACTED DATA","ADECCO UK LIMITED","",,"232347975"
"London Borough of Redbridge","http://opendatacommunities.org/doc/london-borough-council/redbridge","2BPLAN&DEVEL","Planning & Development Services","2CCOMMDEVT","Community Development","REV","Revenue","R6510","Dev Management Tech","01-EMPLOYEES","Employees","01A","Direct employee expenses","4","Agency Staff - Pay","3207596","201208",15/11/2011 00:00:00,410.41,"31230","Employment & Recruitment Agencies","REDACTED DATA","ADECCO UK LIMITED","",,"232347975"
"London Borough of Redbridge","http://opendatacommunities.org/doc/london-borough-council/redbridge","1BOTHEROPI&E","Other Operating Income & Expenditure","1CTRADSURDEF","Trading Account Surpluses & Deficits","REV","Revenue","R9152","Financial Services","01-EMPLOYEES","Employees","01A","Direct employee expenses","4","Agency Staff - Pay","3207596","201208",15/11/2011 00:00:00,410.05,"31230","Employment & Recruitment Agencies","REDACTED DATA","ADECCO UK LIMITED","",,"232347975"
"London Borough of Redbridge","http://opendatacommunities.org/doc/london-borough-council/redbridge","1BOTHEROPI&E","Other Operating Income & Expenditure","1CTRADSURDEF","Trading Account Surpluses & Deficits","REV","Revenue","R9460","Human Resources misc","01-EMPLOYEES","Employees","01A","Direct employee expenses","4","Agency Staff - Pay","3207596","201208",15/11/2011 00:00:00,408.49,"31230","Employment & Recruitment Agencies","REDACTED DATA","ADECCO UK LIMITED","",,"232347975"
"London Borough of Redbridge","http://opendatacommunities.org/doc/london-borough-council/redbridge","1BOTHEROPI&E","Other Operating Income & Expenditure","1CELECTIONS","Elections","REV","Revenue","R9362","Electoral Registration","01-EMPLOYEES","Employees","01A","Direct employee expenses","4","Agency Staff - Pay","3207596","201208",15/11/2011 00:00:00,401.1,"31230","Employment & Recruitment Agencies","REDACTED DATA","ADECCO UK LIMITED","",,"232347975"
"London Borough of Redbridge","http://opendatacommunities.org/doc/london-borough-council/redbridge","1BOTHEROPI&E","Other Operating Income & Expenditure","1CELECTIONS","Elections","REV","Revenue","R9362","Electoral Registration","01-EMPLOYEES","Employees","01A","Direct employee expenses","4","Agency Staff - Pay","3207596","201208",15/11/2011 00:00:00,401.1,"31230","Employment & Recruitment Agencies","REDACTED DATA","ADECCO UK LIMITED","",,"232347975"
"London Borough of Redbridge","http://opendatacommunities.org/doc/london-borough-council/redbridge","1BOTHEROPI&E","Other Operating Income & Expenditure","1CELECTIONS","Elections","REV","Revenue","R9362","Electoral Registration","01-EMPLOYEES","Employees","01A","Direct employee expenses","4","Agency Staff - Pay","3207596","201208",15/11/2011 00:00:00,401.1,"31230","Employment & Recruitment Agencies","REDACTED DATA","ADECCO UK LIMITED","",,"232347975"
"London Borough of Redbridge","http://opendatacommunities.org/doc/london-borough-council/redbridge","1BOTHEROPI&E","Other Operating Income & Expenditure","1CELECTIONS","Elections","REV","Revenue","R9362","Electoral Registration","01-EMPLOYEES","Employees","01A","Direct employee expenses","4","Agency Staff - Pay","3207596","201208",15/11/2011 00:00:00,401.1,"31230","Employment & Recruitment Agencies","REDACTED DATA","ADECCO UK LIMITED","",,"232347975"
"London Borough of Redbridge","http://opendatacommunities.org/doc/london-borough-council/redbridge","1BOTHEROPI&E","Other Operating Income & Expenditure","1CTRADSURDEF","Trading Account Surpluses & Deficits","REV","Revenue","R9152","Financial Services","01-EMPLOYEES","Employees","01A","Direct employee expenses","4","Agency Staff - Pay","3207596","201208",15/11/2011 00:00:00,400.86,"31230","Employment & Recruitment Agencies","REDACTED DATA","ADECCO UK LIMITED","",,"232347975"
"London Borough of Redbridge","http://opendatacommunities.org/doc/london-borough-council/redbridge","4BTRANSPORT","Transport Planning, Policy & Strategy","4CMANGT&SUPP","Management & Support Services","REV","Revenue","R7000","Highways Executive","01-EMPLOYEES","Employees","01A","Direct employee expenses","4","Agency Staff - Pay","3207596","201208",15/11/2011 00:00:00,397.39,"31230","Employment & Recruitment Agencies","REDACTED DATA","ADECCO UK LIMITED","",,"232347975"
"London Borough of Redbridge","http://opendatacommunities.org/doc/london-borough-council/redbridge","1BOTHEROPI&E","Other Operating Income & Expenditure","1CTRADSURDEF","Trading Account Surpluses & Deficits","REV","Revenue","R9003","One Stop Shop","01-EMPLOYEES","Employees","01A","Direct employee expenses","4","Agency Staff - Pay","3207596","201208",15/11/2011 00:00:00,396.4,"31230","Employment & Recruitment Agencies","REDACTED DATA","ADECCO UK LIMITED","",,"232347975"
"London Borough of Redbridge","http://opendatacommunities.org/doc/london-borough-council/redbridge","5BGFHOUSING","General Fund Housing","5CHOUMGTSUPP","Housing Management & Support Services","REV","Revenue","R5529","HAC Assessment","01-EMPLOYEES","Employees","01A","Direct employee expenses","4","Agency Staff - Pay","3207596","201208",15/11/2011 00:00:00,395.38,"31230","Employment & Recruitment Agencies","REDACTED DATA","ADECCO UK LIMITED","",,"232347975"
"London Borough of Redbridge","http://opendatacommunities.org/doc/london-borough-council/redbridge","1BOTHEROPI&E","Other Operating Income & Expenditure","1CELECTIONS","Elections","REV","Revenue","R9362","Electoral Registration","01-EMPLOYEES","Employees","01A","Direct employee expenses","4","Agency Staff - Pay","3207596","201208",15/11/2011 00:00:00,395.27,"31230","Employment & Recruitment Agencies","REDACTED DATA","ADECCO UK LIMITED","",,"232347975"
"London Borough of Redbridge","http://opendatacommunities.org/doc/london-borough-council/redbridge","1BOTHEROPI&E","Other Operating Income & Expenditure","1CTRADSURDEF","Trading Account Surpluses & Deficits","REV","Revenue","R9460","Human Resources misc","01-EMPLOYEES","Employees","01A","Direct employee expenses","4","Agency Staff - Pay","3207596","201208",15/11/2011 00:00:00,393.35,"31230","Employment & Recruitment Agencies","REDACTED DATA","ADECCO UK LIMITED","",,"232347975"
"London Borough of Redbridge","http://opendatacommunities.org/doc/london-borough-council/redbridge","1BOTHEROPI&E","Other Operating Income & Expenditure","1CTRADSURDEF","Trading Account Surpluses & Deficits","REV","Revenue","R9152","Financial Services","01-EMPLOYEES","Employees","01A","Direct employee expenses","4","Agency Staff - Pay","3207596","201208",15/11/2011 00:00:00,391.68,"31230","Employment & Recruitment Agencies","REDACTED DATA","ADECCO UK LIMITED","",,"232347975"
"London Borough of Redbridge","http://opendatacommunities.org/doc/london-borough-council/redbridge","1BCENTRALPUB","Central Services to the Public","1CTRADSURDEF","Trading Account Surpluses & Deficits","REV","Revenue","R5770","Income Assessment","01-EMPLOYEES","Employees","01A","Direct employee expenses","4","Agency Staff - Pay","3207596","201208",15/11/2011 00:00:00,389.75,"31230","Employment & Recruitment Agencies","REDACTED DATA","ADECCO UK LIMITED","",,"232347975"
"London Borough of Redbridge","http://opendatacommunities.org/doc/london-borough-council/redbridge","1BOTHEROPI&E","Other Operating Income & Expenditure","1CELECTIONS","Elections","REV","Revenue","R9362","Electoral Registration","01-EMPLOYEES","Employees","01A","Direct employee expenses","4","Agency Staff - Pay","3207596","201208",15/11/2011 00:00:00,389.44,"31230","Employment & Recruitment Agencies","REDACTED DATA","ADECCO UK LIMITED","",,"232347975"
"London Borough of Redbridge","http://opendatacommunities.org/doc/london-borough-council/redbridge","1BOTHEROPI&E","Other Operating Income & Expenditure","1CELECTIONS","Elections","REV","Revenue","R9362","Electoral Registration","01-EMPLOYEES","Employees","01A","Direct employee expenses","4","Agency Staff - Pay","3207596","201208",15/11/2011 00:00:00,389.44,"31230","Employment & Recruitment Agencies","REDACTED DATA","ADECCO UK LIMITED","",,"232347975"
"London Borough of Redbridge","http://opendatacommunities.org/doc/london-borough-council/redbridge","1BOTHEROPI&E","Other Operating Income & Expenditure","1CELECTIONS","Elections","REV","Revenue","R9362","Electoral Registration","01-EMPLOYEES","Employees","01A","Direct employee expenses","4","Agency Staff - Pay","3207596","201208",15/11/2011 00:00:00,389.44,"31230","Employment & Recruitment Agencies","REDACTED DATA","ADECCO UK LIMITED","",,"232347975"
"London Borough of Redbridge","http://opendatacommunities.org/doc/london-borough-council/redbridge","1BOTHEROPI&E","Other Operating Income & Expenditure","1CELECTIONS","Elections","REV","Revenue","R9362","Electoral Registration","01-EMPLOYEES","Employees","01A","Direct employee expenses","4","Agency Staff - Pay","3207596","201208",15/11/2011 00:00:00,389.44,"31230","Employment & Recruitment Agencies","REDACTED DATA","ADECCO UK LIMITED","",,"232347975"
"London Borough of Redbridge","http://opendatacommunities.org/doc/london-borough-council/redbridge","1BOTHEROPI&E","Other Operating Income & Expenditure","1CTRADSURDEF","Trading Account Surpluses & Deficits","REV","Revenue","R9460","Human Resources misc","01-EMPLOYEES","Employees","01A","Direct employee expenses","4","Agency Staff - Pay","3207596","201208",15/11/2011 00:00:00,389.44,"31230","Employment & Recruitment Agencies","REDACTED DATA","ADECCO UK LIMITED","",,"232347975"
"London Borough of Redbridge","http://opendatacommunities.org/doc/london-borough-council/redbridge","3BNONSCHFUND","Non-School Funding","3CNONSCH","Non Schools","REV","Revenue","R3935","Hainault CC","01-EMPLOYEES","Employees","01A","Direct employee expenses","4","Agency Staff - Pay","3207596","201208",15/11/2011 00:00:00,389.44,"31230","Employment & Recruitment Agencies","REDACTED DATA","ADECCO UK LIMITED","",,"232347975"
"London Borough of Redbridge","http://opendatacommunities.org/doc/london-borough-council/redbridge","3BNONSCHFUND","Non-School Funding","3CNONSCH","Non Schools","REV","Revenue","R3935","Hainault CC","01-EMPLOYEES","Employees","01A","Direct employee expenses","4","Agency Staff - Pay","3207596","201208",15/11/2011 00:00:00,389.44,"31230","Employment & Recruitment Agencies","REDACTED DATA","ADECCO UK LIMITED","",,"232347975"
"London Borough of Redbridge","http://opendatacommunities.org/doc/london-borough-council/redbridge","3BNONSCHFUND","Non-School Funding","3CNONSCH","Non Schools","REV","Revenue","R3935","Hainault CC","01-EMPLOYEES","Employees","01A","Direct employee expenses","4","Agency Staff - Pay","3207596","201208",15/11/2011 00:00:00,389.44,"31230","Employment & Recruitment Agencies","REDACTED DATA","ADECCO UK LIMITED","",,"232347975"
"London Borough of Redbridge","http://opendatacommunities.org/doc/london-borough-council/redbridge","3BNONSCHFUND","Non-School Funding","3CNONSCH","Non Schools","REV","Revenue","R3935","Hainault CC","01-EMPLOYEES","Employees","01A","Direct employee expenses","4","Agency Staff - Pay","3207596","201208",15/11/2011 00:00:00,389.44,"31230","Employment & Recruitment Agencies","REDACTED DATA","ADECCO UK LIMITED","",,"232347975"
"London Borough of Redbridge","http://opendatacommunities.org/doc/london-borough-council/redbridge","3BNONSCHFUND","Non-School Funding","3CNONSCH","Non Schools","REV","Revenue","R3935","Hainault CC","01-EMPLOYEES","Employees","01A","Direct employee expenses","4","Agency Staff - Pay","3207596","201208",15/11/2011 00:00:00,389.44,"31230","Employment & Recruitment Agencies","REDACTED DATA","ADECCO UK LIMITED","",,"232347975"
"London Borough of Redbridge","http://opendatacommunities.org/doc/london-borough-council/redbridge","6BSOCIALSERV","Social Services","6CCHILLOOKED","Children Looked After","REV","Revenue","R2170","Ray Lodge (W) - Business and Finance Social Care","01-EMPLOYEES","Employees","01A","Direct employee expenses","4","Agency Staff - Pay","3207596","201208",15/11/2011 00:00:00,389.44,"31230","Employment & Recruitment Agencies","REDACTED DATA","ADECCO UK LIMITED","",,"232347975"
"London Borough of Redbridge","http://opendatacommunities.org/doc/london-borough-council/redbridge","6BSOCIALSERV","Social Services","6CCHILLOOKED","Children Looked After","REV","Revenue","R2170","Ray Lodge (W) - Business and Finance Social Care","01-EMPLOYEES","Employees","01A","Direct employee expenses","4","Agency Staff - Pay","3207596","201208",15/11/2011 00:00:00,389.44,"31230","Employment & Recruitment Agencies","REDACTED DATA","ADECCO UK LIMITED","",,"232347975"
"London Borough of Redbridge","http://opendatacommunities.org/doc/london-borough-council/redbridge","6BSOCIALSERV","Social Services","6CCHILLOOKED","Children Looked After","REV","Revenue","R2170","Ray Lodge (W) - Business and Finance Social Care","01-EMPLOYEES","Employees","01A","Direct employee expenses","4","Agency Staff - Pay","3207596","201208",15/11/2011 00:00:00,389.44,"31230","Employment & Recruitment Agencies","REDACTED DATA","ADECCO UK LIMITED","",,"232347975"
"London Borough of Redbridge","http://opendatacommunities.org/doc/london-borough-council/redbridge","6BSOCIALSERV","Social Services","6CCHILLOOKED","Children Looked After","REV","Revenue","R2170","Ray Lodge (W) - Business and Finance Social Care","01-EMPLOYEES","Employees","01A","Direct employee expenses","4","Agency Staff - Pay","3207596","201208",15/11/2011 00:00:00,389.44,"31230","Employment & Recruitment Agencies","REDACTED DATA","ADECCO UK LIMITED","",,"232347975"
"London Borough of Redbridge","http://opendatacommunities.org/doc/london-borough-council/redbridge","6BSOCIALSERV","Social Services","6CCHILLOOKED","Children Looked After","REV","Revenue","R2157","CP and EI - Business and Finance Social Care","01-EMPLOYEES","Employees","01A","Direct employee expenses","4","Agency Staff - Pay","3207596","201208",15/11/2011 00:00:00,389.19,"31230","Employment & Recruitment Agencies","REDACTED DATA","ADECCO UK LIMITED","",,"232347975"
"London Borough of Redbridge","http://opendatacommunities.org/doc/london-borough-council/redbridge","4BTRANSPORT","Transport Planning, Policy & Strategy","4CMANGT&SUPP","Management & Support Services","REV","Revenue","R7000","Highways Executive","01-EMPLOYEES","Employees","01A","Direct employee expenses","4","Agency Staff - Pay","3207596","201208",15/11/2011 00:00:00,386.36,"31230","Employment & Recruitment Agencies","REDACTED DATA","ADECCO UK LIMITED","",,"232347975"
"London Borough of Redbridge","http://opendatacommunities.org/doc/london-borough-council/redbridge","4BTRANSPORT","Transport Planning, Policy & Strategy","4CMANGT&SUPP","Management & Support Services","REV","Revenue","R7000","Highways Executive","01-EMPLOYEES","Employees","01A","Direct employee expenses","4","Agency Staff - Pay","3207596","201208",15/11/2011 00:00:00,381.79,"31230","Employment & Recruitment Agencies","REDACTED DATA","ADECCO UK LIMITED","",,"232347975"
"London Borough of Redbridge","http://opendatacommunities.org/doc/london-borough-council/redbridge","5BGFHOUSING","General Fund Housing","5CHOUSADVICE","Housing Advice","REV","Revenue","R5530","HAC Temporary Accomodation","01-EMPLOYEES","Employees","01A","Direct employee expenses","4","Agency Staff - Pay","3207596","201208",15/11/2011 00:00:00,380.97,"31230","Employment & Recruitment Agencies","REDACTED DATA","ADECCO UK LIMITED","",,"232347975"
"London Borough of Redbridge","http://opendatacommunities.org/doc/london-borough-council/redbridge","6BSOCIALSERV","Social Services","6CCHILLOOKED","Children Looked After","REV","Revenue","R2158","Albert Road - Integrated Team Social Care","01-EMPLOYEES","Employees","01A","Direct employee expenses","4","Agency Staff - Pay","3207596","201208",15/11/2011 00:00:00,380.96,"31230","Employment & Recruitment Agencies","REDACTED DATA","ADECCO UK LIMITED","",,"232347975"
"London Borough of Redbridge","http://opendatacommunities.org/doc/london-borough-council/redbridge","4BTRANSPORT","Transport Planning, Policy & Strategy","4CMANGT&SUPP","Management & Support Services","REV","Revenue","R7000","Highways Executive","01-EMPLOYEES","Employees","01A","Direct employee expenses","4","Agency Staff - Pay","3207596","201208",15/11/2011 00:00:00,379.04,"31230","Employment & Recruitment Agencies","REDACTED DATA","ADECCO UK LIMITED","",,"232347975"
"London Borough of Redbridge","http://opendatacommunities.org/doc/london-borough-council/redbridge","1BOTHEROPI&E","Other Operating Income & Expenditure","1CTRADSURDEF","Trading Account Surpluses & Deficits","REV","Revenue","R9471","Change Management Scheme","01-EMPLOYEES","Employees","01A","Direct employee expenses","4","Agency Staff - Pay","3207596","201208",15/11/2011 00:00:00,376.85,"31230","Employment & Recruitment Agencies","REDACTED DATA","ADECCO UK LIMITED","",,"232347975"
"London Borough of Redbridge","http://opendatacommunities.org/doc/london-borough-council/redbridge","1BOTHEROPI&E","Other Operating Income & Expenditure","1CTRADSURDEF","Trading Account Surpluses & Deficits","REV","Revenue","R9460","Human Resources misc","01-EMPLOYEES","Employees","01A","Direct employee expenses","4","Agency Staff - Pay","3207596","201208",15/11/2011 00:00:00,376.32,"31230","Employment & Recruitment Agencies","REDACTED DATA","ADECCO UK LIMITED","",,"232347975"
"London Borough of Redbridge","http://opendatacommunities.org/doc/london-borough-council/redbridge","6BSOCIALSERV","Social Services","6CCHILLOOKED","Children Looked After","REV","Revenue","R2158","Albert Road - Integrated Team Social Care","01-EMPLOYEES","Employees","01A","Direct employee expenses","4","Agency Staff - Pay","3207596","201208",15/11/2011 00:00:00,375.46,"31230","Employment & Recruitment Agencies","REDACTED DATA","ADECCO UK LIMITED","",,"232347975"
"London Borough of Redbridge","http://opendatacommunities.org/doc/london-borough-council/redbridge","6BSOCIALSERV","Social Services","6CCHILLOOKED","Children Looked After","REV","Revenue","R2158","Albert Road - Integrated Team Social Care","01-EMPLOYEES","Employees","01A","Direct employee expenses","4","Agency Staff - Pay","3207596","201208",15/11/2011 00:00:00,375.46,"31230","Employment & Recruitment Agencies","REDACTED DATA","ADECCO UK LIMITED","",,"232347975"
"London Borough of Redbridge","http://opendatacommunities.org/doc/london-borough-council/redbridge","1BOTHEROPI&E","Other Operating Income & Expenditure","1CTRADSURDEF","Trading Account Surpluses & Deficits","REV","Revenue","R9471","Change Management Scheme","01-EMPLOYEES","Employees","01A","Direct employee expenses","4","Agency Staff - Pay","3207596","201208",15/11/2011 00:00:00,373.31,"31230","Employment & Recruitment Agencies","REDACTED DATA","ADECCO UK LIMITED","",,"232347975"
"London Borough of Redbridge","http://opendatacommunities.org/doc/london-borough-council/redbridge","3BNONSCHFUND","Non-School Funding","3CNONSCH","Non Schools","REV","Revenue","R3938","Orchard/Ray Lodge CC","01-EMPLOYEES","Employees","01A","Direct employee expenses","4","Agency Staff - Pay","3207596","201208",15/11/2011 00:00:00,371.84,"31230","Employment & Recruitment Agencies","REDACTED DATA","ADECCO UK LIMITED","",,"232347975"
"London Borough of Redbridge","http://opendatacommunities.org/doc/london-borough-council/redbridge","6BSOCIALSERV","Social Services","6CCHILLOOKED","Children Looked After","REV","Revenue","R2170","Ray Lodge (W) - Business and Finance Social Care","01-EMPLOYEES","Employees","01A","Direct employee expenses","4","Agency Staff - Pay","3207596","201208",15/11/2011 00:00:00,370.81,"31230","Employment & Recruitment Agencies","REDACTED DATA","ADECCO UK LIMITED","",,"232347975"
"London Borough of Redbridge","http://opendatacommunities.org/doc/london-borough-council/redbridge","1BOTHEROPI&E","Other Operating Income & Expenditure","1CTRADSURDEF","Trading Account Surpluses & Deficits","REV","Revenue","R9460","Human Resources misc","01-EMPLOYEES","Employees","01A","Direct employee expenses","4","Agency Staff - Pay","3207596","201208",15/11/2011 00:00:00,367.07,"31230","Employment & Recruitment Agencies","REDACTED DATA","ADECCO UK LIMITED","",,"232347975"
"London Borough of Redbridge","http://opendatacommunities.org/doc/london-borough-council/redbridge","1BOTHEROPI&E","Other Operating Income & Expenditure","1CTRADSURDEF","Trading Account Surpluses & Deficits","REV","Revenue","R9460","Human Resources misc","01-EMPLOYEES","Employees","01A","Direct employee expenses","4","Agency Staff - Pay","3207596","201208",15/11/2011 00:00:00,367.07,"31230","Employment & Recruitment Agencies","REDACTED DATA","ADECCO UK LIMITED","",,"232347975"
"London Borough of Redbridge","http://opendatacommunities.org/doc/london-borough-council/redbridge","1BOTHEROPI&E","Other Operating Income & Expenditure","1CTRADSURDEF","Trading Account Surpluses & Deficits","REV","Revenue","R9460","Human Resources misc","01-EMPLOYEES","Employees","01A","Direct employee expenses","4","Agency Staff - Pay","3207596","201208",15/11/2011 00:00:00,367.07,"31230","Employment & Recruitment Agencies","REDACTED DATA","ADECCO UK LIMITED","",,"232347975"
"London Borough of Redbridge","http://opendatacommunities.org/doc/london-borough-council/redbridge","1BOTHEROPI&E","Other Operating Income & Expenditure","1CELECTIONS","Elections","REV","Revenue","R9362","Electoral Registration","01-EMPLOYEES","Employees","01A","Direct employee expenses","4","Agency Staff - Pay","3207596","201208",15/11/2011 00:00:00,366.11,"31230","Employment & Recruitment Agencies","REDACTED DATA","ADECCO UK LIMITED","",,"232347975"
"London Borough of Redbridge","http://opendatacommunities.org/doc/london-borough-council/redbridge","1BCENTRALPUB","Central Services to the Public","1CLOCALTAXCO","Local Tax Collection","REV","Revenue","R5760","Council Tax Collection","01-EMPLOYEES","Employees","01A","Direct employee expenses","4","Agency Staff - Pay","3207596","201208",15/11/2011 00:00:00,365.32,"31230","Employment & Recruitment Agencies","REDACTED DATA","ADECCO UK LIMITED","",,"232347975"
"London Borough of Redbridge","http://opendatacommunities.org/doc/london-borough-council/redbridge","1BCENTRALPUB","Central Services to the Public","1CLOCALTAXCO","Local Tax Collection","REV","Revenue","R5760","Council Tax Collection","01-EMPLOYEES","Employees","01A","Direct employee expenses","4","Agency Staff - Pay","3207596","201208",15/11/2011 00:00:00,365.32,"31230","Employment & Recruitment Agencies","REDACTED DATA","ADECCO UK LIMITED","",,"232347975"
"London Borough of Redbridge","http://opendatacommunities.org/doc/london-borough-council/redbridge","1BCENTRALPUB","Central Services to the Public","1CLOCALTAXCO","Local Tax Collection","REV","Revenue","R5760","Council Tax Collection","01-EMPLOYEES","Employees","01A","Direct employee expenses","4","Agency Staff - Pay","3207596","201208",15/11/2011 00:00:00,365.32,"31230","Employment & Recruitment Agencies","REDACTED DATA","ADECCO UK LIMITED","",,"232347975"
"London Borough of Redbridge","http://opendatacommunities.org/doc/london-borough-council/redbridge","3BNONSCHFUND","Non-School Funding","3CNONSCH","Non Schools","REV","Revenue","R3940","Thackery/All Saints CC","01-EMPLOYEES","Employees","01A","Direct employee expenses","4","Agency Staff - Pay","3207596","201208",15/11/2011 00:00:00,365.32,"31230","Employment & Recruitment Agencies","REDACTED DATA","ADECCO UK LIMITED","",,"232347975"
"London Borough of Redbridge","http://opendatacommunities.org/doc/london-borough-council/redbridge","3BNONSCHFUND","Non-School Funding","3CNONSCH","Non Schools","REV","Revenue","R3940","Thackery/All Saints CC","01-EMPLOYEES","Employees","01A","Direct employee expenses","4","Agency Staff - Pay","3207596","201208",15/11/2011 00:00:00,365.32,"31230","Employment & Recruitment Agencies","REDACTED DATA","ADECCO UK LIMITED","",,"232347975"
"London Borough of Redbridge","http://opendatacommunities.org/doc/london-borough-council/redbridge","6BSOCIALSERV","Social Services","6CCHILLOOKED","Children Looked After","REV","Revenue","R2170","Ray Lodge (W) - Business and Finance Social Care","01-EMPLOYEES","Employees","01A","Direct employee expenses","4","Agency Staff - Pay","3207596","201208",15/11/2011 00:00:00,365.32,"31230","Employment & Recruitment Agencies","REDACTED DATA","ADECCO UK LIMITED","",,"232347975"
"London Borough of Redbridge","http://opendatacommunities.org/doc/london-borough-council/redbridge","6BSOCIALSERV","Social Services","6CCHILLOOKED","Children Looked After","REV","Revenue","R2170","Ray Lodge (W) - Business and Finance Social Care","01-EMPLOYEES","Employees","01A","Direct employee expenses","4","Agency Staff - Pay","3207596","201208",15/11/2011 00:00:00,365.32,"31230","Employment & Recruitment Agencies","REDACTED DATA","ADECCO UK LIMITED","",,"232347975"
"London Borough of Redbridge","http://opendatacommunities.org/doc/london-borough-council/redbridge","6BSOCIALSERV","Social Services","6CCHILLOOKED","Children Looked After","REV","Revenue","R2170","Ray Lodge (W) - Business and Finance Social Care","01-EMPLOYEES","Employees","01A","Direct employee expenses","4","Agency Staff - Pay","3207596","201208",15/11/2011 00:00:00,365.32,"31230","Employment & Recruitment Agencies","REDACTED DATA","ADECCO UK LIMITED","",,"232347975"
"London Borough of Redbridge","http://opendatacommunities.org/doc/london-borough-council/redbridge","6BSOCIALSERV","Social Services","6CCHILLOOKED","Children Looked After","REV","Revenue","R2175","Ray Lodge (N) - Business and Finance Social Care","01-EMPLOYEES","Employees","01A","Direct employee expenses","4","Agency Staff - Pay","3207596","201208",15/11/2011 00:00:00,360.99,"31230","Employment & Recruitment Agencies","REDACTED DATA","ADECCO UK LIMITED","",,"232347975"
"London Borough of Redbridge","http://opendatacommunities.org/doc/london-borough-council/redbridge","6BSOCIALSERV","Social Services","6CCHILLOOKED","Children Looked After","REV","Revenue","R2175","Ray Lodge (N) - Business and Finance Social Care","01-EMPLOYEES","Employees","01A","Direct employee expenses","4","Agency Staff - Pay","3207596","201208",15/11/2011 00:00:00,360.99,"31230","Employment & Recruitment Agencies","REDACTED DATA","ADECCO UK LIMITED","",,"232347975"
"London Borough of Redbridge","http://opendatacommunities.org/doc/london-borough-council/redbridge","6BSOCIALSERV","Social Services","6CCHILLOOKED","Children Looked After","REV","Revenue","R2175","Ray Lodge (N) - Business and Finance Social Care","01-EMPLOYEES","Employees","01A","Direct employee expenses","4","Agency Staff - Pay","3207596","201208",15/11/2011 00:00:00,360.99,"31230","Employment & Recruitment Agencies","REDACTED DATA","ADECCO UK LIMITED","",,"232347975"
"London Borough of Redbridge","http://opendatacommunities.org/doc/london-borough-council/redbridge","6BSOCIALSERV","Social Services","6CCHILLOOKED","Children Looked After","REV","Revenue","R2170","Ray Lodge (W) - Business and Finance Social Care","01-EMPLOYEES","Employees","01A","Direct employee expenses","4","Agency Staff - Pay","3207596","201208",15/11/2011 00:00:00,360.28,"31230","Employment & Recruitment Agencies","REDACTED DATA","ADECCO UK LIMITED","",,"232347975"
"London Borough of Redbridge","http://opendatacommunities.org/doc/london-borough-council/redbridge","6BSOCIALSERV","Social Services","6CCHILLOOKED","Children Looked After","REV","Revenue","R2170","Ray Lodge (W) - Business and Finance Social Care","01-EMPLOYEES","Employees","01A","Direct employee expenses","4","Agency Staff - Pay","3207596","201208",15/11/2011 00:00:00,360.28,"31230","Employment & Recruitment Agencies","REDACTED DATA","ADECCO UK LIMITED","",,"232347975"
"London Borough of Redbridge","http://opendatacommunities.org/doc/london-borough-council/redbridge","1BOTHEROPI&E","Other Operating Income & Expenditure","1CTRADSURDEF","Trading Account Surpluses & Deficits","REV","Revenue","R9152","Financial Services","01-EMPLOYEES","Employees","01A","Direct employee expenses","4","Agency Staff - Pay","3207596","201208",15/11/2011 00:00:00,357.98,"31230","Employment & Recruitment Agencies","REDACTED DATA","ADECCO UK LIMITED","",,"232347975"
"London Borough of Redbridge","http://opendatacommunities.org/doc/london-borough-council/redbridge","1BOTHEROPI&E","Other Operating Income & Expenditure","1CTRADSURDEF","Trading Account Surpluses & Deficits","REV","Revenue","R9460","Human Resources misc","01-EMPLOYEES","Employees","01A","Direct employee expenses","4","Agency Staff - Pay","3207596","201208",15/11/2011 00:00:00,350.78,"31230","Employment & Recruitment Agencies","REDACTED DATA","ADECCO UK LIMITED","",,"232347975"
"London Borough of Redbridge","http://opendatacommunities.org/doc/london-borough-council/redbridge","3BLEACENTFND","LEA Centrally Held School Funds","3CSCHSTRATMG","Schools Strategic Management","REV","Revenue","R3271","Teachers Centre Deleg","01-EMPLOYEES","Employees","01A","Direct employee expenses","4","Agency Staff - Pay","3207596","201208",15/11/2011 00:00:00,348.11,"31230","Employment & Recruitment Agencies","REDACTED DATA","ADECCO UK LIMITED","",,"232347975"
"London Borough of Redbridge","http://opendatacommunities.org/doc/london-borough-council/redbridge","6BADULTSOCIA","Adult Social Care","6CCHILLOOKED","Children Looked After","REV","Revenue","R2118","CLAFH - 2-4 Bathurst Road","01-EMPLOYEES","Employees","01A","Direct employee expenses","4","Agency Staff - Pay","3207596","201208",15/11/2011 00:00:00,346,"31230","Employment & Recruitment Agencies","REDACTED DATA","ADECCO UK LIMITED","",,"232347975"
"London Borough of Redbridge","http://opendatacommunities.org/doc/london-borough-council/redbridge","4BTRANSPORT","Transport Planning, Policy & Strategy","4CMANGT&SUPP","Management & Support Services","REV","Revenue","R7000","Highways Executive","01-EMPLOYEES","Employees","01A","Direct employee expenses","4","Agency Staff - Pay","3207596","201208",15/11/2011 00:00:00,340.63,"31230","Employment & Recruitment Agencies","REDACTED DATA","ADECCO UK LIMITED","",,"232347975"
"London Borough of Redbridge","http://opendatacommunities.org/doc/london-borough-council/redbridge","1BOTHEROPI&E","Other Operating Income & Expenditure","1CTRADSURDEF","Trading Account Surpluses & Deficits","REV","Revenue","R9460","Human Resources misc","01-EMPLOYEES","Employees","01A","Direct employee expenses","4","Agency Staff - Pay","3207596","201208",15/11/2011 00:00:00,339.84,"31230","Employment & Recruitment Agencies","REDACTED DATA","ADECCO UK LIMITED","",,"232347975"
"London Borough of Redbridge","http://opendatacommunities.org/doc/london-borough-council/redbridge","3BNONSCHFUND","Non-School Funding","3CNONSCH","Non Schools","REV","Revenue","R3938","Orchard/Ray Lodge CC","01-EMPLOYEES","Employees","01A","Direct employee expenses","4","Agency Staff - Pay","3207596","201208",15/11/2011 00:00:00,339.29,"31230","Employment & Recruitment Agencies","REDACTED DATA","ADECCO UK LIMITED","",,"232347975"
"London Borough of Redbridge","http://opendatacommunities.org/doc/london-borough-council/redbridge","3BLEACENTFND","LEA Centrally Held School Funds","3CSCHSTRATMG","Schools Strategic Management","REV","Revenue","R3271","Teachers Centre Deleg","01-EMPLOYEES","Employees","01A","Direct employee expenses","4","Agency Staff - Pay","3207596","201208",15/11/2011 00:00:00,336.82,"31230","Employment & Recruitment Agencies","REDACTED DATA","ADECCO UK LIMITED","",,"232347975"
"London Borough of Redbridge","http://opendatacommunities.org/doc/london-borough-council/redbridge","1BCENTRALPUB","Central Services to the Public","1CTRADSURDEF","Trading Account Surpluses & Deficits","REV","Revenue","R5754","Income","01-EMPLOYEES","Employees","01A","Direct employee expenses","4","Agency Staff - Pay","3207596","201208",15/11/2011 00:00:00,336.54,"31230","Employment & Recruitment Agencies","REDACTED DATA","ADECCO UK LIMITED","",,"232347975"
"London Borough of Redbridge","http://opendatacommunities.org/doc/london-borough-council/redbridge","1BOTHEROPI&E","Other Operating Income & Expenditure","1CTRADSURDEF","Trading Account Surpluses & Deficits","REV","Revenue","R9460","Human Resources misc","01-EMPLOYEES","Employees","01A","Direct employee expenses","4","Agency Staff - Pay","3207596","201208",15/11/2011 00:00:00,336.54,"31230","Employment & Recruitment Agencies","REDACTED DATA","ADECCO UK LIMITED","",,"232347975"
"London Borough of Redbridge","http://opendatacommunities.org/doc/london-borough-council/redbridge","6BSOCIALSERV","Social Services","6CCHILLOOKED","Children Looked After","REV","Revenue","R2170","Ray Lodge (W) - Business and Finance Social Care","01-EMPLOYEES","Employees","01A","Direct employee expenses","4","Agency Staff - Pay","3207596","201208",15/11/2011 00:00:00,331.12,"31230","Employment & Recruitment Agencies","REDACTED DATA","ADECCO UK LIMITED","",,"232347975"
"London Borough of Redbridge","http://opendatacommunities.org/doc/london-borough-council/redbridge","1BOTHEROPI&E","Other Operating Income & Expenditure","1CTRADSURDEF","Trading Account Surpluses & Deficits","REV","Revenue","R9003","One Stop Shop","01-EMPLOYEES","Employees","01A","Direct employee expenses","4","Agency Staff - Pay","3207596","201208",15/11/2011 00:00:00,329.62,"31230","Employment & Recruitment Agencies","REDACTED DATA","ADECCO UK LIMITED","",,"232347975"
"London Borough of Redbridge","http://opendatacommunities.org/doc/london-borough-council/redbridge","1BOTHEROPI&E","Other Operating Income & Expenditure","1CTRADSURDEF","Trading Account Surpluses & Deficits","REV","Revenue","R9003","One Stop Shop","01-EMPLOYEES","Employees","01A","Direct employee expenses","4","Agency Staff - Pay","3207596","201208",15/11/2011 00:00:00,329.62,"31230","Employment & Recruitment Agencies","REDACTED DATA","ADECCO UK LIMITED","",,"232347975"
"London Borough of Redbridge","http://opendatacommunities.org/doc/london-borough-council/redbridge","1BOTHEROPI&E","Other Operating Income & Expenditure","1CTRADSURDEF","Trading Account Surpluses & Deficits","REV","Revenue","R9003","One Stop Shop","01-EMPLOYEES","Employees","01A","Direct employee expenses","4","Agency Staff - Pay","3207596","201208",15/11/2011 00:00:00,329.62,"31230","Employment & Recruitment Agencies","REDACTED DATA","ADECCO UK LIMITED","",,"232347975"
"London Borough of Redbridge","http://opendatacommunities.org/doc/london-borough-council/redbridge","1BOTHEROPI&E","Other Operating Income & Expenditure","1CELECTIONS","Elections","REV","Revenue","R9362","Electoral Registration","01-EMPLOYEES","Employees","01A","Direct employee expenses","4","Agency Staff - Pay","3207596","201208",15/11/2011 00:00:00,325.29,"31230","Employment & Recruitment Agencies","REDACTED DATA","ADECCO UK LIMITED","",,"232347975"
"London Borough of Redbridge","http://opendatacommunities.org/doc/london-borough-council/redbridge","1BOTHEROPI&E","Other Operating Income & Expenditure","1CTRADSURDEF","Trading Account Surpluses & Deficits","REV","Revenue","R9003","One Stop Shop","01-EMPLOYEES","Employees","01A","Direct employee expenses","4","Agency Staff - Pay","3207596","201208",15/11/2011 00:00:00,322.37,"31230","Employment & Recruitment Agencies","REDACTED DATA","ADECCO UK LIMITED","",,"232347975"
"London Borough of Redbridge","http://opendatacommunities.org/doc/london-borough-council/redbridge","1BCENTRALPUB","Central Services to the Public","1CTRADSURDEF","Trading Account Surpluses & Deficits","REV","Revenue","R5770","Income Assessment","01-EMPLOYEES","Employees","01A","Direct employee expenses","4","Agency Staff - Pay","3207596","201208",15/11/2011 00:00:00,318.7,"31230","Employment & Recruitment Agencies","REDACTED DATA","ADECCO UK LIMITED","",,"232347975"
"London Borough of Redbridge","http://opendatacommunities.org/doc/london-borough-council/redbridge","3BNONSCHFUND","Non-School Funding","3CNONSCH","Non Schools","REV","Revenue","R3938","Orchard/Ray Lodge CC","01-EMPLOYEES","Employees","01A","Direct employee expenses","4","Agency Staff - Pay","3207596","201208",15/11/2011 00:00:00,312.16,"31230","Employment & Recruitment Agencies","REDACTED DATA","ADECCO UK LIMITED","",,"232347975"
"London Borough of Redbridge","http://opendatacommunities.org/doc/london-borough-council/redbridge","4BTRANSPORT","Transport Planning, Policy & Strategy","4CMANGT&SUPP","Management & Support Services","REV","Revenue","R7000","Highways Executive","01-EMPLOYEES","Employees","01A","Direct employee expenses","4","Agency Staff - Pay","3207596","201208",15/11/2011 00:00:00,307.71,"31230","Employment & Recruitment Agencies","REDACTED DATA","ADECCO UK LIMITED","",,"232347975"
"London Borough of Redbridge","http://opendatacommunities.org/doc/london-borough-council/redbridge","5BGFHOUSING","General Fund Housing","5CHOUMGTSUPP","Housing Management & Support Services","REV","Revenue","R5529","HAC Assessment","01-EMPLOYEES","Employees","01A","Direct employee expenses","4","Agency Staff - Pay","3207596","201208",15/11/2011 00:00:00,303.35,"31230","Employment & Recruitment Agencies","REDACTED DATA","ADECCO UK LIMITED","",,"232347975"
"London Borough of Redbridge","http://opendatacommunities.org/doc/london-borough-council/redbridge","3BNONSCHFUND","Non-School Funding","3CNONSCH","Non Schools","REV","Revenue","R3938","Orchard/Ray Lodge CC","01-EMPLOYEES","Employees","01A","Direct employee expenses","4","Agency Staff - Pay","3207596","201208",15/11/2011 00:00:00,302.5,"31230","Employment & Recruitment Agencies","REDACTED DATA","ADECCO UK LIMITED","",,"232347975"
"London Borough of Redbridge","http://opendatacommunities.org/doc/london-borough-council/redbridge","6BSOCIALSERV","Social Services","6CCHILLOOKED","Children Looked After","REV","Revenue","R2188","CQ and F - Archives","01-EMPLOYEES","Employees","01A","Direct employee expenses","4","Agency Staff - Pay","3207596","201208",15/11/2011 00:00:00,302.5,"31230","Employment & Recruitment Agencies","REDACTED DATA","ADECCO UK LIMITED","",,"232347975"
"London Borough of Redbridge","http://opendatacommunities.org/doc/london-borough-council/redbridge","1BOTHEROPI&E","Other Operating Income & Expenditure","1CTRADSURDEF","Trading Account Surpluses & Deficits","REV","Revenue","R9460","Human Resources misc","01-EMPLOYEES","Employees","01A","Direct employee expenses","4","Agency Staff - Pay","3207596","201208",15/11/2011 00:00:00,296.72,"31230","Employment & Recruitment Agencies","REDACTED DATA","ADECCO UK LIMITED","",,"232347975"
"London Borough of Redbridge","http://opendatacommunities.org/doc/london-borough-council/redbridge","3BNONSCHFUND","Non-School Funding","3CNONSCH","Non Schools","REV","Revenue","R3940","Thackery/All Saints CC","01-EMPLOYEES","Employees","01A","Direct employee expenses","4","Agency Staff - Pay","3207596","201208",15/11/2011 00:00:00,291.55,"31230","Employment & Recruitment Agencies","REDACTED DATA","ADECCO UK LIMITED","",,"232347975"
"London Borough of Redbridge","http://opendatacommunities.org/doc/london-borough-council/redbridge","1BCENTRALPUB","Central Services to the Public","1CLOCALTAXCO","Local Tax Collection","REV","Revenue","R5760","Council Tax Collection","01-EMPLOYEES","Employees","01A","Direct employee expenses","4","Agency Staff - Pay","3207596","201208",15/11/2011 00:00:00,288.5,"31230","Employment & Recruitment Agencies","REDACTED DATA","ADECCO UK LIMITED","",,"232347975"
"London Borough of Redbridge","http://opendatacommunities.org/doc/london-borough-council/redbridge","3BNONSCHFUND","Non-School Funding","3CNONSCH","Non Schools","REV","Revenue","R3940","Thackery/All Saints CC","01-EMPLOYEES","Employees","01A","Direct employee expenses","4","Agency Staff - Pay","3207596","201208",15/11/2011 00:00:00,288.5,"31230","Employment & Recruitment Agencies","REDACTED DATA","ADECCO UK LIMITED","",,"232347975"
"London Borough of Redbridge","http://opendatacommunities.org/doc/london-borough-council/redbridge","3BNONSCHFUND","Non-School Funding","3CNONSCH","Non Schools","REV","Revenue","R3938","Orchard/Ray Lodge CC","01-EMPLOYEES","Employees","01A","Direct employee expenses","4","Agency Staff - Pay","3207596","201208",15/11/2011 00:00:00,285.04,"31230","Employment & Recruitment Agencies","REDACTED DATA","ADECCO UK LIMITED","",,"232347975"
"London Borough of Redbridge","http://opendatacommunities.org/doc/london-borough-council/redbridge","6BSOCIALSERV","Social Services","6CCHILLOOKED","Children Looked After","REV","Revenue","R2170","Ray Lodge (W) - Business and Finance Social Care","01-EMPLOYEES","Employees","01A","Direct employee expenses","4","Agency Staff - Pay","3207596","201208",15/11/2011 00:00:00,284.47,"31230","Employment & Recruitment Agencies","REDACTED DATA","ADECCO UK LIMITED","",,"232347975"
"London Borough of Redbridge","http://opendatacommunities.org/doc/london-borough-council/redbridge","1BOTHEROPI&E","Other Operating Income & Expenditure","1CTRADSURDEF","Trading Account Surpluses & Deficits","REV","Revenue","R9252","IT Services","01-EMPLOYEES","Employees","01A","Direct employee expenses","4","Agency Staff - Pay","3207596","201208",15/11/2011 00:00:00,272.74,"31230","Employment & Recruitment Agencies","REDACTED DATA","ADECCO UK LIMITED","",,"232347975"
"London Borough of Redbridge","http://opendatacommunities.org/doc/london-borough-council/redbridge","1BOTHEROPI&E","Other Operating Income & Expenditure","1CTRADSURDEF","Trading Account Surpluses & Deficits","REV","Revenue","R9460","Human Resources misc","01-EMPLOYEES","Employees","01A","Direct employee expenses","4","Agency Staff - Pay","3207596","201208",15/11/2011 00:00:00,272.22,"31230","Employment & Recruitment Agencies","REDACTED DATA","ADECCO UK LIMITED","",,"232347975"
"London Borough of Redbridge","http://opendatacommunities.org/doc/london-borough-council/redbridge","1BOTHEROPI&E","Other Operating Income & Expenditure","1CTRADSURDEF","Trading Account Surpluses & Deficits","REV","Revenue","R9460","Human Resources misc","01-EMPLOYEES","Employees","01A","Direct employee expenses","4","Agency Staff - Pay","3207596","201208",15/11/2011 00:00:00,267.86,"31230","Employment & Recruitment Agencies","REDACTED DATA","ADECCO UK LIMITED","",,"232347975"
"London Borough of Redbridge","http://opendatacommunities.org/doc/london-borough-council/redbridge","1BOTHEROPI&E","Other Operating Income & Expenditure","1CTRADSURDEF","Trading Account Surpluses & Deficits","REV","Revenue","R9252","IT Services","01-EMPLOYEES","Employees","01A","Direct employee expenses","4","Agency Staff - Pay","3207596","201208",15/11/2011 00:00:00,267.49,"31230","Employment & Recruitment Agencies","REDACTED DATA","ADECCO UK LIMITED","",,"232347975"
"London Borough of Redbridge","http://opendatacommunities.org/doc/london-borough-council/redbridge","1BOTHEROPI&E","Other Operating Income & Expenditure","1CTRADSURDEF","Trading Account Surpluses & Deficits","REV","Revenue","R9252","IT Services","01-EMPLOYEES","Employees","01A","Direct employee expenses","4","Agency Staff - Pay","3207596","201208",15/11/2011 00:00:00,267.49,"31230","Employment & Recruitment Agencies","REDACTED DATA","ADECCO UK LIMITED","",,"232347975"
"London Borough of Redbridge","http://opendatacommunities.org/doc/london-borough-council/redbridge","1BOTHEROPI&E","Other Operating Income & Expenditure","1CTRADSURDEF","Trading Account Surpluses & Deficits","REV","Revenue","R9252","IT Services","01-EMPLOYEES","Employees","01A","Direct employee expenses","4","Agency Staff - Pay","3207596","201208",15/11/2011 00:00:00,267.49,"31230","Employment & Recruitment Agencies","REDACTED DATA","ADECCO UK LIMITED","",,"232347975"
"London Borough of Redbridge","http://opendatacommunities.org/doc/london-borough-council/redbridge","1BOTHEROPI&E","Other Operating Income & Expenditure","1CTRADSURDEF","Trading Account Surpluses & Deficits","REV","Revenue","R9252","IT Services","01-EMPLOYEES","Employees","01A","Direct employee expenses","4","Agency Staff - Pay","3207596","201208",15/11/2011 00:00:00,267.49,"31230","Employment & Recruitment Agencies","REDACTED DATA","ADECCO UK LIMITED","",,"232347975"
"London Borough of Redbridge","http://opendatacommunities.org/doc/london-borough-council/redbridge","1BOTHEROPI&E","Other Operating Income & Expenditure","1CTRADSURDEF","Trading Account Surpluses & Deficits","REV","Revenue","R9460","Human Resources misc","01-EMPLOYEES","Employees","01A","Direct employee expenses","4","Agency Staff - Pay","3207596","201208",15/11/2011 00:00:00,266.09,"31230","Employment & Recruitment Agencies","REDACTED DATA","ADECCO UK LIMITED","",,"232347975"
"London Borough of Redbridge","http://opendatacommunities.org/doc/london-borough-council/redbridge","3BLEACENTFND","LEA Centrally Held School Funds","3CSCHSTRATMG","Schools Strategic Management","REV","Revenue","R3271","Teachers Centre Deleg","01-EMPLOYEES","Employees","01A","Direct employee expenses","4","Agency Staff - Pay","3207596","201208",15/11/2011 00:00:00,263.44,"31230","Employment & Recruitment Agencies","REDACTED DATA","ADECCO UK LIMITED","",,"232347975"
"London Borough of Redbridge","http://opendatacommunities.org/doc/london-borough-council/redbridge","1BCENTRALPUB","Central Services to the Public","1CTRADSURDEF","Trading Account Surpluses & Deficits","REV","Revenue","R5754","Income","01-EMPLOYEES","Employees","01A","Direct employee expenses","4","Agency Staff - Pay","3207596","201208",15/11/2011 00:00:00,263.03,"31230","Employment & Recruitment Agencies","REDACTED DATA","ADECCO UK LIMITED","",,"232347975"
"London Borough of Redbridge","http://opendatacommunities.org/doc/london-borough-council/redbridge","4BTRANSPORT","Transport Planning, Policy & Strategy","4CMANGT&SUPP","Management & Support Services","REV","Revenue","R7000","Highways Executive","01-EMPLOYEES","Employees","01A","Direct employee expenses","4","Agency Staff - Pay","3207596","201208",15/11/2011 00:00:00,255.58,"31230","Employment & Recruitment Agencies","REDACTED DATA","ADECCO UK LIMITED","",,"232347975"
"London Borough of Redbridge","http://opendatacommunities.org/doc/london-borough-council/redbridge","1BCENTRALPUB","Central Services to the Public","1CTRADSURDEF","Trading Account Surpluses & Deficits","REV","Revenue","R5754","Income","01-EMPLOYEES","Employees","01A","Direct employee expenses","4","Agency Staff - Pay","3207596","201208",15/11/2011 00:00:00,250.78,"31230","Employment & Recruitment Agencies","REDACTED DATA","ADECCO UK LIMITED","",,"232347975"
"London Borough of Redbridge","http://opendatacommunities.org/doc/london-borough-council/redbridge","1BOTHEROPI&E","Other Operating Income & Expenditure","1CTRADSURDEF","Trading Account Surpluses & Deficits","REV","Revenue","R9003","One Stop Shop","01-EMPLOYEES","Employees","01A","Direct employee expenses","4","Agency Staff - Pay","3207596","201208",15/11/2011 00:00:00,243.65,"31230","Employment & Recruitment Agencies","REDACTED DATA","ADECCO UK LIMITED","",,"232347975"
"London Borough of Redbridge","http://opendatacommunities.org/doc/london-borough-council/redbridge","1BCENTRALPUB","Central Services to the Public","1CTRADSURDEF","Trading Account Surpluses & Deficits","REV","Revenue","R5754","Income","01-EMPLOYEES","Employees","01A","Direct employee expenses","4","Agency Staff - Pay","3207596","201208",15/11/2011 00:00:00,238.52,"31230","Employment & Recruitment Agencies","REDACTED DATA","ADECCO UK LIMITED","",,"232347975"
"London Borough of Redbridge","http://opendatacommunities.org/doc/london-borough-council/redbridge","1BCENTRALPUB","Central Services to the Public","1CTRADSURDEF","Trading Account Surpluses & Deficits","REV","Revenue","R5754","Income","01-EMPLOYEES","Employees","01A","Direct employee expenses","4","Agency Staff - Pay","3207596","201208",15/11/2011 00:00:00,235.46,"31230","Employment & Recruitment Agencies","REDACTED DATA","ADECCO UK LIMITED","",,"232347975"
"London Borough of Redbridge","http://opendatacommunities.org/doc/london-borough-council/redbridge","6BSOCIALSERV","Social Services","6CCHILLOOKED","Children Looked After","REV","Revenue","R2158","Albert Road - Integrated Team Social Care","01-EMPLOYEES","Employees","01A","Direct employee expenses","4","Agency Staff - Pay","3207596","201208",15/11/2011 00:00:00,232.54,"31230","Employment & Recruitment Agencies","REDACTED DATA","ADECCO UK LIMITED","",,"232347975"
"London Borough of Redbridge","http://opendatacommunities.org/doc/london-borough-council/redbridge","1BCENTRALPUB","Central Services to the Public","1CTRADSURDEF","Trading Account Surpluses & Deficits","REV","Revenue","R5754","Income","01-EMPLOYEES","Employees","01A","Direct employee expenses","4","Agency Staff - Pay","3207596","201208",15/11/2011 00:00:00,226.27,"31230","Employment & Recruitment Agencies","REDACTED DATA","ADECCO UK LIMITED","",,"232347975"
"London Borough of Redbridge","http://opendatacommunities.org/doc/london-borough-council/redbridge","5BGFHOUSING","General Fund Housing","5CHOUMGTSUPP","Housing Management & Support Services","REV","Revenue","R5500","Housing Advice Centre","01-EMPLOYEES","Employees","01A","Direct employee expenses","4","Agency Staff - Pay","3207596","201208",15/11/2011 00:00:00,218.36,"31230","Employment & Recruitment Agencies","REDACTED DATA","ADECCO UK LIMITED","",,"232347975"
"London Borough of Redbridge","http://opendatacommunities.org/doc/london-borough-council/redbridge","6BSOCIALSERV","Social Services","6CCHILLOOKED","Children Looked After","REV","Revenue","R2175","Ray Lodge (N) - Business and Finance Social Care","01-EMPLOYEES","Employees","01A","Direct employee expenses","4","Agency Staff - Pay","3207596","201208",15/11/2011 00:00:00,213.72,"31230","Employment & Recruitment Agencies","REDACTED DATA","ADECCO UK LIMITED","",,"232347975"
"London Borough of Redbridge","http://opendatacommunities.org/doc/london-borough-council/redbridge","3BNONSCHFUND","Non-School Funding","3CNONSCH","Non Schools","REV","Revenue","R2041","CLOSED - South Childrens Centre","01-EMPLOYEES","Employees","01A","Direct employee expenses","4","Agency Staff - Pay","3207596","201208",15/11/2011 00:00:00,203.95,"31230","Employment & Recruitment Agencies","REDACTED DATA","ADECCO UK LIMITED","",,"232347975"
"London Borough of Redbridge","http://opendatacommunities.org/doc/london-borough-council/redbridge","5BGFHOUSING","General Fund Housing","5CHOUMGTSUPP","Housing Management & Support Services","REV","Revenue","R5500","Housing Advice Centre","01-EMPLOYEES","Employees","01A","Direct employee expenses","4","Agency Staff - Pay","3207596","201208",15/11/2011 00:00:00,200.11,"31230","Employment & Recruitment Agencies","REDACTED DATA","ADECCO UK LIMITED","",,"232347975"
"London Borough of Redbridge","http://opendatacommunities.org/doc/london-borough-council/redbridge","1BOTHEROPI&E","Other Operating Income & Expenditure","1CTRADSURDEF","Trading Account Surpluses & Deficits","REV","Revenue","R9003","One Stop Shop","01-EMPLOYEES","Employees","01A","Direct employee expenses","4","Agency Staff - Pay","3207596","201208",15/11/2011 00:00:00,165.15,"31230","Employment & Recruitment Agencies","REDACTED DATA","ADECCO UK LIMITED","",,"232347975"
"London Borough of Redbridge","http://opendatacommunities.org/doc/london-borough-council/redbridge","1BOTHEROPI&E","Other Operating Income & Expenditure","1CTRADSURDEF","Trading Account Surpluses & Deficits","REV","Revenue","R9003","One Stop Shop","01-EMPLOYEES","Employees","01A","Direct employee expenses","4","Agency Staff - Pay","3207596","201208",15/11/2011 00:00:00,165.15,"31230","Employment & Recruitment Agencies","REDACTED DATA","ADECCO UK LIMITED","",,"232347975"
"London Borough of Redbridge","http://opendatacommunities.org/doc/london-borough-council/redbridge","1BOTHEROPI&E","Other Operating Income & Expenditure","1CTRADSURDEF","Trading Account Surpluses & Deficits","REV","Revenue","R9003","One Stop Shop","01-EMPLOYEES","Employees","01A","Direct employee expenses","4","Agency Staff - Pay","3207596","201208",15/11/2011 00:00:00,165.15,"31230","Employment & Recruitment Agencies","REDACTED DATA","ADECCO UK LIMITED","",,"232347975"
"London Borough of Redbridge","http://opendatacommunities.org/doc/london-borough-council/redbridge","1BOTHEROPI&E","Other Operating Income & Expenditure","1CTRADSURDEF","Trading Account Surpluses & Deficits","REV","Revenue","R9003","One Stop Shop","01-EMPLOYEES","Employees","01A","Direct employee expenses","4","Agency Staff - Pay","3207596","201208",15/11/2011 00:00:00,164.71,"31230","Employment & Recruitment Agencies","REDACTED DATA","ADECCO UK LIMITED","",,"232347975"
"London Borough of Redbridge","http://opendatacommunities.org/doc/london-borough-council/redbridge","6BADULTSOCIA","Adult Social Care","6CCHILLOOKED","Children Looked After","REV","Revenue","R2118","CLAFH - 2-4 Bathurst Road","01-EMPLOYEES","Employees","01A","Direct employee expenses","4","Agency Staff - Pay","3207596","201208",15/11/2011 00:00:00,164.52,"31230","Employment & Recruitment Agencies","REDACTED DATA","ADECCO UK LIMITED","",,"232347975"
"London Borough of Redbridge","http://opendatacommunities.org/doc/london-borough-council/redbridge","6BADULTSOCIA","Adult Social Care","6CCHILLOOKED","Children Looked After","REV","Revenue","R2118","CLAFH - 2-4 Bathurst Road","01-EMPLOYEES","Employees","01A","Direct employee expenses","4","Agency Staff - Pay","3207596","201208",15/11/2011 00:00:00,164.52,"31230","Employment & Recruitment Agencies","REDACTED DATA","ADECCO UK LIMITED","",,"232347975"
"London Borough of Redbridge","http://opendatacommunities.org/doc/london-borough-council/redbridge","1BOTHEROPI&E","Other Operating Income & Expenditure","1CTRADSURDEF","Trading Account Surpluses & Deficits","REV","Revenue","R9003","One Stop Shop","01-EMPLOYEES","Employees","01A","Direct employee expenses","4","Agency Staff - Pay","3207596","201208",15/11/2011 00:00:00,162.4,"31230","Employment & Recruitment Agencies","REDACTED DATA","ADECCO UK LIMITED","",,"232347975"
"London Borough of Redbridge","http://opendatacommunities.org/doc/london-borough-council/redbridge","1BOTHEROPI&E","Other Operating Income & Expenditure","1CTRADSURDEF","Trading Account Surpluses & Deficits","REV","Revenue","R9003","One Stop Shop","01-EMPLOYEES","Employees","01A","Direct employee expenses","4","Agency Staff - Pay","3207596","201208",15/11/2011 00:00:00,157.35,"31230","Employment & Recruitment Agencies","REDACTED DATA","ADECCO UK LIMITED","",,"232347975"
"London Borough of Redbridge","http://opendatacommunities.org/doc/london-borough-council/redbridge","6BSOCIALSERV","Social Services","6CCHILLOOKED","Children Looked After","REV","Revenue","R2188","CQ and F - Archives","01-EMPLOYEES","Employees","01A","Direct employee expenses","4","Agency Staff - Pay","3207596","201208",15/11/2011 00:00:00,153.5,"31230","Employment & Recruitment Agencies","REDACTED DATA","ADECCO UK LIMITED","",,"232347975"
"London Borough of Redbridge","http://opendatacommunities.org/doc/london-borough-council/redbridge","6BADULTSOCIA","Adult Social Care","6CCHILLOOKED","Children Looked After","REV","Revenue","R2118","CLAFH - 2-4 Bathurst Road","01-EMPLOYEES","Employees","01A","Direct employee expenses","4","Agency Staff - Pay","3207596","201208",15/11/2011 00:00:00,153.28,"31230","Employment & Recruitment Agencies","REDACTED DATA","ADECCO UK LIMITED","",,"232347975"
"London Borough of Redbridge","http://opendatacommunities.org/doc/london-borough-council/redbridge","6BADULTSOCIA","Adult Social Care","6CCHILLOOKED","Children Looked After","REV","Revenue","R2118","CLAFH - 2-4 Bathurst Road","01-EMPLOYEES","Employees","01A","Direct employee expenses","4","Agency Staff - Pay","3207596","201208",15/11/2011 00:00:00,153.28,"31230","Employment & Recruitment Agencies","REDACTED DATA","ADECCO UK LIMITED","",,"232347975"
"London Borough of Redbridge","http://opendatacommunities.org/doc/london-borough-council/redbridge","6BADULTSOCIA","Adult Social Care","6CCHILLOOKED","Children Looked After","REV","Revenue","R2118","CLAFH - 2-4 Bathurst Road","01-EMPLOYEES","Employees","01A","Direct employee expenses","4","Agency Staff - Pay","3207596","201208",15/11/2011 00:00:00,153.28,"31230","Employment & Recruitment Agencies","REDACTED DATA","ADECCO UK LIMITED","",,"232347975"
"London Borough of Redbridge","http://opendatacommunities.org/doc/london-borough-council/redbridge","6BADULTSOCIA","Adult Social Care","6CCHILLOOKED","Children Looked After","REV","Revenue","R2118","CLAFH - 2-4 Bathurst Road","01-EMPLOYEES","Employees","01A","Direct employee expenses","4","Agency Staff - Pay","3207596","201208",15/11/2011 00:00:00,153.28,"31230","Employment & Recruitment Agencies","REDACTED DATA","ADECCO UK LIMITED","",,"232347975"
"London Borough of Redbridge","http://opendatacommunities.org/doc/london-borough-council/redbridge","1BOTHEROPI&E","Other Operating Income & Expenditure","1CTRADSURDEF","Trading Account Surpluses & Deficits","REV","Revenue","R9252","IT Services","01-EMPLOYEES","Employees","01A","Direct employee expenses","4","Agency Staff - Pay","3207596","201208",15/11/2011 00:00:00,149.4,"31230","Employment & Recruitment Agencies","REDACTED DATA","ADECCO UK LIMITED","",,"232347975"
"London Borough of Redbridge","http://opendatacommunities.org/doc/london-borough-council/redbridge","1BOTHEROPI&E","Other Operating Income & Expenditure","1CTRADSURDEF","Trading Account Surpluses & Deficits","REV","Revenue","R9460","Human Resources misc","01-EMPLOYEES","Employees","01A","Direct employee expenses","4","Agency Staff - Pay","3207596","201208",15/11/2011 00:00:00,145.88,"31230","Employment & Recruitment Agencies","REDACTED DATA","ADECCO UK LIMITED","",,"232347975"
"London Borough of Redbridge","http://opendatacommunities.org/doc/london-borough-council/redbridge","6BSOCIALSERV","Social Services","6CASYLUMSEEK","Asylum Seekers","REV","Revenue","R2129","CLAFH - Unaccompanied Asylum Seekers","01-EMPLOYEES","Employees","01A","Direct employee expenses","4","Agency Staff - Pay","3207596","201208",15/11/2011 00:00:00,137.26,"31230","Employment & Recruitment Agencies","REDACTED DATA","ADECCO UK LIMITED","",,"232347975"
"London Borough of Redbridge","http://opendatacommunities.org/doc/london-borough-council/redbridge","1BOTHEROPI&E","Other Operating Income & Expenditure","1CTRADSURDEF","Trading Account Surpluses & Deficits","REV","Revenue","R9460","Human Resources misc","01-EMPLOYEES","Employees","01A","Direct employee expenses","4","Agency Staff - Pay","3207596","201208",15/11/2011 00:00:00,124.88,"31230","Employment & Recruitment Agencies","REDACTED DATA","ADECCO UK LIMITED","",,"232347975"
"London Borough of Redbridge","http://opendatacommunities.org/doc/london-borough-council/redbridge","1BOTHEROPI&E","Other Operating Income & Expenditure","1CTRADSURDEF","Trading Account Surpluses & Deficits","REV","Revenue","R9356","Business Support (Legal)","01-EMPLOYEES","Employees","01A","Direct employee expenses","4","Agency Staff - Pay","3207596","201208",15/11/2011 00:00:00,115.39,"31230","Employment & Recruitment Agencies","REDACTED DATA","ADECCO UK LIMITED","",,"232347975"
"London Borough of Redbridge","http://opendatacommunities.org/doc/london-borough-council/redbridge","1BOTHEROPI&E","Other Operating Income & Expenditure","1CTRADSURDEF","Trading Account Surpluses & Deficits","REV","Revenue","R9356","Business Support (Legal)","01-EMPLOYEES","Employees","01A","Direct employee expenses","4","Agency Staff - Pay","3207596","201208",15/11/2011 00:00:00,115.39,"31230","Employment & Recruitment Agencies","REDACTED DATA","ADECCO UK LIMITED","",,"232347975"
"London Borough of Redbridge","http://opendatacommunities.org/doc/london-borough-council/redbridge","1BOTHEROPI&E","Other Operating Income & Expenditure","1CTRADSURDEF","Trading Account Surpluses & Deficits","REV","Revenue","R9356","Business Support (Legal)","01-EMPLOYEES","Employees","01A","Direct employee expenses","4","Agency Staff - Pay","3207596","201208",15/11/2011 00:00:00,115.39,"31230","Employment & Recruitment Agencies","REDACTED DATA","ADECCO UK LIMITED","",,"232347975"
"London Borough of Redbridge","http://opendatacommunities.org/doc/london-borough-council/redbridge","1BOTHEROPI&E","Other Operating Income & Expenditure","1CTRADSURDEF","Trading Account Surpluses & Deficits","REV","Revenue","R9356","Business Support (Legal)","01-EMPLOYEES","Employees","01A","Direct employee expenses","4","Agency Staff - Pay","3207596","201208",15/11/2011 00:00:00,115.39,"31230","Employment & Recruitment Agencies","REDACTED DATA","ADECCO UK LIMITED","",,"232347975"
"London Borough of Redbridge","http://opendatacommunities.org/doc/london-borough-council/redbridge","6BADULTSOCIA","Adult Social Care","6CCHILLOOKED","Children Looked After","REV","Revenue","R2118","CLAFH - 2-4 Bathurst Road","01-EMPLOYEES","Employees","01A","Direct employee expenses","4","Agency Staff - Pay","3207596","201208",15/11/2011 00:00:00,57.48,"31230","Employment & Recruitment Agencies","REDACTED DATA","ADECCO UK LIMITED","",,"232347975"
"London Borough of Redbridge","http://opendatacommunities.org/doc/london-borough-council/redbridge","2BCULTUR&REL","Cultural & Related Services","2CREC&SPORT","Recreation & Sport","REV","Revenue","R6998","CSCL Legacy","01-EMPLOYEES","Employees","01A","Direct employee expenses","4","Agency Staff - Pay","3207596","201208",15/11/2011 00:00:00,57.24,"31230","Employment & Recruitment Agencies","REDACTED DATA","ADECCO UK LIMITED","",,"232347975"
"London Borough of Redbridge","http://opendatacommunities.org/doc/london-borough-council/redbridge","5BGFHOUSING","General Fund Housing","5CHOUSADVICE","Housing Advice","REV","Revenue","R5530","HAC Temporary Accomodation","01-EMPLOYEES","Employees","01A","Direct employee expenses","4","Agency Staff - Pay","3207596","201208",15/11/2011 00:00:00,37.25,"31230","Employment & Recruitment Agencies","REDACTED DATA","ADECCO UK LIMITED","",,"232347975"
"London Borough of Redbridge","http://opendatacommunities.org/doc/london-borough-council/redbridge","5BGFHOUSING","General Fund Housing","5CHOUSADVICE","Housing Advice","REV","Revenue","R5530","HAC Temporary Accomodation","01-EMPLOYEES","Employees","01A","Direct employee expenses","4","Agency Staff - Pay","3207596","201208",15/11/2011 00:00:00,31.67,"31230","Employment & Recruitment Agencies","REDACTED DATA","ADECCO UK LIMITED","",,"232347975"
"London Borough of Redbridge","http://opendatacommunities.org/doc/london-borough-council/redbridge","5BGFHOUSING","General Fund Housing","5CHOUSADVICE","Housing Advice","REV","Revenue","R5530","HAC Temporary Accomodation","01-EMPLOYEES","Employees","01A","Direct employee expenses","4","Agency Staff - Pay","3207596","201208",15/11/2011 00:00:00,31,"31230","Employment & Recruitment Agencies","REDACTED DATA","ADECCO UK LIMITED","",,"232347975"
"London Borough of Redbridge","http://opendatacommunities.org/doc/london-borough-council/redbridge","4BTRANSPORT","Transport Planning, Policy & Strategy","4CMANGT&SUPP","Management & Support Services","REV","Revenue","R7000","Highways Executive","01-EMPLOYEES","Employees","01A","Direct employee expenses","4","Agency Staff - Pay","3207596","201208",15/11/2011 00:00:00,0,"31230","Employment & Recruitment Agencies","REDACTED DATA","ADECCO UK LIMITED","",,"232347975"
"London Borough of Redbridge","http://opendatacommunities.org/doc/london-borough-council/redbridge","4BTRANSPORT","Transport Planning, Policy & Strategy","4CMANGT&SUPP","Management & Support Services","REV","Revenue","R7000","Highways Executive","01-EMPLOYEES","Employees","01A","Direct employee expenses","4","Agency Staff - Pay","3207596","201208",15/11/2011 00:00:00,0,"31230","Employment & Recruitment Agencies","REDACTED DATA","ADECCO UK LIMITED","",,"232347975"
"London Borough of Redbridge","http://opendatacommunities.org/doc/london-borough-council/redbridge","4BTRANSPORT","Transport Planning, Policy & Strategy","4CMANGT&SUPP","Management & Support Services","REV","Revenue","R7000","Highways Executive","01-EMPLOYEES","Employees","01A","Direct employee expenses","4","Agency Staff - Pay","3207596","201208",15/11/2011 00:00:00,0,"31230","Employment & Recruitment Agencies","REDACTED DATA","ADECCO UK LIMITED","",,"232347975"
"London Borough of Redbridge","http://opendatacommunities.org/doc/london-borough-council/redbridge","4BTRANSPORT","Transport Planning, Policy & Strategy","4CMANGT&SUPP","Management & Support Services","REV","Revenue","R7000","Highways Executive","01-EMPLOYEES","Employees","01A","Direct employee expenses","4","Agency Staff - Pay","3207596","201208",15/11/2011 00:00:00,0,"31230","Employment & Recruitment Agencies","REDACTED DATA","ADECCO UK LIMITED","",,"232347975"
"London Borough of Redbridge","http://opendatacommunities.org/doc/london-borough-council/redbridge","3BNONSCHFUND","Non-School Funding","3CYOUTH","Youth Service","REV","Revenue","R3478","Connexions","04-SUPPLIES","Supplies And Services","04H","Grants and subscriptions","5950","Grants","60160549","201208",01/11/2011 00:00:00,110000,"14850","Career Guidance Services","REDACTED DATA","CAREERS ENTERPRISE LTD (BABCOCK ENTERPRISE)","2961588","http://opencorporates.com/companies/gb/2961588","698815563"
"London Borough of Redbridge","http://opendatacommunities.org/doc/london-borough-council/redbridge","3BNONSCHFUND","Non-School Funding","3CYOUTH","Youth Service","REV","Revenue","R3478","Connexions","04-SUPPLIES","Supplies And Services","04H","Grants and subscriptions","5950","Grants","60160550","201208",01/11/2011 00:00:00,110000,"14850","Career Guidance Services","REDACTED DATA","CAREERS ENTERPRISE LTD (BABCOCK ENTERPRISE)","2961588","http://opencorporates.com/companies/gb/2961588","698815563"
"London Borough of Redbridge","http://opendatacommunities.org/doc/london-borough-council/redbridge","9BNONBVO","Outside the BVACOP Objective Structure","9CNONBVO","Outside the BVACOP Objective Structure","BAL","Balance Sheet","B2001","Insurance Fund","99-NONBV","Capital, Balance Sheet and Control","50K","Current Assets","9314","Advance To MMI","70033878","201208",01/11/2011 00:00:00,127696.68,"45415","Insurance - Other","REDACTED DATA","ZURICH MUNICIPAL","",,""
"London Borough of Redbridge","http://opendatacommunities.org/doc/london-borough-council/redbridge","9BNONBVO","Outside the BVACOP Objective Structure","9CNONBVO","Outside the BVACOP Objective Structure","REV","Revenue","R0056","Loans Fund - Revenue Exp","09-INCOME","Income","09D","Interest","8703","Interest On Temporary Investments","70033878","201208",01/11/2011 00:00:00,-86.76,"45415","Insurance - Other","REDACTED DATA","ZURICH MUNICIPAL","",,""
"London Borough of Redbridge","http://opendatacommunities.org/doc/london-borough-council/redbridge","6BADULTSOCIA","Adult Social Care","6CADLEARNDIS","Adults Under 65 with Learning Disabilities","REV","Revenue","R4193","Learn - Redbridge Block Contracts","05-THIRD","Third Party Payments","05F","Voluntary associations","6800","Voluntary Organisations","90276857","201208",15/09/2011 00:00:00,175109.35,"17020","Charities and Voluntary Organisations","REDACTED DATA","REDBRIDGE COMMUNITY HOUSING LIMITED (RCHL)","",,""
"London Borough of Redbridge","http://opendatacommunities.org/doc/london-borough-council/redbridge","6BADULTSOCIA","Adult Social Care","6CADLEARNDIS","Adults Under 65 with Learning Disabilities","REV","Revenue","R4193","Learn - Redbridge Block Contracts","05-THIRD","Third Party Payments","05F","Voluntary associations","6800","Voluntary Organisations","90276857","201208",15/09/2011 00:00:00,6607.9,"17020","Charities and Voluntary Organisations","REDACTED DATA","REDBRIDGE COMMUNITY HOUSING LIMITED (RCHL)","",,""
"London Borough of Redbridge","http://opendatacommunities.org/doc/london-borough-council/redbridge","6BADULTSOCIA","Adult Social Care","6CADLEARNDIS","Adults Under 65 with Learning Disabilities","REV","Revenue","R4193","Learn - Redbridge Block Contracts","05-THIRD","Third Party Payments","05F","Voluntary associations","6800","Voluntary Organisations","90276857","201208",15/09/2011 00:00:00,-60131.89,"17020","Charities and Voluntary Organisations","REDACTED DATA","REDBRIDGE COMMUNITY HOUSING LIMITED (RCHL)","",,""
"London Borough of Redbridge","http://opendatacommunities.org/doc/london-borough-council/redbridge","9BNONBVO","Outside the BVACOP Objective Structure","9CNONBVO","Outside the BVACOP Objective Structure","REV","Revenue","R0025","Business Rate Supplement - NNDR","05-THIRD","Third Party Payments","05E","Government departments","6283","Business Rate Supplement","60161018","201208",15/04/2011 00:00:00,113004,"48583","Local Government","REDACTED DATA","GREATER LONDON AUTHORITY","",,""
"London Borough of Redbridge","http://opendatacommunities.org/doc/london-borough-council/redbridge","3BLEACENTFND","LEA Centrally Held School Funds","3CNONSCH","Non Schools","REV","Revenue","R3258","ISS Paid School Meals","05-THIRD","Third Party Payments","05A","Independent units within the council","6513","Agency & Contracted Services","70033863","201208",11/11/2011 00:00:00,111621.92,"16270","Catering Schools","REDACTED DATA","ISS CATERHOUSE - ISS MEDICLEAN LTD(EDUCATION CATERING CASH COLLECTIONS)","1659837","http://opencorporates.com/companies/gb/1659837",""
"London Borough of Redbridge","http://opendatacommunities.org/doc/london-borough-council/redbridge","1BOTHEROPI&E","Other Operating Income & Expenditure","1CTRADSURDEF","Trading Account Surpluses & Deficits","REV","Revenue","R9605","497-499 Ley Street","02-PREMISES","Premises","02C","Rents","4120","Rents","60162589","201208",21/11/2011 00:00:00,100000,"61896","Property & Estate Management","REDACTED DATA","MAPELEY ACQUISITION CO (NO) LTD","372 9808","http://opencorporates.com/companies/gb/372 9808",""
"London Borough of Redbridge","http://opendatacommunities.org/doc/london-borough-council/redbridge","4BPUBLICTRAN","Public Transport","4CPARKING","Parking Services","REV","Revenue","R7037","Parking Enforcements Non CCTV","05-THIRD","Third Party Payments","05H","Private contractors","6911","Parking Enforcement Contract","60160399","201208",31/10/2011 00:00:00,81289.19,"13750","Car Parking and Garaging","REDACTED DATA","APCOA PARKING (UK) LTD","2572947","http://opencorporates.com/companies/gb/2572947","674177607"
"London Borough of Redbridge","http://opendatacommunities.org/doc/london-borough-council/redbridge","5BGFHOUSING","General Fund Housing","5CHOUSADVICE","Housing Advice","REV","Revenue","R5530","HAC Temporary Accomodation","05-THIRD","Third Party Payments","05H","Private contractors","6916","Leasing Payments To Landlords","70033836","201208",31/10/2011 00:00:00,73423.08,"47846","Letting Agents","REDACTED DATA","BTP LETTINGS LTD","7037542","http://opencorporates.com/companies/gb/7037542","858899139"
"London Borough of Redbridge","http://opendatacommunities.org/doc/london-borough-council/redbridge","5BGFHOUSING","General Fund Housing","5CHOUSADVICE","Housing Advice","REV","Revenue","R5530","HAC Temporary Accomodation","05-THIRD","Third Party Payments","05H","Private contractors","6916","Leasing Payments To Landlords","70033836","201208",31/10/2011 00:00:00,9348.51,"47846","Letting Agents","REDACTED DATA","BTP LETTINGS LTD","7037542","http://opencorporates.com/companies/gb/7037542","858899139"
"London Borough of Redbridge","http://opendatacommunities.org/doc/london-borough-council/redbridge","3BLEACENTFND","LEA Centrally Held School Funds","3CNONSCH","Non Schools","REV","Revenue","R2004","SEN and CD Res Placements DSG","05-THIRD","Third Party Payments","05H","Private contractors","6906","Independent Schools","60162237","201208",27/10/2011 00:00:00,62006.84,"67860","Schools - Independent & Preparatory","REDACTED DATA","ACORN NORFOLK LTD T/AS ACORN PARK SCHOOL","7448673","http://opencorporates.com/companies/gb/7448673",""
"London Borough of Redbridge","http://opendatacommunities.org/doc/london-borough-council/redbridge","6BSOCIALSERV","Social Services","6CCHILLOOKED","Children Looked After","REV","Revenue","R2117","SEN and CD Care and Support Packages Social Care","05-THIRD","Third Party Payments","05H","Private contractors","6906","Independent Schools","60162237","201208",27/10/2011 00:00:00,11810.83,"67860","Schools - Independent & Preparatory","REDACTED DATA","ACORN NORFOLK LTD T/AS ACORN PARK SCHOOL","7448673","http://opencorporates.com/companies/gb/7448673",""
"London Borough of Redbridge","http://opendatacommunities.org/doc/london-borough-council/redbridge","9BNONBVO","Outside the BVACOP Objective Structure","9CNONBVO","Outside the BVACOP Objective Structure","REV","Revenue","R0068","R and R Revenue Client Leasing","10-CAPFIN","Capital Financing","10A","Interest payments","7403","Finance Leases","40510720","201208",10/11/2011 00:00:00,59772.65,"47650","Leasing Services","REDACTED DATA","SG EQUIPMENT FINANCE LTD","",,"629280722"
"London Borough of Redbridge","http://opendatacommunities.org/doc/london-borough-council/redbridge","3BLEACENTFND","LEA Centrally Held School Funds","3CNONSCH","Non Schools","REV","Revenue","R2004","SEN and CD Res Placements DSG","05-THIRD","Third Party Payments","05H","Private contractors","6906","Independent Schools","60162238","201208",27/10/2011 00:00:00,60146.52,"67860","Schools - Independent & Preparatory","REDACTED DATA","ACORN NORFOLK LTD T/AS ACORN PARK SCHOOL","7448673","http://opencorporates.com/companies/gb/7448673",""
"London Borough of Redbridge","http://opendatacommunities.org/doc/london-borough-council/redbridge","6BSOCIALSERV","Social Services","6CCHILLOOKED","Children Looked After","REV","Revenue","R2117","SEN and CD Care and Support Packages Social Care","05-THIRD","Third Party Payments","05H","Private contractors","6906","Independent Schools","60162238","201208",27/10/2011 00:00:00,11456.48,"67860","Schools - Independent & Preparatory","REDACTED DATA","ACORN NORFOLK LTD T/AS ACORN PARK SCHOOL","7448673","http://opencorporates.com/companies/gb/7448673",""
"London Borough of Redbridge","http://opendatacommunities.org/doc/london-borough-council/redbridge","4BMANGT&SUPP","Management & Support Services","4CHIGHRDROUT","Highways/Roads (Routine)","REV","Revenue","R7061","Lighting Energy","05-THIRD","Third Party Payments","05H","Private contractors","6915","Contractor Payments","60162596","201208",13/10/2011 00:00:00,53362.88,"39564","Gas Companies","REDACTED DATA","KENT COUNTY COUNCIL (GAS & ELECTRIC)","",,"204269191"
"London Borough of Redbridge","http://opendatacommunities.org/doc/london-borough-council/redbridge","4BMANGT&SUPP","Management & Support Services","4CHIGHRDROUT","Highways/Roads (Routine)","REV","Revenue","R7004","Signs Energy","05-THIRD","Third Party Payments","05H","Private contractors","6915","Contractor Payments","60162596","201208",13/10/2011 00:00:00,4673.27,"39564","Gas Companies","REDACTED DATA","KENT COUNTY COUNCIL (GAS & ELECTRIC)","",,"204269191"
"London Borough of Redbridge","http://opendatacommunities.org/doc/london-borough-council/redbridge","4BPUBLICTRAN","Public Transport","4CPARKING","Parking Services","REV","Revenue","R7015","Other Surface Car Pks","02-PREMISES","Premises","02A","Repairs, alteration and maintenance of buildings","3026","Minor Maintenance","60162596","201208",13/10/2011 00:00:00,315.45,"39564","Gas Companies","REDACTED DATA","KENT COUNTY COUNCIL (GAS & ELECTRIC)","",,"204269191"
"London Borough of Redbridge","http://opendatacommunities.org/doc/london-borough-council/redbridge","1BOTHEROPI&E","Other Operating Income & Expenditure","1CTRADSURDEF","Trading Account Surpluses & Deficits","REV","Revenue","R9576","Broadway Chambers Service Charge Account","02-PREMISES","Premises","02B","Energy costs","4000","Electricity","60162596","201208",13/10/2011 00:00:00,64.25,"39564","Gas Companies","REDACTED DATA","KENT COUNTY COUNCIL (GAS & ELECTRIC)","",,"204269191"
"London Borough of Redbridge","http://opendatacommunities.org/doc/london-borough-council/redbridge","3BLEACENTFND","LEA Centrally Held School Funds","3CNONSCH","Non Schools","REV","Revenue","R3258","ISS Paid School Meals","05-THIRD","Third Party Payments","05A","Independent units within the council","6513","Agency & Contracted Services","70034098","201208",18/11/2011 00:00:00,68587.2,"16270","Catering Schools","REDACTED DATA","ISS CATERHOUSE - ISS MEDICLEAN LTD(EDUCATION CATERING CASH COLLECTIONS)","1659837","http://opencorporates.com/companies/gb/1659837",""
"London Borough of Redbridge","http://opendatacommunities.org/doc/london-borough-council/redbridge","5BGFHOUSING","General Fund Housing","5CHOUSADVICE","Housing Advice","REV","Revenue","R5530","HAC Temporary Accomodation","05-THIRD","Third Party Payments","05H","Private contractors","6916","Leasing Payments To Landlords","70033833","201208",31/10/2011 00:00:00,58737.57,"47846","Letting Agents","REDACTED DATA","LETTING INTERNATIONAL LTD","3425414","http://opencorporates.com/companies/gb/3425414","710849440"
"London Borough of Redbridge","http://opendatacommunities.org/doc/london-borough-council/redbridge","5BGFHOUSING","General Fund Housing","5CHOUSADVICE","Housing Advice","REV","Revenue","R5530","HAC Temporary Accomodation","05-THIRD","Third Party Payments","05H","Private contractors","6916","Leasing Payments To Landlords","70033833","201208",31/10/2011 00:00:00,7583.1,"47846","Letting Agents","REDACTED DATA","LETTING INTERNATIONAL LTD","3425414","http://opencorporates.com/companies/gb/3425414","710849440"
"London Borough of Redbridge","http://opendatacommunities.org/doc/london-borough-council/redbridge","9BNONBVO","Outside the BVACOP Objective Structure","9CNONBVO","Outside the BVACOP Objective Structure","REV","Revenue","R0024","AUDIT FEES","04-SUPPLIES","Supplies And Services","04H","Grants and subscriptions","5954","Professional Fees","60161401","201208",05/11/2011 00:00:00,50897.32,"5480","Auditors","REDACTED DATA","PRICEWATERHOUSECOOPERS","OC303525","http://opencorporates.com/companies/gb/OC303525","243823957"
"London Borough of Redbridge","http://opendatacommunities.org/doc/london-borough-council/redbridge","3BLEACENTFND","LEA Centrally Held School Funds","3CNONSCH","Non Schools","REV","Revenue","R3258","ISS Paid School Meals","05-THIRD","Third Party Payments","05A","Independent units within the council","6513","Agency & Contracted Services","70034385","201208",25/11/2011 00:00:00,60574.09,"16270","Catering Schools","REDACTED DATA","ISS CATERHOUSE - ISS MEDICLEAN LTD(EDUCATION CATERING CASH COLLECTIONS)","1659837","http://opencorporates.com/companies/gb/1659837",""
"London Borough of Redbridge","http://opendatacommunities.org/doc/london-borough-council/redbridge","5BGFHOUSING","General Fund Housing","5CHOUSADVICE","Housing Advice","REV","Revenue","R5530","HAC Temporary Accomodation","05-THIRD","Third Party Payments","05H","Private contractors","6916","Leasing Payments To Landlords","70033660","201208",31/10/2011 00:00:00,51931.87,"47846","Letting Agents","REDACTED DATA","IDEAL LOCATIONS UK LTD","6621620","http://opencorporates.com/companies/gb/6621620","837942391"
"London Borough of Redbridge","http://opendatacommunities.org/doc/london-borough-council/redbridge","5BGFHOUSING","General Fund Housing","5CHOUSADVICE","Housing Advice","REV","Revenue","R5530","HAC Temporary Accomodation","05-THIRD","Third Party Payments","05H","Private contractors","6916","Leasing Payments To Landlords","70033660","201208",31/10/2011 00:00:00,7167.63,"47846","Letting Agents","REDACTED DATA","IDEAL LOCATIONS UK LTD","6621620","http://opencorporates.com/companies/gb/6621620","837942391"
"London Borough of Redbridge","http://opendatacommunities.org/doc/london-borough-council/redbridge","9BNONBVO","Outside the BVACOP Objective Structure","9CNONBVO","Outside the BVACOP Objective Structure","CAP","Capital","C2204","Major Resurfacing Borough Roads LBR","99-NONBV","Capital, Balance Sheet and Control","50E","Capital - Contract Payments","9150","Main Contract","3206801","201208",03/11/2011 00:00:00,50000,"18632","Civil Engineers","REDACTED DATA","KENSON CONTRACTORS BENINGTON LTD","1314691","http://opencorporates.com/companies/gb/1314691","301629589"
"London Borough of Redbridge","http://opendatacommunities.org/doc/london-borough-council/redbridge","3BLEACENTFND","LEA Centrally Held School Funds","3CNONSCH","Non Schools","REV","Revenue","R2004","SEN and CD Res Placements DSG","05-THIRD","Third Party Payments","05H","Private contractors","6906","Independent Schools","60161886","201208",18/11/2011 00:00:00,58933.33,"64710","Residential Care Homes","REDACTED DATA","TULIP CARE ONE LIMITED","5903027","http://opencorporates.com/companies/gb/5903027",""
"London Borough of Redbridge","http://opendatacommunities.org/doc/london-borough-council/redbridge","3BLEACENTFND","LEA Centrally Held School Funds","3CNONSCH","Non Schools","REV","Revenue","R2004","SEN and CD Res Placements DSG","05-THIRD","Third Party Payments","05H","Private contractors","6906","Independent Schools","60161907","201208",18/11/2011 00:00:00,58933.33,"64710","Residential Care Homes","REDACTED DATA","TULIP CARE ONE LIMITED","5903027","http://opencorporates.com/companies/gb/5903027",""
"London Borough of Redbridge","http://opendatacommunities.org/doc/london-borough-council/redbridge","5BGFHOUSING","General Fund Housing","5CHOUSADVICE","Housing Advice","REV","Revenue","R5530","HAC Temporary Accomodation","05-THIRD","Third Party Payments","05H","Private contractors","6916","Leasing Payments To Landlords","70033987","201208",31/10/2011 00:00:00,44958.03,"47846","Letting Agents","REDACTED DATA","ATLANTIC LODGE(HOUSING) LTD","5373917","http://opencorporates.com/companies/gb/5373917",""
"London Borough of Redbridge","http://opendatacommunities.org/doc/london-borough-council/redbridge","5BGFHOUSING","General Fund Housing","5CHOUSADVICE","Housing Advice","REV","Revenue","R5530","HAC Temporary Accomodation","05-THIRD","Third Party Payments","05H","Private contractors","6916","Leasing Payments To Landlords","70033987","201208",31/10/2011 00:00:00,8856.96,"47846","Letting Agents","REDACTED DATA","ATLANTIC LODGE(HOUSING) LTD","5373917","http://opencorporates.com/companies/gb/5373917",""
"London Borough of Redbridge","http://opendatacommunities.org/doc/london-borough-council/redbridge","9BNONBVO","Outside the BVACOP Objective Structure","9CNONBVO","Outside the BVACOP Objective Structure","CAP","Capital","C2522","Social Care Reform - Capital Grant","99-NONBV","Capital, Balance Sheet and Control","50B","Capital - Contracted Works","9055","External - Consultants Fees","60158853","201208",30/09/2011 00:00:00,45000,"20620","Computer Consultants","REDACTED DATA","HYTEC LTD","6103699","http://opencorporates.com/companies/gb/6103699","891656580"
"London Borough of Redbridge","http://opendatacommunities.org/doc/london-borough-council/redbridge","9BNONBVO","Outside the BVACOP Objective Structure","9CNONBVO","Outside the BVACOP Objective Structure","CAP","Capital","C4150","Caterham High - School Boiler Replacement","99-NONBV","Capital, Balance Sheet and Control","50E","Capital - Contract Payments","9150","Main Contract","60161105","201208",26/10/2011 00:00:00,42036,"11040","Builders","REDACTED DATA","M & G CONSTRUCTION LTD.","1918880","http://opencorporates.com/companies/gb/1918880","406392853"
"London Borough of Redbridge","http://opendatacommunities.org/doc/london-borough-council/redbridge","5BGFHOUSING","General Fund Housing","5CHOUSADVICE","Housing Advice","REV","Revenue","R5530","HAC Temporary Accomodation","05-THIRD","Third Party Payments","05H","Private contractors","6912","Bed & Breakfast Charges","70034438","201208",31/10/2011 00:00:00,50171.96,"47846","Letting Agents","REDACTED DATA","L.C.MITSIOU &SON LIMITED T/A MITSIOU ESTATES GROUP","2871055","http://opencorporates.com/companies/gb/2871055","553920244"
"London Borough of Redbridge","http://opendatacommunities.org/doc/london-borough-council/redbridge","5BGFHOUSING","General Fund Housing","5CHOUSADVICE","Housing Advice","REV","Revenue","R5530","HAC Temporary Accomodation","05-THIRD","Third Party Payments","05H","Private contractors","6912","Bed & Breakfast Charges","70034442","201208",31/10/2011 00:00:00,41733,"47846","Letting Agents","REDACTED DATA","OMEGA LETTINGS LTD","3662604","http://opencorporates.com/companies/gb/3662604","735892103"
"London Borough of Redbridge","http://opendatacommunities.org/doc/london-borough-council/redbridge","9BNONBVO","Outside the BVACOP Objective Structure","9CNONBVO","Outside the BVACOP Objective Structure","REV","Revenue","R7702","Vehicle Workshop","03-TRANSPORT","Transport","03A","Direct - transport costs","5006","Diesel Oil","629604","201208",10/11/2011 00:00:00,41321.67,"38120","Fuel Dealers","REDACTED DATA","HARVEST ENERGY LTD","2999020","http://opencorporates.com/companies/gb/2999020","778143207"
"London Borough of Redbridge","http://opendatacommunities.org/doc/london-borough-council/redbridge","9BNONBVO","Outside the BVACOP Objective Structure","9CNONBVO","Outside the BVACOP Objective Structure","REV","Revenue","R7702","Vehicle Workshop","03-TRANSPORT","Transport","03A","Direct - transport costs","5006","Diesel Oil","629394","201208",27/10/2011 00:00:00,41259.5,"38120","Fuel Dealers","REDACTED DATA","HARVEST ENERGY LTD","2999020","http://opencorporates.com/companies/gb/2999020","778143207"
"London Borough of Redbridge","http://opendatacommunities.org/doc/london-borough-council/redbridge","5BGFHOUSING","General Fund Housing","5CHOUSADVICE","Housing Advice","REV","Revenue","R5530","HAC Temporary Accomodation","05-THIRD","Third Party Payments","05H","Private contractors","6912","Bed & Breakfast Charges","70033699","201208",30/09/2011 00:00:00,41250,"47846","Letting Agents","REDACTED DATA","ATLANTIC LODGE(HOUSING) LTD","5373917","http://opencorporates.com/companies/gb/5373917",""
"London Borough of Redbridge","http://opendatacommunities.org/doc/london-borough-council/redbridge","9BNONBVO","Outside the BVACOP Objective Structure","9CNONBVO","Outside the BVACOP Objective Structure","REV","Revenue","R7702","Vehicle Workshop","03-TRANSPORT","Transport","03A","Direct - transport costs","5006","Diesel Oil","629395","201208",10/10/2011 00:00:00,40438.23,"38120","Fuel Dealers","REDACTED DATA","HARVEST ENERGY LTD","2999020","http://opencorporates.com/companies/gb/2999020","778143207"
"London Borough of Redbridge","http://opendatacommunities.org/doc/london-borough-council/redbridge","9BNONBVO","Outside the BVACOP Objective Structure","9CNONBVO","Outside the BVACOP Objective Structure","CAP","Capital","C4035","SEN Reorganisation and Other SEN School Related Exp","99-NONBV","Capital, Balance Sheet and Control","50E","Capital - Contract Payments","9150","Main Contract","60161656","201208",14/11/2011 00:00:00,40200.72,"11040","Builders","REDACTED DATA","WATES CONSTRUCTION LTD","1977948","http://opencorporates.com/companies/gb/1977948",""
"London Borough of Redbridge","http://opendatacommunities.org/doc/london-borough-council/redbridge","3BLEACENTFND","LEA Centrally Held School Funds","3CNONSCH","Non Schools","REV","Revenue","R2004","SEN and CD Res Placements DSG","05-THIRD","Third Party Payments","05H","Private contractors","6906","Independent Schools","60162234","201208",17/10/2011 00:00:00,48067.19,"67860","Schools - Independent & Preparatory","REDACTED DATA","SENAD LTD","1176549","http://opencorporates.com/companies/gb/1176549",""
"London Borough of Redbridge","http://opendatacommunities.org/doc/london-borough-council/redbridge","5BGFHOUSING","General Fund Housing","5CHOUSADVICE","Housing Advice","REV","Revenue","R5530","HAC Temporary Accomodation","05-THIRD","Third Party Payments","05H","Private contractors","6912","Bed & Breakfast Charges","70033676","201208",30/09/2011 00:00:00,47638,"47846","Letting Agents","REDACTED DATA","SMART HOTELS LTD","3408484","http://opencorporates.com/companies/gb/3408484","722747138"
"London Borough of Redbridge","http://opendatacommunities.org/doc/london-borough-council/redbridge","3BLEACENTFND","LEA Centrally Held School Funds","3CNONSCH","Non Schools","REV","Revenue","R2004","SEN and CD Res Placements DSG","05-THIRD","Third Party Payments","05H","Private contractors","6906","Independent Schools","60162116","201208",17/11/2011 00:00:00,47349.31,"68200","Schools - Special","REDACTED DATA","CAMBIAN ASPERGER SYNDROME SERVICES LTD","117476","http://opencorporates.com/companies/gb/117476",""
"London Borough of Redbridge","http://opendatacommunities.org/doc/london-borough-council/redbridge","5BGFHOUSING","General Fund Housing","5CHOUSADVICE","Housing Advice","REV","Revenue","R5530","HAC Temporary Accomodation","05-THIRD","Third Party Payments","05H","Private contractors","6912","Bed & Breakfast Charges","70033955","201208",31/10/2011 00:00:00,46338,"47846","Letting Agents","REDACTED DATA","SMART HOTELS LTD","3408484","http://opencorporates.com/companies/gb/3408484","722747138"
"London Borough of Redbridge","http://opendatacommunities.org/doc/london-borough-council/redbridge","3BLEACENTFND","LEA Centrally Held School Funds","3CNONSCH","Non Schools","REV","Revenue","R2004","SEN and CD Res Placements DSG","05-THIRD","Third Party Payments","05H","Private contractors","6906","Independent Schools","60162122","201208",22/11/2011 00:00:00,44259.55,"67860","Schools - Independent & Preparatory","REDACTED DATA","CAMBIAN AUTISM SERVICES LTD","",,""
"London Borough of Redbridge","http://opendatacommunities.org/doc/london-borough-council/redbridge","3BLEACENTFND","LEA Centrally Held School Funds","3CNONSCH","Non Schools","REV","Revenue","R2004","SEN and CD Res Placements DSG","05-THIRD","Third Party Payments","05H","Private contractors","6906","Independent Schools","60162115","201208",17/11/2011 00:00:00,43431,"68200","Schools - Special","REDACTED DATA","CAMBIAN ASPERGER SYNDROME SERVICES LTD","117476","http://opencorporates.com/companies/gb/117476",""
"London Borough of Redbridge","http://opendatacommunities.org/doc/london-borough-council/redbridge","3BLEACENTFND","LEA Centrally Held School Funds","3CNONSCH","Non Schools","REV","Revenue","R2004","SEN and CD Res Placements DSG","05-THIRD","Third Party Payments","05H","Private contractors","6906","Independent Schools","60162121","201208",22/11/2011 00:00:00,43297.39,"67860","Schools - Independent & Preparatory","REDACTED DATA","CAMBIAN AUTISM SERVICES LTD","",,""
"London Borough of Redbridge","http://opendatacommunities.org/doc/london-borough-council/redbridge","4BMANGT&SUPP","Management & Support Services","4CHIGHRDROUT","Highways/Roads (Routine)","REV","Revenue","R7070","Reactive Maintenance","05-THIRD","Third Party Payments","05H","Private contractors","6915","Contractor Payments","3206810","201208",09/11/2011 00:00:00,35661.5,"18632","Civil Engineers","REDACTED DATA","KENSON CONTRACTORS BENINGTON LTD","1314691","http://opencorporates.com/companies/gb/1314691","301629589"
"London Borough of Redbridge","http://opendatacommunities.org/doc/london-borough-council/redbridge","3BLEACENTFND","LEA Centrally Held School Funds","3CNONSCH","Non Schools","REV","Revenue","R2004","SEN and CD Res Placements DSG","05-THIRD","Third Party Payments","05H","Private contractors","6906","Independent Schools","60162117","201208",17/11/2011 00:00:00,42520.27,"68200","Schools - Special","REDACTED DATA","CAMBIAN ASPERGER SYNDROME SERVICES LTD","117476","http://opencorporates.com/companies/gb/117476",""
"London Borough of Redbridge","http://opendatacommunities.org/doc/london-borough-council/redbridge","5BGFHOUSING","General Fund Housing","5CWELFARE","Welfare Services","REV","Revenue","R4111","Supporting People - CPB","05-THIRD","Third Party Payments","05G","Other establishments","6851","Housing Association Payments","90279696","201208",28/11/2011 00:00:00,42000,"1266","Accommodation Agencies - Residential","REDACTED DATA","EAST POTENTIAL (SUPPORTING PEOPLE ONLY)","CHARITY 1053142","http://opencorporates.com/companies/gb/CHARITY 1053142",""
"London Borough of Redbridge","http://opendatacommunities.org/doc/london-borough-council/redbridge","5BGFHOUSING","General Fund Housing","5CWELFARE","Welfare Services","REV","Revenue","R4111","Supporting People - CPB","05-THIRD","Third Party Payments","05G","Other establishments","6851","Housing Association Payments","90279696","201208",28/11/2011 00:00:00,39166.66,"1266","Accommodation Agencies - Residential","REDACTED DATA","FAMILY MOSAIC HOUSING ASSOCIATION (ALBION HSE)","",,"547939979"
"London Borough of Redbridge","http://opendatacommunities.org/doc/london-borough-council/redbridge","5BGFHOUSING","General Fund Housing","5CWELFARE","Welfare Services","REV","Revenue","R4111","Supporting People - CPB","05-THIRD","Third Party Payments","05G","Other establishments","6851","Housing Association Payments","90279696","201208",28/11/2011 00:00:00,26250,"17020","Charities and Voluntary Organisations","REDACTED DATA","SINGLE HOMELESS PROJECT","1741926","http://opencorporates.com/companies/gb/1741926",""
"London Borough of Redbridge","http://opendatacommunities.org/doc/london-borough-council/redbridge","5BGFHOUSING","General Fund Housing","5CWELFARE","Welfare Services","REV","Revenue","R4111","Supporting People - CPB","05-THIRD","Third Party Payments","05G","Other establishments","6851","Housing Association Payments","90279696","201208",28/11/2011 00:00:00,17400,"17020","Charities and Voluntary Organisations","REDACTED DATA","NORWOOD RAVENSWOOD SERVICES LTD(SUPPORTING PEOPLE)","",,"629720917"
"London Borough of Redbridge","http://opendatacommunities.org/doc/london-borough-council/redbridge","5BGFHOUSING","General Fund Housing","5CWELFARE","Welfare Services","REV","Revenue","R4111","Supporting People - CPB","05-THIRD","Third Party Payments","05G","Other establishments","6851","Housing Association Payments","90279696","201208",28/11/2011 00:00:00,16580,"1266","Accommodation Agencies - Residential","REDACTED DATA","FAMILY MOSAIC HOUSING ASSOCIATION (ALBION HSE)","",,"547939979"
"London Borough of Redbridge","http://opendatacommunities.org/doc/london-borough-council/redbridge","5BGFHOUSING","General Fund Housing","5CWELFARE","Welfare Services","REV","Revenue","R4111","Supporting People - CPB","05-THIRD","Third Party Payments","05G","Other establishments","6851","Housing Association Payments","90279696","201208",28/11/2011 00:00:00,12577.75,"53350","Nursing Homes","REDACTED DATA","OUTLOOK CARE","",,""
"London Borough of Redbridge","http://opendatacommunities.org/doc/london-borough-council/redbridge","5BGFHOUSING","General Fund Housing","5CWELFARE","Welfare Services","REV","Revenue","R4111","Supporting People - CPB","05-THIRD","Third Party Payments","05G","Other establishments","6851","Housing Association Payments","90279696","201208",28/11/2011 00:00:00,11852.2,"17020","Charities and Voluntary Organisations","REDACTED DATA","THREE C'S SUPPORT","2768427","http://opencorporates.com/companies/gb/2768427",""
"London Borough of Redbridge","http://opendatacommunities.org/doc/london-borough-council/redbridge","5BGFHOUSING","General Fund Housing","5CWELFARE","Welfare Services","REV","Revenue","R4111","Supporting People - CPB","05-THIRD","Third Party Payments","05G","Other establishments","6851","Housing Association Payments","90279696","201208",28/11/2011 00:00:00,11644.08,"17020","Charities and Voluntary Organisations","REDACTED DATA","REDBRIDGE ACTION AGAINST DOMESTIC ABUSE","",,""
"London Borough of Redbridge","http://opendatacommunities.org/doc/london-borough-council/redbridge","5BGFHOUSING","General Fund Housing","5CWELFARE","Welfare Services","REV","Revenue","R4111","Supporting People - CPB","05-THIRD","Third Party Payments","05G","Other establishments","6851","Housing Association Payments","90279696","201208",28/11/2011 00:00:00,11506.2,"43419","Home Care Services","REDACTED DATA","EAST THAMES CARE LTD.","",,""
"London Borough of Redbridge","http://opendatacommunities.org/doc/london-borough-council/redbridge","5BGFHOUSING","General Fund Housing","5CWELFARE","Welfare Services","REV","Revenue","R4111","Supporting People - CPB","05-THIRD","Third Party Payments","05G","Other establishments","6851","Housing Association Payments","90279696","201208",28/11/2011 00:00:00,10969.4,"1266","Accommodation Agencies - Residential","REDACTED DATA","FAMILY MOSAIC HOUSING ASSOCIATION (ALBION HSE)","",,"547939979"
"London Borough of Redbridge","http://opendatacommunities.org/doc/london-borough-council/redbridge","5BGFHOUSING","General Fund Housing","5CWELFARE","Welfare Services","REV","Revenue","R4111","Supporting People - CPB","05-THIRD","Third Party Payments","05G","Other establishments","6851","Housing Association Payments","90279696","201208",28/11/2011 00:00:00,10275,"1266","Accommodation Agencies - Residential","REDACTED DATA","FAMILY MOSAIC HOUSING ASSOCIATION (ALBION HSE)","",,"547939979"
"London Borough of Redbridge","http://opendatacommunities.org/doc/london-borough-council/redbridge","5BGFHOUSING","General Fund Housing","5CWELFARE","Welfare Services","REV","Revenue","R4111","Supporting People - CPB","05-THIRD","Third Party Payments","05G","Other establishments","6851","Housing Association Payments","90279696","201208",28/11/2011 00:00:00,9781.8,"53350","Nursing Homes","REDACTED DATA","OUTLOOK CARE","",,""
"London Borough of Redbridge","http://opendatacommunities.org/doc/london-borough-council/redbridge","5BGFHOUSING","General Fund Housing","5CWELFARE","Welfare Services","REV","Revenue","R4111","Supporting People - CPB","05-THIRD","Third Party Payments","05G","Other establishments","6851","Housing Association Payments","90279696","201208",28/11/2011 00:00:00,9757.2,"17020","Charities and Voluntary Organisations","REDACTED DATA","THREE C'S SUPPORT","2768427","http://opencorporates.com/companies/gb/2768427",""
"London Borough of Redbridge","http://opendatacommunities.org/doc/london-borough-council/redbridge","5BGFHOUSING","General Fund Housing","5CWELFARE","Welfare Services","REV","Revenue","R4111","Supporting People - CPB","05-THIRD","Third Party Payments","05G","Other establishments","6851","Housing Association Payments","90279696","201208",28/11/2011 00:00:00,9115.83,"1266","Accommodation Agencies - Residential","REDACTED DATA","LOOK AHEAD HOUSING & CARE LTD","21004R","http://opencorporates.com/companies/gb/21004R","245078264"
"London Borough of Redbridge","http://opendatacommunities.org/doc/london-borough-council/redbridge","5BGFHOUSING","General Fund Housing","5CWELFARE","Welfare Services","REV","Revenue","R4111","Supporting People - CPB","05-THIRD","Third Party Payments","05G","Other establishments","6851","Housing Association Payments","90279696","201208",28/11/2011 00:00:00,9099.92,"1266","Accommodation Agencies - Residential","REDACTED DATA","LOOK AHEAD HOUSING & CARE LTD","21004R","http://opencorporates.com/companies/gb/21004R","245078264"
"London Borough of Redbridge","http://opendatacommunities.org/doc/london-borough-council/redbridge","5BGFHOUSING","General Fund Housing","5CWELFARE","Welfare Services","REV","Revenue","R4111","Supporting People - CPB","05-THIRD","Third Party Payments","05G","Other establishments","6851","Housing Association Payments","90279696","201208",28/11/2011 00:00:00,8713.75,"17020","Charities and Voluntary Organisations","REDACTED DATA","OUTWARD","2151434","http://opencorporates.com/companies/gb/2151434",""
"London Borough of Redbridge","http://opendatacommunities.org/doc/london-borough-council/redbridge","5BGFHOUSING","General Fund Housing","5CWELFARE","Welfare Services","REV","Revenue","R4111","Supporting People - CPB","05-THIRD","Third Party Payments","05G","Other establishments","6851","Housing Association Payments","90279696","201208",28/11/2011 00:00:00,6380.42,"17020","Charities and Voluntary Organisations","REDACTED DATA","SINGLE HOMELESS PROJECT","1741926","http://opencorporates.com/companies/gb/1741926",""
"London Borough of Redbridge","http://opendatacommunities.org/doc/london-borough-council/redbridge","5BGFHOUSING","General Fund Housing","5CWELFARE","Welfare Services","REV","Revenue","R4111","Supporting People - CPB","05-THIRD","Third Party Payments","05G","Other establishments","6851","Housing Association Payments","90279696","201208",28/11/2011 00:00:00,5606.42,"43419","Home Care Services","REDACTED DATA","EAST THAMES CARE LTD.","",,""
"London Borough of Redbridge","http://opendatacommunities.org/doc/london-borough-council/redbridge","5BGFHOUSING","General Fund Housing","5CWELFARE","Welfare Services","REV","Revenue","R4111","Supporting People - CPB","05-THIRD","Third Party Payments","05G","Other establishments","6851","Housing Association Payments","90279696","201208",28/11/2011 00:00:00,5416.66,"1266","Accommodation Agencies - Residential","REDACTED DATA","RICHMOND FELLOWSHIP WALTHAM FOREST ES","662712","http://opencorporates.com/companies/gb/662712",""
"London Borough of Redbridge","http://opendatacommunities.org/doc/london-borough-council/redbridge","5BGFHOUSING","General Fund Housing","5CWELFARE","Welfare Services","REV","Revenue","R4111","Supporting People - CPB","05-THIRD","Third Party Payments","05G","Other establishments","6851","Housing Association Payments","90279696","201208",28/11/2011 00:00:00,5333.33,"17020","Charities and Voluntary Organisations","REDACTED DATA","SINGLE HOMELESS PROJECT","1741926","http://opencorporates.com/companies/gb/1741926",""
"London Borough of Redbridge","http://opendatacommunities.org/doc/london-borough-council/redbridge","5BGFHOUSING","General Fund Housing","5CWELFARE","Welfare Services","REV","Revenue","R4111","Supporting People - CPB","05-THIRD","Third Party Payments","05G","Other establishments","6851","Housing Association Payments","90279696","201208",28/11/2011 00:00:00,5154.33,"17020","Charities and Voluntary Organisations","REDACTED DATA","OUTWARD","2151434","http://opencorporates.com/companies/gb/2151434",""
"London Borough of Redbridge","http://opendatacommunities.org/doc/london-borough-council/redbridge","5BGFHOUSING","General Fund Housing","5CWELFARE","Welfare Services","REV","Revenue","R4111","Supporting People - CPB","05-THIRD","Third Party Payments","05G","Other establishments","6851","Housing Association Payments","90279696","201208",28/11/2011 00:00:00,4038,"17020","Charities and Voluntary Organisations","REDACTED DATA","NORWOOD RAVENSWOOD SERVICES LTD(SUPPORTING PEOPLE)","",,"629720917"
"London Borough of Redbridge","http://opendatacommunities.org/doc/london-borough-council/redbridge","5BGFHOUSING","General Fund Housing","5CWELFARE","Welfare Services","REV","Revenue","R4111","Supporting People - CPB","05-THIRD","Third Party Payments","05G","Other establishments","6851","Housing Association Payments","90279696","201208",28/11/2011 00:00:00,3692.08,"17020","Charities and Voluntary Organisations","REDACTED DATA","REDBRIDGE COMMUNITY HOUSING LIMITED (RCHL)","",,""
"London Borough of Redbridge","http://opendatacommunities.org/doc/london-borough-council/redbridge","5BGFHOUSING","General Fund Housing","5CWELFARE","Welfare Services","REV","Revenue","R4111","Supporting People - CPB","05-THIRD","Third Party Payments","05G","Other establishments","6851","Housing Association Payments","90279696","201208",28/11/2011 00:00:00,3333.33,"1266","Accommodation Agencies - Residential","REDACTED DATA","PENROSE HOUSING ASSOCIATION","",,""
"London Borough of Redbridge","http://opendatacommunities.org/doc/london-borough-council/redbridge","5BGFHOUSING","General Fund Housing","5CWELFARE","Welfare Services","REV","Revenue","R4111","Supporting People - CPB","05-THIRD","Third Party Payments","05G","Other establishments","6851","Housing Association Payments","90279696","201208",28/11/2011 00:00:00,2898,"17020","Charities and Voluntary Organisations","REDACTED DATA","NORWOOD RAVENSWOOD SERVICES LTD(SUPPORTING PEOPLE)","",,"629720917"
"London Borough of Redbridge","http://opendatacommunities.org/doc/london-borough-council/redbridge","5BGFHOUSING","General Fund Housing","5CWELFARE","Welfare Services","REV","Revenue","R4111","Supporting People - CPB","05-THIRD","Third Party Payments","05G","Other establishments","6851","Housing Association Payments","90279696","201208",28/11/2011 00:00:00,2829.6,"1266","Accommodation Agencies - Residential","REDACTED DATA","INDUSTRIAL DWELLINGS SOCIETY (1885) LTD","CHARITY14044","http://opencorporates.com/companies/gb/CHARITY14044",""
"London Borough of Redbridge","http://opendatacommunities.org/doc/london-borough-council/redbridge","5BGFHOUSING","General Fund Housing","5CWELFARE","Welfare Services","REV","Revenue","R4111","Supporting People - CPB","05-THIRD","Third Party Payments","05G","Other establishments","6851","Housing Association Payments","90279696","201208",28/11/2011 00:00:00,2600,"17020","Charities and Voluntary Organisations","REDACTED DATA","OUTWARD","2151434","http://opencorporates.com/companies/gb/2151434",""
"London Borough of Redbridge","http://opendatacommunities.org/doc/london-borough-council/redbridge","5BGFHOUSING","General Fund Housing","5CWELFARE","Welfare Services","REV","Revenue","R4111","Supporting People - CPB","05-THIRD","Third Party Payments","05G","Other establishments","6851","Housing Association Payments","90279696","201208",28/11/2011 00:00:00,2450,"17020","Charities and Voluntary Organisations","REDACTED DATA","OUTWARD","2151434","http://opencorporates.com/companies/gb/2151434",""
"London Borough of Redbridge","http://opendatacommunities.org/doc/london-borough-council/redbridge","5BGFHOUSING","General Fund Housing","5CWELFARE","Welfare Services","REV","Revenue","R4111","Supporting People - CPB","05-THIRD","Third Party Payments","05G","Other establishments","6851","Housing Association Payments","90279696","201208",28/11/2011 00:00:00,2128,"17020","Charities and Voluntary Organisations","REDACTED DATA","OUTWARD","2151434","http://opencorporates.com/companies/gb/2151434",""
"London Borough of Redbridge","http://opendatacommunities.org/doc/london-borough-council/redbridge","5BGFHOUSING","General Fund Housing","5CWELFARE","Welfare Services","REV","Revenue","R4111","Supporting People - CPB","05-THIRD","Third Party Payments","05G","Other establishments","6851","Housing Association Payments","90279696","201208",28/11/2011 00:00:00,2069,"17020","Charities and Voluntary Organisations","REDACTED DATA","NORWOOD RAVENSWOOD SERVICES LTD(SUPPORTING PEOPLE)","",,"629720917"
"London Borough of Redbridge","http://opendatacommunities.org/doc/london-borough-council/redbridge","5BGFHOUSING","General Fund Housing","5CWELFARE","Welfare Services","REV","Revenue","R4111","Supporting People - CPB","05-THIRD","Third Party Payments","05G","Other establishments","6851","Housing Association Payments","90279696","201208",28/11/2011 00:00:00,1988,"17020","Charities and Voluntary Organisations","REDACTED DATA","OUTWARD","2151434","http://opencorporates.com/companies/gb/2151434",""
"London Borough of Redbridge","http://opendatacommunities.org/doc/london-borough-council/redbridge","5BGFHOUSING","General Fund Housing","5CWELFARE","Welfare Services","REV","Revenue","R4111","Supporting People - CPB","05-THIRD","Third Party Payments","05G","Other establishments","6851","Housing Association Payments","90279696","201208",28/11/2011 00:00:00,1770.1,"1266","Accommodation Agencies - Residential","REDACTED DATA","SPRINGBOARD HOUSING ASSOC LTD","",,""
"London Borough of Redbridge","http://opendatacommunities.org/doc/london-borough-council/redbridge","5BGFHOUSING","General Fund Housing","5CWELFARE","Welfare Services","REV","Revenue","R4111","Supporting People - CPB","05-THIRD","Third Party Payments","05G","Other establishments","6851","Housing Association Payments","90279696","201208",28/11/2011 00:00:00,1765.5,"1266","Accommodation Agencies - Residential","REDACTED DATA","SPRINGBOARD HOUSING ASSOC LTD","",,""
"London Borough of Redbridge","http://opendatacommunities.org/doc/london-borough-council/redbridge","5BGFHOUSING","General Fund Housing","5CWELFARE","Welfare Services","REV","Revenue","R4111","Supporting People - CPB","05-THIRD","Third Party Payments","05G","Other establishments","6851","Housing Association Payments","90279696","201208",28/11/2011 00:00:00,1467.2,"1266","Accommodation Agencies - Residential","REDACTED DATA","HABINTEG HOUSING ASSOCIATION","",,""
"London Borough of Redbridge","http://opendatacommunities.org/doc/london-borough-council/redbridge","5BGFHOUSING","General Fund Housing","5CWELFARE","Welfare Services","REV","Revenue","R4111","Supporting People - CPB","05-THIRD","Third Party Payments","05G","Other establishments","6851","Housing Association Payments","90279696","201208",28/11/2011 00:00:00,1415.83,"43419","Home Care Services","REDACTED DATA","EAST THAMES CARE LTD.","",,""
"London Borough of Redbridge","http://opendatacommunities.org/doc/london-borough-council/redbridge","5BGFHOUSING","General Fund Housing","5CWELFARE","Welfare Services","REV","Revenue","R4111","Supporting People - CPB","05-THIRD","Third Party Payments","05G","Other establishments","6851","Housing Association Payments","90279696","201208",28/11/2011 00:00:00,885.64,"43419","Home Care Services","REDACTED DATA","EAST THAMES CARE LTD.","",,""
"London Borough of Redbridge","http://opendatacommunities.org/doc/london-borough-council/redbridge","5BGFHOUSING","General Fund Housing","5CWELFARE","Welfare Services","REV","Revenue","R4111","Supporting People - CPB","05-THIRD","Third Party Payments","05G","Other establishments","6851","Housing Association Payments","90279696","201208",28/11/2011 00:00:00,847.96,"1266","Accommodation Agencies - Residential","REDACTED DATA","INDUSTRIAL DWELLINGS SOCIETY (1885) LTD","CHARITY14044","http://opencorporates.com/companies/gb/CHARITY14044",""
"London Borough of Redbridge","http://opendatacommunities.org/doc/london-borough-council/redbridge","5BGFHOUSING","General Fund Housing","5CWELFARE","Welfare Services","REV","Revenue","R4111","Supporting People - CPB","05-THIRD","Third Party Payments","05G","Other establishments","6851","Housing Association Payments","90279696","201208",28/11/2011 00:00:00,658.32,"17020","Charities and Voluntary Organisations","REDACTED DATA","HOUSING 21","",,"604233385"
"London Borough of Redbridge","http://opendatacommunities.org/doc/london-borough-council/redbridge","5BGFHOUSING","General Fund Housing","5CWELFARE","Welfare Services","REV","Revenue","R4111","Supporting People - CPB","05-THIRD","Third Party Payments","05G","Other establishments","6851","Housing Association Payments","90279696","201208",28/11/2011 00:00:00,453,"64710","Residential Care Homes","REDACTED DATA","THE ABBEYFIELD SOCIETY(SELWORTHY CLOSE 10-12)","574816","http://opencorporates.com/companies/gb/574816",""
"London Borough of Redbridge","http://opendatacommunities.org/doc/london-borough-council/redbridge","5BGFHOUSING","General Fund Housing","5CWELFARE","Welfare Services","REV","Revenue","R4111","Supporting People - CPB","05-THIRD","Third Party Payments","05G","Other establishments","6851","Housing Association Payments","90279696","201208",28/11/2011 00:00:00,399,"17020","Charities and Voluntary Organisations","REDACTED DATA","HOUSING 21","",,"604233385"
"London Borough of Redbridge","http://opendatacommunities.org/doc/london-borough-council/redbridge","5BGFHOUSING","General Fund Housing","5CWELFARE","Welfare Services","REV","Revenue","R4111","Supporting People - CPB","05-THIRD","Third Party Payments","05G","Other establishments","6851","Housing Association Payments","90279696","201208",28/11/2011 00:00:00,377.74,"17020","Charities and Voluntary Organisations","REDACTED DATA","HOUSING 21","",,"604233385"
"London Borough of Redbridge","http://opendatacommunities.org/doc/london-borough-council/redbridge","5BGFHOUSING","General Fund Housing","5CWELFARE","Welfare Services","REV","Revenue","R4111","Supporting People - CPB","05-THIRD","Third Party Payments","05G","Other establishments","6851","Housing Association Payments","90279696","201208",28/11/2011 00:00:00,353.6,"1266","Accommodation Agencies - Residential","REDACTED DATA","SPRINGBOARD HOUSING ASSOC LTD","",,""
"London Borough of Redbridge","http://opendatacommunities.org/doc/london-borough-council/redbridge","5BGFHOUSING","General Fund Housing","5CWELFARE","Welfare Services","REV","Revenue","R4111","Supporting People - CPB","05-THIRD","Third Party Payments","05G","Other establishments","6851","Housing Association Payments","90279696","201208",28/11/2011 00:00:00,312,"17020","Charities and Voluntary Organisations","REDACTED DATA","WEAVERS ALMSHOUSE CHARITIES","",,""
"London Borough of Redbridge","http://opendatacommunities.org/doc/london-borough-council/redbridge","5BGFHOUSING","General Fund Housing","5CWELFARE","Welfare Services","REV","Revenue","R4111","Supporting People - CPB","05-THIRD","Third Party Payments","05G","Other establishments","6851","Housing Association Payments","90279696","201208",28/11/2011 00:00:00,280,"17020","Charities and Voluntary Organisations","REDACTED DATA","HOUSING 21","",,"604233385"
"London Borough of Redbridge","http://opendatacommunities.org/doc/london-borough-council/redbridge","5BGFHOUSING","General Fund Housing","5CWELFARE","Welfare Services","REV","Revenue","R4111","Supporting People - CPB","05-THIRD","Third Party Payments","05G","Other establishments","6851","Housing Association Payments","90279696","201208",28/11/2011 00:00:00,258.41,"17020","Charities and Voluntary Organisations","REDACTED DATA","HOUSING 21","",,"604233385"
"London Borough of Redbridge","http://opendatacommunities.org/doc/london-borough-council/redbridge","5BGFHOUSING","General Fund Housing","5CWELFARE","Welfare Services","REV","Revenue","R4111","Supporting People - CPB","05-THIRD","Third Party Payments","05G","Other establishments","6851","Housing Association Payments","90279696","201208",28/11/2011 00:00:00,256,"1266","Accommodation Agencies - Residential","REDACTED DATA","INDUSTRIAL DWELLINGS SOCIETY (1885) LTD","CHARITY14044","http://opencorporates.com/companies/gb/CHARITY14044",""
"London Borough of Redbridge","http://opendatacommunities.org/doc/london-borough-council/redbridge","5BGFHOUSING","General Fund Housing","5CWELFARE","Welfare Services","REV","Revenue","R4111","Supporting People - CPB","05-THIRD","Third Party Payments","05G","Other establishments","6851","Housing Association Payments","90279696","201208",28/11/2011 00:00:00,159.6,"17020","Charities and Voluntary Organisations","REDACTED DATA","HOUSING 21","",,"604233385"
"London Borough of Redbridge","http://opendatacommunities.org/doc/london-borough-council/redbridge","5BGFHOUSING","General Fund Housing","5CWELFARE","Welfare Services","REV","Revenue","R4111","Supporting People - CPB","05-THIRD","Third Party Payments","05G","Other establishments","6851","Housing Association Payments","90279696","201208",28/11/2011 00:00:00,86.52,"17020","Charities and Voluntary Organisations","REDACTED DATA","HOUSING 21","",,"604233385"
"London Borough of Redbridge","http://opendatacommunities.org/doc/london-borough-council/redbridge","5BGFHOUSING","General Fund Housing","5CWELFARE","Welfare Services","REV","Revenue","R4111","Supporting People - CPB","05-THIRD","Third Party Payments","05G","Other establishments","6851","Housing Association Payments","90279696","201208",28/11/2011 00:00:00,-6276.65,"1266","Accommodation Agencies - Residential","REDACTED DATA","FAMILY MOSAIC HOUSING ASSOCIATION (ALBION HSE)","",,"547939979"
"London Borough of Redbridge","http://opendatacommunities.org/doc/london-borough-council/redbridge","4BMANGT&SUPP","Management & Support Services","4CHIGHRDROUT","Highways/Roads (Routine)","REV","Revenue","R7062","Lighting Sched 1","05-THIRD","Third Party Payments","05H","Private contractors","6915","Contractor Payments","3209225","201208",23/11/2011 00:00:00,34663.52,"21555","Construction Contractors - General","REDACTED DATA","MAY GURNEY LIMITED","873179","http://opencorporates.com/companies/gb/873179","105540018"
"London Borough of Redbridge","http://opendatacommunities.org/doc/london-borough-council/redbridge","9BNONBVO","Outside the BVACOP Objective Structure","9CNONBVO","Outside the BVACOP Objective Structure","CAP","Capital","C2202","Section 106 Claybury","99-NONBV","Capital, Balance Sheet and Control","50E","Capital - Contract Payments","9150","Main Contract","60160993","201208",04/11/2011 00:00:00,41213.39,"48583","Local Government","REDACTED DATA","TFL SURFACE TRANSPORT","",,"756276990"
"London Borough of Redbridge","http://opendatacommunities.org/doc/london-borough-council/redbridge","4BMANGT&SUPP","Management & Support Services","4CHIGHRDROUT","Highways/Roads (Routine)","REV","Revenue","R7062","Lighting Sched 1","05-THIRD","Third Party Payments","05H","Private contractors","6915","Contractor Payments","3205716","201208",28/10/2011 00:00:00,34326.02,"21555","Construction Contractors - General","REDACTED DATA","MAY GURNEY LIMITED","873179","http://opencorporates.com/companies/gb/873179","105540018"
